Workbook

Sheet Nota
B2: Ces documents sont les fruits : | S2: VERSION E
B3: de mon expérience et des utilitaires de la restauration collective
B4: de formules et fonctions Excel mises sur le net par des passionnés | S4: dernière mise à jour : 19 Décembre 2021
B5: A vous de les faire évoluer et de les modifier pour votre utilisation....... | S5: ="Page "&_xlfn.SHEET()&" sur "&_xlfn.SHEETS() -> Page 1 sur 11
B7: Adresse PC | D7: =CELL("nomfichier") -> E:\0-UPRT\1-UPRT.FR-SITE-WEB\re-recettes-jean-marc-catteau\re-catteau-galettes\[PC-galette-garniture-mexicaine.xls]original
B10: CONTENU DU CLASSEUR
C11: Vous êtes dans un classeur xlsm certaines feuilles contiennent du code VBA dans Worksheet
C13: MODES D'EMPLOI
D14: MODÈLE PORTRAIT 1
E15: Recette au poids et au NOMBRE DE GALETTES
E16: 1 seule fiche imprimable sur feuille A4
F17: ❼ A dupliquer pour
F18: 2.5 | G18: 10
E19: pour 1 Kg | F19: Kg | G19: Galettes
E20: Postit de 16 lignes de produits
D22: MODÈLE PORTRAIT 2 une fiche
E23: 1 seule fiche imprimable sur feuille A4
E24: Recette au nombre de PORTIONS
E25: 2 blocs de 15 lignes sur une fiche imprimable sur feuille A4
E27: ❹ Unités | F27: ❺ Poids | G27: ❸ Ingrédients | H27: ⑦ Quantités | I27: % | J27: ❻ Quoi | K27: ❹ Unités | L27: ❺ Poids | M27: ❸ Ingrédients | N27: ⑦ Quantités | O27: % | P27: ❻ Quoi
G28: S.Total saisi > | H28: 0.275 | M28: S.Total saisi > | N28: 0
E29: 8 | F29: 0.05 | G29: œufs | H29: 0.2 | I29: 0.7272727273 | J29: Kg | M29: Chair à saucisse | N29: 0 | P29: Kg
C31: PATE.BIGOUDENNE.1
D32: Modèle portrait 1
D33: ICI | E33: ① | F33: Galette mexicaine | K33: GAL027
C36: PATE.BIGOUDENNE.2
D37: Modèle portrait 2
D38: ICI | E38: ① | F38: Galette mexicaine | O38: GAL027
C41: COMMENT COPIER/ COLLER DANS UNE FEUILLE
C43: CODE VBA POUR METTRE EN SURBRILLANCE LA LIGNE ET LA COLONNE ACTIVES DANS EXCEL
C45: QU'EST-CE QU'UNE FICHE DE FABRICATION DE TYPE "POSTIT"©
D46: SERVICE AU POIDS Explication
C48: VOCABULAIRE PROFESSIONNEL
D49: Vocabulaire " cuisine de composition"
D50: Vocabulaire"La CUISINE DE REFERENCE" Michel MAINCENT
D51: Vocabulaire un verbe…une action
D52: Quelques verbes d'action complémentaires
D53: Le vocabulaire professionnel en pâtisserie
C55: POIDS DES FRUITS ET LÉGUMES
D56: Saisissez votre nombre d'unité (encre rouge)Modifiez le poids unitaire (encre verte) s'il n'est pas excact
C58: CUISINIERS : PESEZ …..EVITEZ LES VOLUMES , N'UTILISEZ QUE LES POIDS COMME LES PATISSIERS
C60: POIDS DES FRUITS ET LÉGUMES
D61: Saisissez votre nombre d'unité (encre rouge)Modifiez le poids unitaire (encre verte) s'il n'est pas excact
B64: Quelques polices de caractères utilisées | Q64: Quelques formats utilisés
C65: Arial | E65: Calibri | G65: Rockwell | J65: Verdana | Q65: 15.5 > | S65: 15.5 | U65: 15.5 | W65: 15.5
C66: ARIAL | E66: CALIBRI | G66: ROCKWELL | J66: VERDANA | Q66: personnalisés > | S66: 0.000" Kg" | U66: 0" %" | W66: Monétaire
B68: Autres polices à découvrir
C69: ARIAL NARROW Arial Narrow | H69: COMIC SANS MF Comic Sans MF | P69: GIL SANS MT Gill Sans MT | V69: PALATINO LINOTYPE Palatino Linotype
C70: TAHOMA Tahoma | H70: TIMES NEW ROMAN Times New Roman | P70: TRBUCHET MF Trébuchet MF | V70: TW CEN MT Tw Cen MT
C71: VRINDA Vrinda
B72: Une numérotation avec couleur de police modifiable
C73: ❶ | D73: ❷ | E73: ❸ | F73: ❹ | G73: ❺ | H73: ❻ | I73: ❼ | J73: ❽ | K73: ❾ | L73: ❿ | M73: ⓫ | N73: ⓬ | O73: ⓭ | P73: ⓮ | Q73: ⓯ | R73: ⓰ | S73: ⓱ | T73: ⓲ | U73: ⓳ | V73: ⓴
C75: ❶ | D75: ❷ | E75: ❸ | F75: ❹ | G75: ❺ | H75: ❻ | I75: ❼ | J75: ❽ | K75: ❾ | L75: ❿ | M75: ⓫ | N75: ⓬ | O75: ⓭ | P75: ⓮ | Q75: ⓯ | R75: ⓰ | S75: ⓱ | T75: ⓲ | U75: ⓳ | V75: ⓴
C77: 1 | D77: 2 | E77: 3 | F77: 4 | G77: 5 | H77: 6 | I77: 7 | J77: 8 | K77: 9 | L77: 10 | M77: 11 | N77: 12 | O77: 13 | P77: 14 | Q77: 15 | R77: 16 | S77: 17 | T77: 18 | U77: 19 | V77: 20
C79: 1 | D79: 2 | E79: 3 | F79: 4 | G79: 5 | H79: 6 | I79: 7 | J79: 8 | K79: 9 | L79: 10 | M79: 11 | N79: 12 | O79: 13 | P79: 14 | Q79: 15 | R79: 16 | S79: 17 | T79: 18 | U79: 19 | V79: 20
C81: ⓪①②③④⑤⑥⑦⑧⑨⑩⑪⑫⑬⑭⑮⑯⑰⑱⑲⑳ | L81: couleur de police blanc sur fond gris à modifier pour vos documents
C82: cliquez sur la colonne C et sélectionnez dans la barre le numéro qui vous intéresse
C83: ⓿❶❷❸❹❺❻❼❽❾❿⓫⓬⓭⓮⓯⓰⓱⓲⓳⓴
B85: des caractères spéciaux
B86: ! | C86: " | D86: # | F86: % | G86: & | H86: @ | I86: ‰ | J86: ≈ | K86: ± | L86: » | M86: ¼ | N86: ½ | O86: ¾ | P86: ø | Q86: ► | R86: ◄ | S86: ▲ | T86: ▼ | U86: Φ
C88: 0.00\ " cm³" | F88: Format | cellule | personnalisé | 0" cm³"
C89: 3
H90: ou copier-coller | N90: X | O90: t | P90: u
C91: le ² se fait en tapant alt+0178 | H91: m² | I91: M² | J91: cm² | K91: ² | N91: Police Wingdings 3
C92: le ³ se fait en tapant alt+0179 | H92: m³ | I92: M³ | J92: cm³ | K92: ³ | N92: Z | O92: q | P92: p
C95: lien > | D95: Les unités pifométriques
C96: Je remercie chaleureusement les internautes passionnés qui élaborent et proposent des formules et fonctions imbriquées
B98: Transmettez votre savoir et votre savoir faire peu importe qui le récupère; pourvu qu'un plus grand nombre puisse en bénéficier.
B99: Joël LEBOUCHER …Octobre 2015
B100: un lien rompu ou devenu obsolète…..pas de panique…Google saura vous retrouver un document équivalent
B102: Site à découvrir
B103: SPACE pour Suivi et Programmation d'ACtivités en Equipe est un outil destiné à permettre un suivi exhaustif des activités d'une équipe.
A104: lien > | C104: Fil de discussion dédié à ce programme
A105: > | B105: http://www.excel-downloads.com/remository/Download/Professionnels/Planification-et-gestion-de-projets/SPACE.html | Z105: FIN
Z106: =ADDRESS(ROW(),COLUMN(),4) -> Z106

Sheet Modes.d'emploi
B2: Mode d'emploi du modèle 1 | P2: Mode d'emploi du modèle 2
Q4: 12 | R4: 12 | S4: 19 | T4: 12 | U4: 12
C5: Récap du Mode d'emploi de la fiche recette | H5: ICI | Q5: Récap du Mode d'emploi de la fiche recette | W5: ICI
C7: Recette au poids et au NOMBRE DE GALETTES | H7: Sur la tranche des fiches indiquez : CETTE RECETTE EST A CLASSER DANS QUELLE FAMILLE | I7: =H7 -> Sur la tranche des fiches indiquez : CETTE RECETTE EST A CLASSER DANS QUELLE FAMILLE | Q7: Recette au nombre de PORTIONS | W7: Sur la tranche des fiches indiquez : DANS QUELLE FAMILLE CETTE RECETTE EST A CLASSER | X7: =W7 -> Sur la tranche des fiches indiquez : DANS QUELLE FAMILLE CETTE RECETTE EST A CLASSER
C9: à saisir | J9: J'ai volontairement augmenté le nombre de portions ❺ pour diminuer le poids pour 1 galette en g ⑥ à vous d'ajuster selon votre clientèle | Q9: à saisir | Y9: J'ai parfois volontairement augmenté le nombre de portions ❽ pour diminuer le poids pour 1 portion ⑩ qui ne convenait pas à mes convives
C10: ❶ NOM de la recette a saisir et N° ou lettre Alpha | Q10: ① NOM de la recette a saisir et N° ou lettre Alpha
C12: ❷ Unités.Poids.Compositon | Q12: ② saisissez le nom de Auteur
C13: Poids à saisir en Kg
C14: Exep. 3 œufs de 0.050 | J14: le surlignage des lignes et colonnes s'obtient avec une Mise en forme conditionnelle MFC avec cette formule =OU(LIGNE()=CELLULE("ligne");COLONNE()=CELLULE("colonne")) | Q14: Poids à saisir en Kg | Y14: le surlignage des lignes et colonnes s'obtient avec une Mise en forme conditionnelle MFC avec cette formule =OU(LIGNE()=CELLULE("ligne");COLONNE()=CELLULE("colonne"))
D15: ❷ Unités | E15: ❷ Poids | F15: ❸ Quoi | Q15: Exep. 3 œufs de 0.050
D16: 3 | E16: 0.05 | F16: kg | Q16: ❹ Unités | R16: ❺ Poids | S16: ❸ les Ingrédients | T16: ⑦ Quantités | U16: ❻ Quoi
C17: ou | D17: 3 | F17: Œufs | Q17: 3 | R17: 0.05 | S17: œufs | T17: 2.5 | U17: Kg
C18: ou œufs liquides | J18: et cette commande de code dans Worksheet | R18: 0.15 | S18: ou œufs liquides | T18: 0.725 | U18: Kg | Y18: et cette commande de code dans Worksheet
E19: 0.15 | F19: kg | J19: Private Sub Worksheet_SelectionChange(ByVal Target As Range) | Q19: 3 | S19: œufs | T19: 12 | U19: œufs | Y19: Private Sub Worksheet_SelectionChange(ByVal Target As Range)
C20: ❸ Lorsque vous avez des produits à l'unité réduisez les décimales pour une meilleure lecture | J20: Calculate | Q20: ⑦ Lorsque vous avez des produits à l'unité réduisez les décimales pour une meilleure lecture | Y20: Calculate
J21: End Sub | Y21: End Sub
C22: utilisez le pinceau pour ce faire | J22: 15 | K22: 15 | L22: 15 | M22: 15 | N22: largeur de colonnes | T22: ⑦ Quantités | U22: ❻ Quoi | Y22: 15 | Z22: 15 | AA22: 15 | AB22: 15
C23: pour 1 Kg | D23: Kg | E23: Galettes | S23: utilisez le pinceau pour ce faire | T23: 12 | U23: œufs
C24: 1 | D24: 1 | E24: 1.2 | J24: total saisi > | K24: SI(ESTVIDE(Q5);R5;Q5*R5)+SI(ESTVIDE(Q6);R6;Q6*R6) etc… | Y24: Cours VBA : les événements Worksheet
J25: pour 1 Kg | K25: SI(ESTVIDE(B11);C11/C26;SI(ESTVIDE(C11);B11/C26;(C11*B11)/C26)) | Q25: ❽ Nombre de portions prévues par l'Auteur | Y25: Lien> | Z25: https://www.exceltip.com/events-in-vba/the-worksheet-events-in-excel-vba.html
C26: ❹ Référence Auteur | J26: Kg | K26: E11*F8 | Q26: Poids total Auteur ⑨ somme des colonnes ❺ Poids | Y26: Lien> | Z26: https://www.excel-pratique.com/fr/vba/evenements_feuille
J27: Galettes | K27: SI(ESTVIDE(B11);C11/C26*H8;SI(ESTVIDE(C11);B11/(C26*H8);(C11*B11)/(C26*H8))) | Q27: formule utilisée | R27: SI(ESTVIDE(B34);C34;B34*C34)+SI(ESTVIDE(B35);C35;B35*C35) etc..
C28: ❺ Nb de portions prévues par l'Auteur de la recette | Q28: cette formule multiplie les Unités ❹ mais n'additionne que les Poids ❺ | Y28: lien > | Z28: Les unités pifométriques
J29: Cours VBA : les événements Worksheet
G30: < Largeurs de colonnes | J30: Lien> | K30: https://www.exceltip.com/events-in-vba/the-worksheet-events-in-excel-vba.html | Q30: ⑩ poids pour 1 portion | Y30: Impression Portrait 1 recette par feuille A4
C31: Vous pouvez augmenter ou diminuer le poids pour une galette en g ⑥ en augmentant ou diminuant le Nb.portions prévues ❺ | J31: Lien> | K31: https://www.excel-pratique.com/fr/vba/evenements_feuille | Q31: Vous pouvez intervenir sur le poids portion ⑩ en augmentant ou en diminuant le nombre de portions ❽
Y32: ="Page "&_xlfn.SHEET()&" sur "&_xlfn.SHEETS() -> Page 2 sur 11
J33: lien > | K33: Les unités pifométriques
Q34: ⓫ Combien de Portions voulez vous faire | X34: Avant de saisir quoi que ce soit dans une cellule - cliquez dessus pour vérifier qu'il n'y ait pas de formule
C35: ❼ Dupliquer pour : | J35: Impression Portrait 1 recette par feuille A4 | R35: ⑫ Poids à fabriquer = ⑩ X ⓫
C36: vous avez le choix pour un poids ou pour un nombre de crêpes | R36: ⑬ Contrôle Total saisi somme des colonnes ⑦ Quantités
J37: ="Page "&_xlfn.SHEET()&" sur "&_xlfn.SHEETS() -> Page 2 sur 11 | Q37: formule utilisée | R37: SI(ESTNUM(C34);E34)+SI(ESTNUM(C35);E35) etc..
C38: après avoir saisi le poids de votre garniture ❽ | Q38: cette formule n'additionne que les quantités ⑦ à condition qu'il y ait eu un nombre saisi en Poids ❺
J39: PHASES ESSENTIELLES DE PROGRESSION
C40: ⑨ AUTEUR : de la recette | J40: soyez concis 1 verbe = 1 action | Q40: autrement dit elle ne mélange pas ❹ Unités et ❺ Poids sinon allez expliquer à Excel qu'1 œuf ne fait pas 1 Kg
J41: Utilisez le vocabulaire professionnel
J42: la numérotation est automatique
C43: ⑩ saisissez le lien internet de la recette ou de l'Auteur | K43: lorsque vous saisissez du texte | Q43: ④ PHASES ESSENTIELLES DE PROGRESSION
J44: dans la colonne C | Q44: soyez concis 1 verbe = 1 action
C45: 10 | D45: 10 | E45: 10 | F45: 10 | K45: si vous ne voulez pas de numérotation | Q45: Utilisez le vocabulaire professionnel
K46: saisissez votre texte dans la colonne D | Q46: la numérotation est automatique
J47: formule utilisée : SI(ESTVIDE(C30);"";GRANDE.VALEUR(B29:B29;1)+1) | R47: lorsque vous saisissez du texte
Q48: dans la colonne C ou dans la colonne L
R49: si vous ne voulez pas de numérotation
R50: saisissez votre texte dans la colonne D ou K
Q51: formule utilisée :
Q52: colonne B
Q53: SI(ESTVIDE(C27);"";GRANDE.VALEUR(B16:B26;1)+1) | U53: Colonne M
U54: SI(ESTVIDE(L27);"";GRANDE.VALEUR(M15:M26;1)+1)
Q55: 12 | R55: 12 | S55: 19 | T55: 12 | U55: 12 | V55: < Largeurs de colonnes
AC57: FIN
AC58: =ADDRESS(ROW(),COLUMN(),4) -> AC58

Sheet mexicaine.1
A2: ICI | B2: ① | C2: Galette mexicaine | H2: GAL027
A4: CETTE RECETTE EST A CLASSER DANS LA FAMILLE DES GALETTES | B4: ⑨ AUTEUR : Jean Marc CATTEAU du centre AFPA de Saint Nazaire | F4: Recette éditée le : | G4: =NOW() -> 2021-12-19T20:48:18.730
B5: ❹ Référence Auteur
B6: =C26 -> 2.2 | C6: Kg | G6: ❽ poids d'une portion en g > | H6: 150 | K6: J'ai volontairement augmenté le nombre de portions ❺ pour diminuer le poids pour 1 galette en g ⑥ à vous d'ajuster selon votre clientèle
B7: 10 | C7: < Nb.portions prévues ❺ | F7: ❼ A dupliquer pour
B8: =(B6/B7)*1000 -> 220 | C8: < poids pour une galette en g ⑥ | F8: 2.5 | G8: 10 | H8: =H6*G8/1000 -> 1.5
B9: ❷ Unités | C9: ❷ Poids | D9: ❷ Compositon | E9: pour 1 Kg | F9: Kg | G9: Galettes | H9: ❸ Quoi
C10: 1 | D10: Viande de bœuf | E10: =IF(ISBLANK(B10),C10/C26,IF(ISBLANK(C10),B10/C26,(C10*B10)/C26)) -> 0.4545454545 | F10: =E10*F8 -> 1.136363636 | G10: =IF(ISBLANK(B10),C10/C26*H8,IF(ISBLANK(C10),B10/(C26*H8),(C10*B10)/(C26*H8))) -> 0.6818181818 | H10: Kg
B11: 2 | D11: Poivron rouge | E11: =IF(ISBLANK(B11),C11/C26,IF(ISBLANK(C11),B11/C26,(C11*B11)/C26)) -> 0.9090909091 | F11: =E11*F8 -> 2.272727273 | G11: =+IF(ISBLANK(B11),C11/C26*H8,IF(ISBLANK(C11),B11/(C26*H8),(C11*B11)/(C26*H8))) -> 0.6060606061 | H11: poivrons | K11: ❼ Dupliquer pour :
B12: 2 | D12: Poivron Vert | E12: =IF(ISBLANK(B12),C12/C26,IF(ISBLANK(C12),B12/C26,(C12*B12)/C26)) -> 0.9090909091 | F12: =E12*F8 -> 2.272727273 | G12: =IF(ISBLANK(B12),C12/C26*H8,IF(ISBLANK(C12),B12/(C26*H8),(C12*B12)/(C26*H8))) -> 0.6060606061 | H12: poivrons | K12: vous avez le choix pour un poids ou pour un nombre de crêpes
B13: 2 | D13: Poivron Jaune | E13: =IF(ISBLANK(B13),C13/C26,IF(ISBLANK(C13),B13/C26,(C13*B13)/C26)) -> 0.9090909091 | F13: =E13*F8 -> 2.272727273 | G13: =IF(ISBLANK(B13),C13/C26*H8,IF(ISBLANK(C13),B13/(C26*H8),(C13*B13)/(C26*H8))) -> 0.6060606061 | H13: poivrons
B14: 3 | D14: Oignons | E14: =IF(ISBLANK(B14),C14/C26,IF(ISBLANK(C14),B14/C26,(C14*B14)/C26)) -> 1.363636364 | F14: =E14*F8 -> 3.409090909 | G14: =IF(ISBLANK(B14),C14/C26*H8,IF(ISBLANK(C14),B14/(C26*H8),(C14*B14)/(C26*H8))) -> 0.9090909091 | H14: oignons | K14: après avoir saisi le poids de votre garniture ❽
C15: 0.5 | D15: Vin rouge | E15: =IF(ISBLANK(B15),C15/C26,IF(ISBLANK(C15),B15/C26,(C15*B15)/C26)) -> 0.2272727273 | F15: =E15*F8 -> 0.5681818182 | G15: =IF(ISBLANK(B15),C15/C26*H8,IF(ISBLANK(C15),B15/(C26*H8),(C15*B15)/(C26*H8))) -> 0.3409090909 | H15: Kg
C16: 0.25 | D16: Fond de veau lié | E16: =IF(ISBLANK(B16),C16/C26,IF(ISBLANK(C16),B16/C26,(C16*B16)/C26)) -> 0.1136363636 | F16: =E16*F8 -> 0.2840909091 | G16: =+IF(ISBLANK(B16),C16/C26*H8,IF(ISBLANK(C16),B16/(C26*H8),(C16*B16)/(C26*H8))) -> 0.1704545455 | H16: Kg
D17: Cumin | E17: =IF(ISBLANK(B17),C17/C26,IF(ISBLANK(C17),B17/C26,(C17*B17)/C26)) -> 0 | F17: =E17*F8 -> 0 | G17: =IF(ISBLANK(B17),C17/C26*H8,IF(ISBLANK(C17),B17/(C26*H8),(C17*B17)/(C26*H8))) -> 0 | H17: P.m.
D18: Paprika | E18: =IF(ISBLANK(B18),C18/C26,IF(ISBLANK(C18),B18/C26,(C18*B18)/C26)) -> 0 | F18: =E18*F8 -> 0 | G18: =IF(ISBLANK(B18),C18/C26*H8,IF(ISBLANK(C18),B18/(C26*H8),(C18*B18)/(C26*H8))) -> 0 | H18: P.m.
D19: Piment de cayenne | E19: =IF(ISBLANK(B19),C19/C26,IF(ISBLANK(C19),B19/C26,(C19*B19)/C26)) -> 0 | F19: =E19*F8 -> 0 | G19: =IF(ISBLANK(B19),C19/C26*H8,IF(ISBLANK(C19),B19/(C26*H8),(C19*B19)/(C26*H8))) -> 0 | H19: P.m.
D20: Sel | E20: =IF(ISBLANK(B20),C20/C26,IF(ISBLANK(C20),B20/C26,(C20*B20)/C26)) -> 0 | F20: =E20*F8 -> 0 | G20: =IF(ISBLANK(B20),C20/C26*H8,IF(ISBLANK(C20),B20/(C26*H8),(C20*B20)/(C26*H8))) -> 0 | H20: P.m.
C21: 0.2 | D21: Huile d'olives | E21: =IF(ISBLANK(B21),C21/C26,IF(ISBLANK(C21),B21/C26,(C21*B21)/C26)) -> 0.09090909091 | F21: =E21*F8 -> 0.2272727273 | G21: =IF(ISBLANK(B21),C21/C26*H8,IF(ISBLANK(C21),B21/(C26*H8),(C21*B21)/(C26*H8))) -> 0.1363636364 | H21: Kg
C22: 0.25 | D22: Haricots rouges | E22: =IF(ISBLANK(B22),C22/C26,IF(ISBLANK(C22),B22/C26,(C22*B22)/C26)) -> 0.1136363636 | F22: =E22*F8 -> 0.2840909091 | G22: =IF(ISBLANK(B22),C22/C26*H8,IF(ISBLANK(C22),B22/(C26*H8),(C22*B22)/(C26*H8))) -> 0.1704545455 | H22: Kg
E23: =IF(ISBLANK(B23),C23/C26,IF(ISBLANK(C23),B23/C26,(C23*B23)/C26)) -> 0 | F23: =E23*F8 -> 0 | G23: =IF(ISBLANK(B23),C23/C26*H8,IF(ISBLANK(C23),B23/(C26*H8),(C23*B23)/(C26*H8))) -> 0
E24: =IF(ISBLANK(B24),C24/C26,IF(ISBLANK(C24),B24/C26,(C24*B24)/C26)) -> 0 | F24: =E24*F8 -> 0 | G24: =IF(ISBLANK(B24),C24/C26*H8,IF(ISBLANK(C24),B24/(C26*H8),(C24*B24)/(C26*H8))) -> 0
E25: =IF(ISBLANK(B25),C25/C26,IF(ISBLANK(C25),B25/C26,(C25*B25)/C26)) -> 0 | F25: =E25*F8 -> 0 | G25: =IF(ISBLANK(B25),C25/C26*H8,IF(ISBLANK(C25),B25/(C26*H8),(C25*B25)/(C26*H8))) -> 0
B26: total saisi > | C26: =IF(ISBLANK(B10),C10,B10*C10)+IF(ISBLANK(B11),C11,B11*C11)+IF(ISBLANK(B12),C12,B12*C12)+IF(ISBLANK(B13),C13,B13*C13)+IF(ISBLANK(B14),C14,B14*C14)+IF(ISBLANK(B15),C15,B15*C15)+IF(ISBLANK(B16),C16,B16*C16)+IF(ISBLANK(B17),C17,B17*C17)+IF(ISBLANK(B18),C18,B18*C18)+IF(ISBLANK(B19),C19,B19*C19)+IF(ISBLANK(B20),C20,B20*C20)+IF(ISBLANK(B21),C21,B21*C21)+IF(ISBLANK(B22),C22,B22*C22)+IF(ISBLANK(B23),C23,B23*C23)+IF(ISBLANK(B24),C24,B24*C24)+IF(ISBLANK(B25),C25,B25*C25) -> 2.2 | E26: 0 | F26: 0
B27: ⑩ Lien>
B28: =CELL("filename",#REF!) -> 
B29: 0 | C29: MÉTHODE D'EXÉCUTION
B30: =IF(ISBLANK(C30),"",LARGE(B29:B29,1)+1) -> 1 | C30: Faire suer les oignons émincés dans l'huile d'olive
B31: =IF(ISBLANK(C31),"",LARGE(B29:B30,1)+1) -> 2 | C31: Ajouter les poivrons taillés en brunoise, couvrir et laisser cuire quelques minutes
B32: =IF(ISBLANK(C32),"",LARGE(B29:B31,1)+1) -> 3 | C32: Saisir le bœuf couper en lanières, assaisonner avec les épices
B33: =IF(ISBLANK(C33),"",LARGE(B29:B32,1)+1) -> 4 | C33: Déglacer avec le vin rouge, ajouter le fond de veau lié et les haricots rouges
B34: =IF(ISBLANK(C34),"",LARGE(B29:B33,1)+1) -> 5 | C34: Laisser mijoter à feu doux
B35: =IF(ISBLANK(C35),"",LARGE(B29:B34,1)+1) -> 6 | C35: Sur le bilig, étaler votre pâte, beurrer et laisser cuire quelques secondes
B36: =IF(ISBLANK(C36),"",LARGE(B29:B35,1)+1) -> 7 | C36: Ajouter au centre votre préparation tex mex
B37: =IF(ISBLANK(C37),"",LARGE(B29:B36,1)+1) -> 8 | C37: Plier, beurrer et servir aussitôt
B38: =IF(ISBLANK(C38),"",LARGE(B29:B37,1)+1) -> 
B39: =IF(ISBLANK(C39),"",LARGE(B29:B38,1)+1) -> 
B40: =IF(ISBLANK(C40),"",LARGE(B29:B39,1)+1) -> 
B41: =IF(ISBLANK(C41),"",LARGE(B29:B40,1)+1) -> 
B42: =+IF(ISBLANK(C42),"",LARGE(B29:B41,1)+1) -> 
B43: =IF(ISBLANK(C43),"",LARGE(B29:B42,1)+1) ->  | D43: 0
B44: Conception 1998 Cuisine centrale de Clamart Joël Leboucher - Adaptation 2009 Cuisine Centrale de Rochefort sur mer mise à jour décembre 2021 sur un document avec code VBA..de D.DEMILLY
B45: 9.14 | C45: 9 | D45: 30 | E45: 10 | F45: 9 | G45: 11 | H45: 11 | I45: Largeurs de colonnes

Sheet mexicaine.2
A1: 3 | B1: 5 | C1: 11 | D1: 30 | E1: 12 | F1: 11 | G1: 10 | H1: 5 | I1: 11 | J1: 30 | K1: 12 | L1: 11 | M1: 10
A2: Recettes de Jean Marc CATTEAU du centre AFPA de Saint Nazaire
A5: ICI | B5: ① | C5: Galette mexicaine | L5: GAL027
A7: CETTE RECETTE EST A CLASSER DANS LA FAMILLE DES GALETTES | C7: ② Auteur > | D7: Jean Marc CATTEAU du centre AFPA de Saint Nazaire | O7: J'ai parfois volontairement augmenté le nombre de portions ❽ pour diminuer le poids pour 1 portion ⑩ qui ne convenait pas à mes convives
L8: ⓫
B9: 10 | C9: ❽ Nombre de portions | J9: A dupliquer pour | L9: 25
B11: =C50+I50 -> 2.2 | F11: ⑩ poids pour 1 portion | G11: =B11/B9 -> 0.22 | K11: ⑫ Poids à fabriquer | L11: =G11*L9 -> 5.5
O12: ⓫ Combien de Portions voulez vous faire
B13: ⑨ Poids total Auteur | E13: Recette éditée le | F13: =NOW() -> 2021-12-19T20:48:18.730 | K13: ⑬ Contrôle Total saisi | L13: =E33+K33 -> 5.5 | P13: ⑫ Poids à fabriquer = ⑩ X ⓫
P14: ⑬ Contrôle Total saisi somme des colonnes ⑦ Quantités
C15: Vous pouvez intervenir sur le poids portion ⑩ en modifiant le nombre de portions ❽ | I15: ⓫ Combien de Portions voulez vous faire | M15: =LARGE(B16:B31,1) -> 8
B16: 0 | C16: ④ PHASES ESSENTIELLES DE PROGRESSION | M16: =+IF(ISBLANK(L16),"",LARGE(M15:M15,1)+1) -> 
B17: =IF(ISBLANK(C17),"",LARGE(B16:B16,1)+1) ->  | M17: =+IF(ISBLANK(L17),"",LARGE(M15:M16,1)+1) -> 
B18: =+IF(ISBLANK(C18),"",LARGE(B16:B17,1)+1) -> 1 | C18: Faire suer les oignons émincés dans l'huile d'olive | M18: =+IF(ISBLANK(L18),"",LARGE(M15:M17,1)+1) -> 
B19: =IF(ISBLANK(C19),"",LARGE(B16:B18,1)+1) -> 2 | C19: Ajouter les poivrons taillés en brunoise, couvrir et laisser cuire quelques minutes | M19: =+IF(ISBLANK(L19),"",LARGE(M15:M18,1)+1) -> 
B20: =IF(ISBLANK(C20),"",LARGE(B16:B19,1)+1) -> 3 | C20: Saisir le bœuf couper en lanières, assaisonner avec les épices | M20: =+IF(ISBLANK(L20),"",LARGE(M15:M19,1)+1) -> 
B21: =IF(ISBLANK(C21),"",LARGE(B16:B20,1)+1) -> 4 | C21: Déglacer avec le vin rouge, ajouter le fond de veau lié et les haricots rouges | M21: =+IF(ISBLANK(L21),"",LARGE(M15:M20,1)+1) -> 
B22: =IF(ISBLANK(C22),"",LARGE(B16:B21,1)+1) -> 5 | C22: Laisser mijoter à feu doux | M22: =+IF(ISBLANK(L22),"",LARGE(M15:M21,1)+1) -> 
B23: =IF(ISBLANK(C23),"",LARGE(B16:B22,1)+1) -> 6 | C23: Sur le bilig, étaler votre pâte, beurrer et laisser cuire quelques secondes | M23: =+IF(ISBLANK(L23),"",LARGE(M15:M22,1)+1) -> 
B24: =IF(ISBLANK(C24),"",LARGE(B16:B23,1)+1) -> 7 | C24: Ajouter au centre votre préparation tex mex | M24: =+IF(ISBLANK(L24),"",LARGE(M15:M23,1)+1) -> 
B25: =IF(ISBLANK(C25),"",LARGE(B16:B24,1)+1) -> 8 | C25: Plier, beurrer et servir aussitôt | M25: =+IF(ISBLANK(L25),"",LARGE(M15:M24,1)+1) -> 
B26: =IF(ISBLANK(C26),"",LARGE(B16:B25,1)+1) ->  | M26: =+IF(ISBLANK(L26),"",LARGE(M15:M25,1)+1) -> 
B27: =+IF(ISBLANK(C27),"",LARGE(B16:B26,1)+1) ->  | M27: =+IF(ISBLANK(L27),"",LARGE(M15:M26,1)+1) -> 
B28: =IF(ISBLANK(C28),"",LARGE(B16:B27,1)+1) ->  | M28: =+IF(ISBLANK(L28),"",LARGE(M15:M27,1)+1) -> 
B29: =IF(ISBLANK(C29),"",LARGE(B16:B28,1)+1) ->  | M29: =+IF(ISBLANK(L29),"",LARGE(M15:M28,1)+1) -> 
B30: =IF(ISBLANK(C30),"",LARGE(B16:B29,1)+1) ->  | M30: =+IF(ISBLANK(L30),"",LARGE(M15:M29,1)+1) -> 
B31: =IF(ISBLANK(C31),"",LARGE(B16:B30,1)+1) ->  | M31: =+IF(ISBLANK(L31),"",LARGE(M15:M30,1)+1) -> 
B32: ❹ Unités | C32: ❺ Poids | D32: ❸ Ingrédients | E32: ⑦ Quantités | F32: % | G32: ❻ Quoi | H32: ❹ Unités | I32: ❺ Poids | J32: ❸ Ingrédients | K32: ⑦ Quantités | L32: % | M32: ❻ Quoi
D33: S.Total saisi > | E33: =IF(ISNUMBER(C34),E34)+IF(ISNUMBER(C35),E35)+IF(ISNUMBER(C36),E36)+IF(ISNUMBER(C37),E37)+IF(ISNUMBER(C38),E38)+IF(ISNUMBER(C39),E39)+IF(ISNUMBER(C40),E40)+IF(ISNUMBER(C41),E41)+IF(ISNUMBER(C42),E42)+IF(ISNUMBER(C43),E43)+IF(ISNUMBER(C44),E44)+IF(ISNUMBER(C45),E45)+IF(ISNUMBER(C46),E46)+IF(ISNUMBER(C47),E47)+IF(ISNUMBER(C48),E48) -> 5.5 | J33: S.Total saisi > | K33: =IF(ISNUMBER(I34),K34)+IF(ISNUMBER(I35),K35)+IF(ISNUMBER(I36),K36)+IF(ISNUMBER(I37),K37)+IF(ISNUMBER(I38),K38)+IF(ISNUMBER(I39),K39)+IF(ISNUMBER(I40),K40)+IF(ISNUMBER(I41),K41)+IF(ISNUMBER(I42),K42)+IF(ISNUMBER(I43),K43)+IF(ISNUMBER(I44),K44)+IF(ISNUMBER(I45),K45)+IF(ISNUMBER(I46),K46)+IF(ISNUMBER(I47),K47)+IF(ISNUMBER(I48),K48) -> 0
C34: 1 | D34: Viande de bœuf | E34: =IF(ISBLANK(B34),C34/B11*L11,IF(ISBLANK(C34),B34/B11*L11,(B34*C34)/B11*L11)) -> 2.5 | F34: =IF(ISNUMBER(C34),E34/L13,"") -> 0.4545454545 | G34: Kg | K34: =IF(ISBLANK(H34),I34/B11*L11,IF(ISBLANK(I34),H34/B11*L11,(H34*I34)/B11*L11)) -> 0 | L34: =IF(ISNUMBER(I34),K34/L13,"") -> 
B35: 2 | D35: Poivron rouge | E35: =IF(ISBLANK(B35),C35/B11*L11,IF(ISBLANK(C35),B35/B11*L11,(B35*C35)/B11*L11)) -> 5 | F35: =IF(ISNUMBER(C35),E35/L13,"") ->  | G35: poivrons | K35: =IF(ISBLANK(H35),I35/B11*L11,IF(ISBLANK(I35),H35/B11*L11,(H35*I35)/B11*L11)) -> 0 | L35: =IF(ISNUMBER(I35),K35/L13,"") -> 
B36: 2 | D36: Poivron Vert | E36: =IF(ISBLANK(B36),C36/B11*L11,IF(ISBLANK(C36),B36/B11*L11,(B36*C36)/B11*L11)) -> 5 | F36: =IF(ISNUMBER(C36),E36/L13,"") ->  | G36: poivrons | K36: =IF(ISBLANK(H36),I36/B11*L11,IF(ISBLANK(I36),H36/B11*L11,(H36*I36)/B11*L11)) -> 0 | L36: =IF(ISNUMBER(I36),K36/L13,"") -> 
B37: 2 | D37: Poivron Jaune | E37: =IF(ISBLANK(B37),C37/B11*L11,IF(ISBLANK(C37),B37/B11*L11,(B37*C37)/B11*L11)) -> 5 | F37: =IF(ISNUMBER(C37),E37/L13,"") ->  | G37: poivrons | K37: =IF(ISBLANK(H37),I37/B11*L11,IF(ISBLANK(I37),H37/B11*L11,(H37*I37)/B11*L11)) -> 0 | L37: =IF(ISNUMBER(I37),K37/L13,"") -> 
B38: 3 | D38: Oignons | E38: =IF(ISBLANK(B38),C38/B11*L11,IF(ISBLANK(C38),B38/B11*L11,(B38*C38)/B11*L11)) -> 7.5 | F38: =IF(ISNUMBER(C38),E38/L13,"") ->  | G38: oignons | K38: =IF(ISBLANK(H38),I38/B11*L11,IF(ISBLANK(I38),H38/B11*L11,(H38*I38)/B11*L11)) -> 0 | L38: =IF(ISNUMBER(I38),K38/L13,"") -> 
C39: 0.5 | D39: Vin rouge | E39: =IF(ISBLANK(B39),C39/B11*L11,IF(ISBLANK(C39),B39/B11*L11,(B39*C39)/B11*L11)) -> 1.25 | F39: =IF(ISNUMBER(C39),E39/L13,"") -> 0.2272727273 | G39: Kg | K39: =IF(ISBLANK(H39),I39/B11*L11,IF(ISBLANK(I39),H39/B11*L11,(H39*I39)/B11*L11)) -> 0 | L39: =IF(ISNUMBER(I39),K39/L13,"") -> 
C40: 0.25 | D40: Fond de veau lié | E40: =IF(ISBLANK(B40),C40/B11*L11,IF(ISBLANK(C40),B40/B11*L11,(B40*C40)/B11*L11)) -> 0.625 | F40: =IF(ISNUMBER(C40),E40/L13,"") -> 0.1136363636 | G40: Kg | K40: =IF(ISBLANK(H40),I40/B11*L11,IF(ISBLANK(I40),H40/B11*L11,(H40*I40)/B11*L11)) -> 0 | L40: =IF(ISNUMBER(I40),K40/L13,"") -> 
D41: Cumin | E41: =IF(ISBLANK(B41),C41/B11*L11,IF(ISBLANK(C41),B41/B11*L11,(B41*C41)/B11*L11)) -> 0 | F41: =IF(ISNUMBER(C41),E41/L13,"") ->  | G41: P.m. | K41: =IF(ISBLANK(H41),I41/B11*L11,IF(ISBLANK(I41),H41/B11*L11,(H41*I41)/B11*L11)) -> 0 | L41: =IF(ISNUMBER(I41),K41/L13,"") -> 
D42: Paprika | E42: =IF(ISBLANK(B42),C42/B11*L11,IF(ISBLANK(C42),B42/B11*L11,(B42*C42)/B11*L11)) -> 0 | F42: =IF(ISNUMBER(C42),E42/L13,"") ->  | G42: P.m. | K42: =IF(ISBLANK(H42),I42/B11*L11,IF(ISBLANK(I42),H42/B11*L11,(H42*I42)/B11*L11)) -> 0 | L42: =IF(ISNUMBER(I42),K42/L13,"") -> 
D43: Piment de cayenne | E43: =IF(ISBLANK(B43),C43/B11*L11,IF(ISBLANK(C43),B43/B11*L11,(B43*C43)/B11*L11)) -> 0 | F43: =IF(ISNUMBER(C43),E43/L13,"") ->  | G43: P.m. | K43: =IF(ISBLANK(H43),I43/B11*L11,IF(ISBLANK(I43),H43/B11*L11,(H43*I43)/B11*L11)) -> 0 | L43: =IF(ISNUMBER(I43),K43/L13,"") -> 
D44: Sel | E44: =IF(ISBLANK(B44),C44/B11*L11,IF(ISBLANK(C44),B44/B11*L11,(B44*C44)/B11*L11)) -> 0 | F44: =IF(ISNUMBER(C44),E44/L13,"") ->  | G44: P.m. | K44: =IF(ISBLANK(H44),I44/B11*L11,IF(ISBLANK(I44),H44/B11*L11,(H44*I44)/B11*L11)) -> 0 | L44: =IF(ISNUMBER(I44),K44/L13,"") -> 
C45: 0.2 | D45: Huile d'olives | E45: =IF(ISBLANK(B45),C45/B11*L11,IF(ISBLANK(C45),B45/B11*L11,(B45*C45)/B11*L11)) -> 0.5 | F45: =IF(ISNUMBER(C45),E45/L13,"") -> 0.09090909091 | G45: Kg | K45: =IF(ISBLANK(H45),I45/B11*L11,IF(ISBLANK(I45),H45/B11*L11,(H45*I45)/B11*L11)) -> 0 | L45: =IF(ISNUMBER(I45),K45/L13,"") -> 
C46: 0.25 | D46: Haricots rouges | E46: =IF(ISBLANK(B46),C46/B11*L11,IF(ISBLANK(C46),B46/B11*L11,(B46*C46)/B11*L11)) -> 0.625 | F46: =IF(ISNUMBER(C46),E46/L13,"") -> 0.1136363636 | G46: Kg | K46: =IF(ISBLANK(H46),I46/B11*L11,IF(ISBLANK(I46),H46/B11*L11,(H46*I46)/B11*L11)) -> 0 | L46: =IF(ISNUMBER(I46),K46/L13,"") -> 
E47: =IF(ISBLANK(B47),C47/B11*L11,IF(ISBLANK(C47),B47/B11*L11,(B47*C47)/B11*L11)) -> 0 | F47: =IF(ISNUMBER(C47),E47/L13,"") ->  | K47: =IF(ISBLANK(H47),I47/B11*L11,IF(ISBLANK(I47),H47/B11*L11,(H47*I47)/B11*L11)) -> 0 | L47: =IF(ISNUMBER(I47),K47/L13,"") -> 
E48: =IF(ISBLANK(B48),C48/B11*L11,IF(ISBLANK(C48),B48/B11*L11,(B48*C48)/B11*L11)) -> 0 | F48: =IF(ISNUMBER(C48),E48/L13,"") ->  | K48: =IF(ISBLANK(H48),I48/B11*L11,IF(ISBLANK(I48),H48/B11*L11,(H48*I48)/B11*L11)) -> 0 | L48: =IF(ISNUMBER(I48),K48/L13,"") -> 
C50: =IF(ISBLANK(B34),C34,B34*C34)+IF(ISBLANK(B35),C35,B35*C35)+IF(ISBLANK(B36),C36,B36*C36)+IF(ISBLANK(B37),C37,B37*C37)+IF(ISBLANK(B38),C38,B38*C38)+IF(ISBLANK(B39),C39,B39*C39)+IF(ISBLANK(B40),C40,B40*C40)+IF(ISBLANK(B41),C41,B41*C41)+IF(ISBLANK(B42),C42,B42*C42)+IF(ISBLANK(B43),C43,B43*C43)+IF(ISBLANK(B44),C44,B44*C44)+IF(ISBLANK(B45),C45,B45*C45)+IF(ISBLANK(B46),C46,B46*C46)+IF(ISBLANK(B47),C47,B47*C47)+IF(ISBLANK(B48),C48,B48*C48) -> 2.2 | D50: < S.total Auteur - S.total saisi > | E50: =IF(ISNUMBER(C34),E34)+IF(ISNUMBER(C35),E35)+IF(ISNUMBER(C36),E36)+IF(ISNUMBER(C37),E37)+IF(ISNUMBER(C38),E38)+IF(ISNUMBER(C39),E39)+IF(ISNUMBER(C40),E40)+IF(ISNUMBER(C41),E41)+IF(ISNUMBER(C42),E42)+IF(ISNUMBER(C43),E43)+IF(ISNUMBER(C44),E44)+IF(ISNUMBER(C45),E45)+IF(ISNUMBER(C46),E46)+IF(ISNUMBER(C47),E47)+IF(ISNUMBER(C48),E48) -> 5.5 | H50: S.total Auteur > | I50: =IF(ISBLANK(H34),I34,H34*I34)+IF(ISBLANK(H35),I35,H35*I35)+IF(ISBLANK(H36),I36,H36*I36)+IF(ISBLANK(H37),I37,H37*I37)+IF(ISBLANK(H38),I38,H38*I38)+IF(ISBLANK(H39),I39,H39*I39)+IF(ISBLANK(H40),I40,H40*I40)+IF(ISBLANK(H41),I41,H41*I41)+IF(ISBLANK(H42),I42,H42*I42)+IF(ISBLANK(H43),I43,H43*I43)+IF(ISBLANK(H44),I44,H44*I44)+IF(ISBLANK(H45),I45,H45*I45)+IF(ISBLANK(H46),I46,H46*I46)+IF(ISBLANK(H47),I47,H47*I47)+IF(ISBLANK(H48),I48,H48*I48)+IF(ISBLANK(H49),I49,H49*I49) -> 0 | K50: Total Auteur > | L50: =I50+C50 -> 2.2
B51: =CELL("nomfichier") -> E:\0-UPRT\1-UPRT.FR-SITE-WEB\re-recettes-jean-marc-catteau\re-catteau-galettes\[PC-galette-garniture-mexicaine.xls]original
B52: Adaptation : Joël Leboucher..UPRT "Union des Personnels de la Restauration Territoriale" membre du réseau RESTAU'CO
B53: 5 | C53: 11 | D53: 30 | E53: 12 | F53: 11 | G53: 10 | H53: 5 | I53: 11 | J53: 30 | K53: 12 | L53: 11 | M53: 10 | N53: < Largeurs de colonnes

Sheet original
A1: Galette mexicaine | F1: 26
A3: Nombre de portions : | C3: 10 | D3: P.R. portion
H4: Photographie
A5: P. Vente unitaire T.T.C. | D5: %
A7: Matière d'œuvre | B7: Quant. | C7: U | D7: Px U HT | E7: Px T HT | F7: %
A8: Viande de bœuf | B8: 1 | C8: Kg
A9: Poivron rouge | B9: 2 | C9: Pièce
A10: Poivron Vert | B10: 2 | C10: Pièce
A11: Poivron Jaune | B11: 2 | C11: Pièce
A12: Oignons | B12: 3 | C12: Pièce
A13: Vin rouge | B13: 0.5 | C13: Litre
A14: Fond de veau lié | B14: 0.25 | C14: Litre
A15: Cumin | B15: P.m.
A16: Paprika | B16: P.m.
A17: Piment de cayenne | B17: P.m.
A18: Sel | B18: P.m.
A19: Huile d'olives | B19: 0.2 | C19: Litre | H19: TECHNIQUES MISES EN
A20: Haricots rouges | B20: 0.25 | C20: Kg | H20: ŒUVRE
A34: METHODE D'EXECUTION
H35: PLATS SIMILAIRES
A36: 1) Faire suer les oignons émincés dans l'huile d'olive
A37: 2) Ajouter les poivrons taillés en brunoise, couvrir et laisser cuire quelques minutes
A38: 3) Saisir le bœuf couper en lanières, assaisonner avec les épices
A39: 4) Déglacer avec le vin rouge, ajouter le fond de veau lié et les haricots rouges
A40: 5) Laisser mijoter à feu doux
A41: 6) Sur le bilig, étaler votre pâte, beurrer et laisser cuire quelques secondes
A42: 7) Ajouter au centre votre préparation tex mex
A43: 8) Plier, beurrer et servir aussitôt
H45: LEG. CONSEILLES
A56: Bonne utilisation
A57: Joel Leboucher Cuisine Centrale de Rochefort sur mer
A58: Centre AFPA Saint Nazaire
A59: Centre AFPA Rochefort sur Mer

Sheet Comment copier-coller
C3: Si vous êtes dans un classeur xlsm c'est que certaines feuilles contiennent du code VBA dans Worksheet
C4: et si vous voulez coller quoi que ce soit dans la feuille vous devez procéder comme suit :
D5: 1 clic droit sur le ruban en haut de l'écran (personnaliser le ruban)
D13: 2 cocher Développeur OK
D14: 3 cliquer sur le logo Mode de création
D19: maintenant vous pouvez copier coller ce que vous voulez
D20: ensuite décliquez sur le logo et décochez le développeur si vous n'en avez plus besoin
K22: ="Page "&_xlfn.SHEET()&" sur "&_xlfn.SHEETS() -> Page 6 sur 11
C48: Pour coller sur une feuille contenant du code VBA
C50: Mettez en surbrillance la ligne et la colonne actives dans Excel
C52: Voici les étapes pour mettre en surbrillance la ligne et la colonne actives lors de la sélection :
C54: Sélectionnez l'ensemble de données dans lequel vous mettez en surbrillance la ligne/colonne active.
C55: Allez dans l'onglet Accueil.
C56: Cliquez sur Mise en forme conditionnelle, puis sur Nouvelle règle.
C57: Dans la boîte de dialogue Nouvelle règle de formatage, sélectionnez "Utiliser une formule pour déterminer les cellules à formater".
C58: Dans le champ Description de la règle, saisissez la formule : =OR(CELL(“col”)=COLUMN(),CELL(“row”)=ROW())
C59: Cliquez sur le bouton Format et spécifiez le formatage (la couleur dans laquelle vous souhaitez mettre la ligne/colonne en surbrillance).
C60: Cliquez sur OK.
C62: Les étapes ci-dessus ont pris soin de mettre en surbrillance la ligne active et la colonne active (avec la même couleur) chaque fois qu'il y a un événement de changement de sélection .
C64: Cependant, pour que cela fonctionne, vous devez placer un simple code VBA dans le worksheet

Sheet Code VBA
C3: Mettre en surbrillance la ligne et la colonne actives dans Excel
C4: Comment faire :
C6: Première étape
C7: cliquez sur l'onglet de la page
C8: clic droit Visualiser le code et coller les 3 lignes suivantes dans Worksheet
C9: Private Sub Worksheet_SelectionChange(ByVal Target As Range)
C10: Calculate
C11: End Sub
C13: pour les couleurs c'est de la mise en forme conditionnelle avec cette formule :
C14: =OU(LIGNE()=CELLULE("ligne");COLONNE()=CELLULE("colonne"))
C16: Comment faire :
C18: Sélectionnez l'ensemble de données dans lequel vous mettez en surbrillance la ligne/colonne active.
C19: Allez dans l'onglet Accueil.
C20: Cliquez sur Mise en forme conditionnelle, puis sur Nouvelle règle.
C21: Dans la boîte de dialogue Nouvelle règle de formatage, sélectionnez "Utiliser une formule pour déterminer les cellules à formater".
C22: Dans le champ Description de la règle, saisissez la formule : ' =OU(LIGNE()=CELLULE("ligne");COLONNE()=CELLULE("colonne"))
C23: Cliquez sur le bouton Format et spécifiez le formatage (la couleur dans laquelle vous souhaitez mettre la ligne/colonne en surbrillance).
C24: Cliquez sur OK.
O25: ="Page "&_xlfn.SHEET()&" sur "&_xlfn.SHEETS() -> Page 7 sur 11

Sheet qu'est-ce qu'un "Postit"
A1: 3 | B1: =CELL("largeur",B1) -> 11 | C1: 11 | D1: 11 | E1: 11 | F1: 11 | G1: 11 | H1: 11 | I1: 11 | J1: 11 | K1: 11 | L1: 11 | M1: 11 | N1: 11 | O1: 11 | P1: 11 | Q1: =CELL("largeur",Q1) -> 11 | R1: <fonction CELLULE("largeur";Q1)
A2: Mise à jour du 2 Décembre 2021
P4: ="Page "&_xlfn.SHEET()&" sur "&_xlfn.SHEETS() -> Page 8 sur 11
C7: QU'EST-CE QU'UNE FICHE DE FABRICATION DE TYPE "POSTIT"© | S7: SERVICE AU POIDS Explication
C8: Tel un Postit © c'est une fiche Excel autonome facilement copiable et transposable dans n'importe quelle feuille
C9: Lien > | D9: Mettez la collaboration au coeur de votre environnement de travail | T9: Cela demande un peu plus d'attention que pour le service à la portion
C10: "POSTIT" QUEL INTÉRÊT | T10: les poids - les cuillères à café le nombre de pièces : tout est mélangé
C11: Chaque postit étant indépendant vous pouvez le copier et le coller dans n'importe quelle feuille Excel | T11: si bien que vous obtenez un poids total ④ complètement faux
C12: pour vous constituer un répertoire | T12: c'est pourquoi ② vous avez 2 colonnes 1 pour les (unités ou quantités) l'autre pour les poids
C13: Vous pouvez assembler plusieurs postit(s) sur une même feuille pour créer votre recette
C14: Exemple : pour une recette de gateau…allez chercher dans vos répertoires la recette du biscuit qui vous convient | T14: Formule :
C15: le mieux ajoutez une ou deux crèmes qui vont bien et terminez en ajoutant un postit éléments de décor | T15: Quantité de chaque produit | W15: X par ce que vous voulez dupliquer ⑥
C16: Idem pour des recettes de cuisine faites des répertoires : | T16: ❺ Référence Auteur
C17: de garnitures aromatiques de cuisson
C18: de sauces diverses et variées | T18: Convertissez tout de suite les volumes en poids sur la base de 1L = 1Kg
C19: de garnitures de finitions ou de décor | T19: ¼ de botte de fines herbes - allez expliquer cela à Excel (0.25)
C20: Faites "votre marché" dans vos répertoires et assemblez le tout sur une même feuille Excel | T20: ½ citron 0.5 ¾ de litre 0.75
C21: comment copier un "Postit" : cliquez sur la cellule ICI dans l'angle gauche puis déportez la souris vers la droit le postit | T21: Exemple
C22: est sélectionné il ne vous reste plus qu'a le copier et le coller dans votre répertoire | T22: Qt. Auteur
O23: ne sont "postit" que les fiches avec cellule | P23: ICI | Q23: ICI | T23: Unités | U23: Poids | X23: Denrées | Z23: Quoi
C24: Liens > | D24: Comment créer une Arborescence de dossiers | T24: ② | X24: ① | Z24: ③
D25: La méthode simple pour classer ses dossiers, fichiers et documents sur son ordinateur | T25: 0.25 | X25: ¼ de botte de fines herbe | Y25: =IF(ISBLANK(T25),U25,IF(ISBLANK(U25),T25,T25*U25)) -> 0.25 | Z25: bottes
D26: Organiser vos documents (nommer, stocker, classer…) | T26: 0.5 | X26: ½ citron | Y26: =IF(ISBLANK(T26),U26,IF(ISBLANK(U26),T26,T26*U26)) -> 0.5 | Z26: citrons
D27: Windows 10 : 15 astuces pour maîtriser l’explorateur de fichiers comme un pro | T27: 0.75 | X27: ¾ de litre | Y27: 0.75 | Z27: litres
T28: 10 | X28: jaunes d'œufs | Y28: 10 | Z28: jaunes
C29: Bonne utilisation. A vous de faire évoluer ces documents…et n'hésitez pas à tramsmettre vos savoirs faire…… | T29: 15 | U29: 0.03 | X29: blancs d'œufs de 30g | Y29: 0.45 | Z29: kg
C30: pour aider les jeunes en formation ou donner des idées à vos collègues des métiers de bouche | U30: 0.2 | X30: OU jaunes d'œufs liquides | Y30: 0.2 | Z30: kg
C31: Joël Leboucher | U31: 0.125 | X31: farine | Y31: =IF(ISBLANK(T31),U31,IF(ISBLANK(U31),T31,T31*U31)) -> 0.125 | Z31: kg
C32: Adaptation 2016 : Joël Leboucher..UPRT "Union des Personnels de la Restauration Territoriale" membre du réseau RESTAU'CO
T33: ❺ Référence Auteur
T34: soit vous saisisez le total ④ dans la cellule ❺ ou mettez les 2 cellules en liaison en liaison =
T36: soit vous faites le choix de dupliquer la recette à partir d'une denrée Exemple farine
T37: ❺ Référence Auteur | W37: ⑤ Dupliqué pour
T38: 0.125 | U38: Kg de farine | W38: 1 | X38: =U38 -> Kg de farine
T40: OU Autre portions.couverts.plaques etc
T42: Si vous supprimez des lignes inutiles
T43: ne pas supprimer ces 4 lignes | V43: ❹ > | W43: SI(ESTVIDE(#REF!);#REF!;#REF!*#REF!)
V44: Supprimez les erreurs #REF! dans la barre de formule
T46: saisissez le NOM DE LA RECETTE | W46: ICI EGALEMENT
V47: Traçabilité | W47: Auteur >
V48: si vous utilisez cette recette pour une | W48: < recette pour CHARLOTTE POIRE CARAMEL
V49: autre utilisation vous aurez une traçabilité
W50: Préparation > | X50: 2 | Y50: Cuisson > | Z50: 2
X51: saissez un nombre la cellule est formatée pour ajouter mn
S53: Ce modèle de fiche s'utilise comme un "Postit"
S54: Exemples que des recettes sans procédures - des fiches avec procédures en dessous etc..soyez imaginatif
S56: Lien internet > vous pouvez coller des liens internet pour retrouver une recette sur le web | W56: Saisissez votre texte faire court et concis
W57: 1 verbe = 1 action
T60: Recette et progression peuvent être utilisés comme "postits" indépendants.Vous pouvez donc les copier/déplacer comme vous le voulez
T65: Option d'affichage : décocher : Afficher un zéro dans les cellules qui ont une valeur nulle
S76: SERVICE A LA PORTION
T78: Vous pouvez détourner et simplifier l'utilisation de cette fiche
T79: en cellule ❺ saisissez un nombre de portions - de plaques -de louches
T80: ou tout ce que vous voulez
T81: en cellule ⑥ saisissez ce que vous voulez obtenir
S83: 12 | T83: 12 | U83: 12 | V83: 12 | W83: 12 | X83: 12 | Y83: 12 | Z83: 12 | AA83: FIN
AA84: =ADDRESS(ROW(),COLUMN(),4) -> AA84

Sheet Vocabulaire
B1: Mise à jour du 14 Décembre 2021 | I1: ="Page "&_xlfn.SHEET()&" sur "&_xlfn.SHEETS() -> Page 9 sur 11
W2: VOCABULAIRE PROFESSIONNEL un verbe…une action | AP2: Le vocabulaire professionnel en pâtisserie
B3: VOCABULAIRE PROFESSIONNEL " CUISINE DE COMPOSITION" | L3: VOCABULAIRE PROFESSIONNEL "La CUISINE DE REFERENCE" Michel MAINCENT | W3: En complément vous avez des liens en bas de page | AH3: Quelques verbes d'action complémentaires | AR3: faire court …1 verbe = 1 action | AV3: EXEMPLE UN PEU PLUS LONG :
C4: A | E4: E | G4: P | I4: R | M4: A | O4: D | Q4: H | S4: R | W4: A | Y4: D | AA4: F | AC4: M | AE4: R | AG4: T | AH4: 1 | AI4: accomplir | AK4: =AH59+1 -> 57 | AL4: générer | AO4: Lien > | AP4: http://www.juliemyrtille.com/lexique_du_patissier/ | AR4: PHASES ESSENTIELLES DE PROGRESSION | AV4: PHASES ESSENTIELLES DE PROGRESSION
B5: 1 | C5: Abaisser la temp. à coeur | D5: =B22+1 -> 16 | E5: Egrener | F5: =D26+1 -> 32 | G5: Parfumer | H5: =F24+1 -> 51 | I5: Respecter le délai de 2 H | L5: 1 | M5: Abaisser | N5: =L52+1 -> 46 | O5: Dépouiller | P5: =N52+1 -> 91 | Q5: Habiller | R5: =P52+1 -> 130 | S5: Réduire | V5: 1 | W5: Abaisser | X5: =V62+1 -> 56 | Y5: Dauber | Z5: =X63+1 -> 113 | AA5: Façonner | AB5: =Z62+1 -> 163 | AC5: Macérer | AD5: =AB62+1 -> 217 | AE5: Rabattre | AF5: =AD57+1 -> 268 | AG5: Tabler | AH5: =LARGE(AH4:AH4,1)+1 -> 2 | AI5: acheter | AK5: =LARGE(AK4:AK4,1)+1 -> 58 | AL5: gérer | AP5: A | AS5: Exemple pour un filet de sole Duglére | AW5: Exemple pour une brandade de morue Bénédictine
B6: =LARGE(B5:B5,1)+1 -> 2 | C6: Accompagner | D6: =LARGE(D5:D5,1)+1 -> 17 | E6: Eliminer | F6: =LARGE(F5:F5,1)+1 -> 33 | G6: Parsemer | H6: =LARGE(H5:H5,1)+1 -> 52 | I6: Retirer | L6: =LARGE(L5:L5,1)+1 -> 2 | M6: Abricoter | N6: =LARGE(N5:N5,1)+1 -> 47 | O6: Dérober | P6: =LARGE(P5:P5,1)+1 -> 92 | Q6: Hacher | R6: =LARGE(R5:R5,1)+1 -> 131 | S6: Relever | V6: =LARGE(V5:V5,1)+1 -> 2 | W6: Abaisser la temp. à coeur | X6: =LARGE(X5:X5,1)+1 -> 57 | Y6: Décanter | Z6: =LARGE(Z5:Z5,1)+1 -> 114 | AA6: Faire bouillir | AB6: =LARGE(AB5:AB5,1)+1 -> 164 | AC6: Maintenir en temp. sup à 63° | AD6: =LARGE(AD5:AD5,1)+1 -> 218 | AE6: Raccourcir | AF6: =LARGE(AF5:AF5,1)+1 -> 269 | AG6: Tailler | AH6: =LARGE(AH4:AH5,1)+1 -> 3 | AI6: achever | AK6: =LARGE(AK4:AK5,1)+1 -> 59 | AL6: identifier | AP6: Abaisse : morceau de pâte que l’on étale au rouleau à une épaisseur voulue | AR6: 1 | AS6: habiller les soles
B7: =LARGE(B5:B6,1)+1 -> 3 | C7: Additionner | D7: =LARGE(D5:D6,1)+1 -> 18 | E7: Enfourner | F7: =LARGE(F5:F6,1)+1 -> 34 | G7: Peler | H7: =LARGE(H5:H6,1)+1 -> 53 | I7: Retourner | L7: =LARGE(L5:L6,1)+1 -> 3 | M7: Arroser | N7: =LARGE(N5:N6,1)+1 -> 48 | O7: Désosser | P7: =LARGE(P5:P6,1)+1 -> 93 | Q7: Historier | R7: =LARGE(R5:R6,1)+1 -> 132 | S7: Remonter | V7: =LARGE(V5:V6,1)+1 -> 3 | W7: Abricoter | X7: =LARGE(X5:X6,1)+1 -> 58 | Y7: Décercler | Z7: =LARGE(Z5:Z6,1)+1 -> 115 | AA7: Farcir | AB7: =LARGE(AB5:AB6,1)+1 -> 165 | AC7: Manchonner | AD7: =LARGE(AD5:AD6,1)+1 -> 219 | AE7: Rafraîchir | AF7: =LARGE(AF5:AF6,1)+1 -> 270 | AG7: Tamiser | AH7: =LARGE(AH4:AH6,1)+1 -> 4 | AI7: activer | AK7: =LARGE(AK4:AK6,1)+1 -> 60 | AL7: imaginer | AP7: Abaisser : étaler une pâte au rouleau à une épaisseur voulue. | AR7: 2 | AS7: les dépouiller | AV7: ❶ | AW7: Mise en place du poste de travail
B8: =LARGE(B5:B7,1)+1 -> 4 | C8: Adjoindre | D8: =LARGE(D5:D7,1)+1 -> 19 | E8: Enfourner | F8: =LARGE(F5:F7,1)+1 -> 35 | G8: Porter à ébullition | H8: =LARGE(H5:H7,1)+1 -> 54 | I8: Rincer | L8: =LARGE(L5:L7,1)+1 -> 4 | M8: Assaisonner | N8: =LARGE(N5:N7,1)+1 -> 49 | O8: Dessécher | Q8: I | R8: =LARGE(R5:R7,1)+1 -> 133 | S8: Revenir | V8: =LARGE(V5:V7,1)+1 -> 4 | W8: Accoler | X8: =LARGE(X5:X7,1)+1 -> 59 | Y8: Décorer | Z8: =LARGE(Z5:Z7,1)+1 -> 116 | AA8: Farder | AB8: =LARGE(AB5:AB7,1)+1 -> 166 | AC8: Manier | AD8: =LARGE(AD5:AD7,1)+1 -> 220 | AE8: Raidir | AF8: =LARGE(AF5:AF7,1)+1 -> 271 | AG8: Tamponner | AH8: =LARGE(AH4:AH7,1)+1 -> 5 | AI8: agrandir | AK8: =LARGE(AK4:AK7,1)+1 -> 61 | AL8: inscrire | AP8: Abricoter : étendre une confiture d’abricot à l’aide d’un pinceau sur un entremets, sur une tarte ou une préparation pour la rendre brillante et la protéger en surface en limitant les risques de dessèchement et de brunissement enzymatique. | AR8: 3 | AS8: les mettre en filet | AV8: 1 | AW8: verifier les DLC
B9: =LARGE(B5:B8,1)+1 -> 5 | C9: Agir rapidement | D9: =LARGE(D5:D8,1)+1 -> 20 | E9: Etaler | F9: =LARGE(F5:F8,1)+1 -> 36 | G9: Préchauffer | I9: S | M9: B | N9: =LARGE(N5:N8,1)+1 -> 50 | O9: Détendre | P9: =LARGE(P5:P8,1)+1 -> 94 | Q9: Inciser | R9: =LARGE(R5:R8,1)+1 -> 134 | S9: Rissoler | V9: =LARGE(V5:V8,1)+1 -> 5 | W9: Accompagner | X9: =LARGE(X5:X8,1)+1 -> 60 | Y9: Décortiquer | Z9: =LARGE(Z5:Z8,1)+1 -> 117 | AA9: Fariner | AB9: =LARGE(AB5:AB8,1)+1 -> 167 | AC9: Manipuler | AD9: =LARGE(AD5:AD8,1)+1 -> 221 | AE9: Rassir | AF9: =LARGE(AF5:AF8,1)+1 -> 272 | AG9: Tapisser | AH9: =LARGE(AH4:AH8,1)+1 -> 6 | AI9: ajuster | AK9: =LARGE(AK4:AK8,1)+1 -> 62 | AL9: insérer | AP9: Accoler : réunir, rassembler deux ou plusieurs éléments pour constituer un gâteau, un élément de fabrication ou autre. | AR9: 4 | AS9: dégorger le tout 1/2 heure à l'eau fraiche | AV9: 2 | AW9: peser les denrées
B10: =LARGE(B5:B9,1)+1 -> 6 | C10: Ajouter | E10: F | F10: =LARGE(F5:F9,1)+1 -> 37 | G10: Prélever | H10: =LARGE(H5:H9,1)+1 -> 55 | I10: Saupoudrer | L10: =LARGE(L5:L9,1)+1 -> 5 | M10: Barder | N10: =LARGE(N5:N9,1)+1 -> 51 | O10: Dorer | Q10: L | R10: =LARGE(R5:R9,1)+1 -> 135 | S10: Rompre | V10: =LARGE(V5:V9,1)+1 -> 6 | W10: Additionner | X10: =LARGE(X5:X9,1)+1 -> 61 | Y10: Décuire | Z10: =LARGE(Z5:Z9,1)+1 -> 118 | AA10: Festonner | AB10: =LARGE(AB5:AB9,1)+1 -> 168 | AC10: Marbrer | AD10: =LARGE(AD5:AD9,1)+1 -> 222 | AE10: Rayer | AF10: =LARGE(AF5:AF9,1)+1 -> 273 | AG10: Terminer | AH10: =LARGE(AH4:AH9,1)+1 -> 7 | AI10: améliorer | AK10: =LARGE(AK4:AK9,1)+1 -> 63 | AL10: inspecter | AP10: Appareil : mélange de différentes substances alimentaires entrant dans la composition d’une préparation de pâtisserie. | AR10: 5 | AS10: hacher finement oignons et échalotes | AV10: 3 | AW10: sélectionner le matériel
B11: =LARGE(B5:B10,1)+1 -> 7 | C11: Aplatir | D11: =LARGE(D5:D10,1)+1 -> 21 | E11: Faire bouillir | F11: =LARGE(F5:F10,1)+1 -> 38 | G11: Préparer | H11: =LARGE(H5:H10,1)+1 -> 56 | I11: Servir | L11: =LARGE(L5:L10,1)+1 -> 6 | M11: Beurrer | N11: =LARGE(N5:N10,1)+1 -> 52 | O11: Dresser | P11: =LARGE(P5:P10,1)+1 -> 95 | Q11: Lier | R11: =LARGE(R5:R10,1)+1 -> 136 | S11: Rôtir | V11: =LARGE(V5:V10,1)+1 -> 7 | W11: Adjoindre | X11: =LARGE(X5:X10,1)+1 -> 62 | Y11: Déffilandrer | Z11: =LARGE(Z5:Z10,1)+1 -> 119 | AA11: Fileter | AB11: =LARGE(AB5:AB10,1)+1 -> 169 | AC11: Mariner | AD11: =LARGE(AD5:AD10,1)+1 -> 223 | AE11: Réaliser | AF11: =LARGE(AF5:AF10,1)+1 -> 274 | AG11: Tomber | AH11: =LARGE(AH4:AH10,1)+1 -> 8 | AI11: aménager | AK11: =LARGE(AK4:AK10,1)+1 -> 64 | AL11: installer | AP11: Apprêt : technique survenant après le façonnage d’une pâte levée fermentée (pain, brioche…), pour assurer le développement des pièces par la fermentation avant la cuisson. | AR11: 6 | AS11: monder épépiner concasser les tomates | AV11: 4 | AW11: désinfecter le matériel et le poste de travail suivant la procédure
C12: B | E12: G | F12: =LARGE(F5:F11,1)+1 -> 39 | G12: Protéger | H12: =LARGE(H5:H11,1)+1 -> 57 | I12: Snacker | L12: =LARGE(L5:L11,1)+1 -> 7 | M12: Blanchir | O12: E | P12: =LARGE(P5:P11,1)+1 -> 96 | Q12: Limoner | S12: S | V12: =LARGE(V5:V11,1)+1 -> 8 | W12: Agir rapidement | X12: =LARGE(X5:X11,1)+1 -> 63 | Y12: Déglacer | Z12: =LARGE(Z5:Z11,1)+1 -> 120 | AA12: Fixer | AB12: =LARGE(AB5:AB11,1)+1 -> 170 | AC12: Marquer | AD12: =LARGE(AD5:AD11,1)+1 -> 224 | AE12: Réchauffer en moins d'1 H | AF12: =LARGE(AF5:AF11,1)+1 -> 275 | AG12: Torréfier | AH12: =LARGE(AH4:AH11,1)+1 -> 9 | AI12: analyser | AK12: =LARGE(AK4:AK11,1)+1 -> 65 | AL12: inventer | AP12: Aromatiser : incorporer un arôme ou un aromate à une préparation. | AR12: 7 | AS12: concasser le persil
B13: =LARGE(B5:B12,1)+1 -> 8 | C13: Battre | D13: =LARGE(D5:D12,1)+1 -> 22 | E13: Garnir | G13: R | I13: T | L13: =LARGE(L5:L12,1)+1 -> 8 | M13: Blondir | N13: =LARGE(N5:N12,1)+1 -> 53 | O13: Ebarber | P13: =LARGE(P5:P12,1)+1 -> 97 | Q13: Lisser | R13: =LARGE(R5:R12,1)+1 -> 137 | S13: Saigner | V13: =LARGE(V5:V12,1)+1 -> 9 | W13: Ajouter | X13: =LARGE(X5:X12,1)+1 -> 64 | Y13: Dégorger | Z13: =LARGE(Z5:Z12,1)+1 -> 121 | AA13: Flamber | AB13: =LARGE(AB5:AB12,1)+1 -> 171 | AC13: Masquer | AD13: =LARGE(AD5:AD12,1)+1 -> 225 | AE13: Recouvrir | AF13: =LARGE(AF5:AF12,1)+1 -> 276 | AG13: Tourer | AH13: =LARGE(AH4:AH12,1)+1 -> 10 | AI13: appliquer | AK13: =LARGE(AK4:AK12,1)+1 -> 66 | AL13: inventorier | AP13: B | AR13: 8 | AS13: pocher les filets pliés à très court mouillement
C14: C | E14: I | F14: =LARGE(F5:F13,1)+1 -> 40 | G14: Réaliser | H14: =LARGE(H5:H13,1)+1 -> 58 | I14: Terminer | L14: =LARGE(L5:L13,1)+1 -> 9 | M14: Bouler | N14: =LARGE(N5:N13,1)+1 -> 54 | O14: Ecailler | P14: =LARGE(P5:P13,1)+1 -> 98 | Q14: Lustrer | R14: =LARGE(R5:R13,1)+1 -> 138 | S14: Saisir | V14: =LARGE(V5:V13,1)+1 -> 10 | W14: Aplatir | X14: =LARGE(X5:X13,1)+1 -> 65 | Y14: Dégourdir | Z14: =LARGE(Z5:Z13,1)+1 -> 122 | AA14: Flanquer | AB14: =LARGE(AB5:AB13,1)+1 -> 172 | AC14: Masser | AD14: =LARGE(AD5:AD13,1)+1 -> 226 | AE14: Rectifier | AF14: =LARGE(AF5:AF13,1)+1 -> 277 | AG14: Tourner | AH14: =LARGE(AH4:AH13,1)+1 -> 11 | AI14: approuver | AK14: =LARGE(AK4:AK13,1)+1 -> 67 | AL14: localiser | AP14: Beurrer : | AS14: sur toute cette garniture avec un peu de vin blanc | AV14: ❷ | AW14: Préparations préliminaires
B15: =LARGE(B5:B14,1)+1 -> 9 | C15: Chauffer | D15: =LARGE(D5:D14,1)+1 -> 23 | E15: Incorporer | F15: =LARGE(F5:F14,1)+1 -> 41 | G15: Réchauffer en moins d'1 H | I15: U | L15: =LARGE(L5:L14,1)+1 -> 10 | M15: Braiser | N15: =LARGE(N5:N14,1)+1 -> 55 | O15: Ecaler | Q15: M | R15: =LARGE(R5:R14,1)+1 -> 139 | S15: Sangler | V15: =LARGE(V5:V14,1)+1 -> 11 | W15: Aromatiser | X15: =LARGE(X5:X14,1)+1 -> 66 | Y15: Dégraisser | Z15: =LARGE(Z5:Z14,1)+1 -> 123 | AA15: Fleurer | AB15: =LARGE(AB5:AB14,1)+1 -> 173 | AC15: Mélanger | AD15: =LARGE(AD5:AD14,1)+1 -> 227 | AE15: Réduire | AF15: =LARGE(AF5:AF14,1)+1 -> 278 | AG15: Travailler | AH15: =LARGE(AH4:AH14,1)+1 -> 12 | AI15: archiver | AK15: =LARGE(AK4:AK14,1)+1 -> 68 | AL15: maintenir | AP15: – ajouter de beurre à une sauce | AR15: 9 | AS15: cuire 4 à 6 mn | AV15: 1 | AW15: La veille, décongeler les filets de morue suivant la procédure.
B16: =LARGE(B5:B15,1)+1 -> 10 | C16: Conserver | D16: =LARGE(D5:D15,1)+1 -> 24 | E16: Indications packaging | F16: =LARGE(F5:F15,1)+1 -> 42 | G16: Recouvrir | H16: =LARGE(H5:H15,1)+1 -> 59 | I16: Utiliser | L16: =LARGE(L5:L15,1)+1 -> 11 | M16: Brider | N16: =LARGE(N5:N15,1)+1 -> 56 | O16: Ecorcher | P16: =LARGE(P5:P15,1)+1 -> 99 | Q16: Macérer | R16: =LARGE(R5:R15,1)+1 -> 140 | S16: Sauter | V16: =LARGE(V5:V15,1)+1 -> 12 | W16: Arroser | X16: =LARGE(X5:X15,1)+1 -> 67 | Y16: Déhousser | Z16: =LARGE(Z5:Z15,1)+1 -> 124 | AA16: Foisonner | AB16: =LARGE(AB5:AB15,1)+1 -> 174 | AC16: Meringuer | AD16: =LARGE(AD5:AD15,1)+1 -> 228 | AE16: Refroidir | AF16: =LARGE(AF5:AF15,1)+1 -> 279 | AG16: Tremper | AH16: =LARGE(AH4:AH15,1)+1 -> 13 | AI16: assembler | AK16: =LARGE(AK4:AK15,1)+1 -> 69 | AL16: manier | AP16: – enduire un moule ou un ustensile de beurre afin d’empêcher les mets d’attacher au fond ou aux parois. | AR16: 10 | AS16: débarrasser les filets sur plat beurré
B17: =LARGE(B5:B16,1)+1 -> 11 | C17: Contrôler | E17: J | F17: =LARGE(F5:F16,1)+1 -> 43 | G17: Rectifier | I17: V | M17: C | N17: =LARGE(N5:N16,1)+1 -> 57 | O17: Ecosser | P17: =LARGE(P5:P16,1)+1 -> 100 | Q17: Manchonner | R17: =LARGE(R5:R16,1)+1 -> 141 | S17: Serrer | V17: =LARGE(V5:V16,1)+1 -> 13 | W17: Assaisonner | X17: =LARGE(X5:X16,1)+1 -> 68 | Y17: Délayer | Z17: =LARGE(Z5:Z16,1)+1 -> 125 | AA17: Foncer | AB17: =LARGE(AB5:AB16,1)+1 -> 175 | AC17: Mettre au point | AD17: =LARGE(AD5:AD16,1)+1 -> 229 | AE17: Régénérer | AF17: =LARGE(AF5:AF16,1)+1 -> 280 | AG17: Tronçonner | AH17: =LARGE(AH4:AH16,1)+1 -> 14 | AI17: attacher | AK17: =LARGE(AK4:AK16,1)+1 -> 70 | AL17: manœuvrer | AP17: – incorporer du beurre dans la détrempe d’une pâte feuilletée ou d’une pâte levée feuilletée, pour le tourage. | AR17: 11 | AS17: les tenir au chaud | AV17: 2 | AW17: Éventuellement, dessaler par trempage dans un grand volume d'eau.
C18: D | D18: =LARGE(D5:D17,1)+1 -> 25 | E18: Jeter | F18: =LARGE(F5:F17,1)+1 -> 44 | G18: Refroidir | H18: =LARGE(H5:H17,1)+1 -> 60 | I18: Vérifier la temp. | L18: =LARGE(L5:L17,1)+1 -> 12 | M18: Canneler | N18: =LARGE(N5:N17,1)+1 -> 58 | O18: Ecumer | P18: =LARGE(P5:P17,1)+1 -> 101 | Q18: Marbrer | R18: =LARGE(R5:R17,1)+1 -> 142 | S18: Singer | W18: B | X18: =LARGE(X5:X17,1)+1 -> 69 | Y18: Démouler | Z18: =LARGE(Z5:Z17,1)+1 -> 126 | AA18: Fondre | AB18: =LARGE(AB5:AB17,1)+1 -> 176 | AC18: Mettre en cuisson | AD18: =LARGE(AD5:AD17,1)+1 -> 230 | AE18: Réhydrater | AF18: =LARGE(AF5:AF17,1)+1 -> 281 | AG18: Trousser | AH18: =LARGE(AH4:AH17,1)+1 -> 15 | AI18: attribuer | AK18: =LARGE(AK4:AK17,1)+1 -> 71 | AL18: mesurer | AP18: Bain-marie : eau plus ou moins chaude dans laquelle on place des récipients contenant des préparations à cuire ou à tenir au chaud. | AR18: 12 | AS18: réduire la garniture presque à sec
B19: =LARGE(B5:B18,1)+1 -> 12 | C19: Décorer | E19: L | F19: =LARGE(F5:F18,1)+1 -> 45 | G19: Réhydrater | H19: =LARGE(H5:H18,1)+1 -> 61 | I19: Verser | L19: =LARGE(L5:L18,1)+1 -> 13 | M19: Caraméliser | N19: =LARGE(N5:N18,1)+1 -> 59 | O19: Effilandrer | P19: =LARGE(P5:P18,1)+1 -> 102 | Q19: Mariner | R19: =LARGE(R5:R18,1)+1 -> 143 | S19: Suer | V19: =LARGE(V5:V18,1)+1 -> 14 | W19: Barder | X19: =LARGE(X5:X18,1)+1 -> 70 | Y19: Dénerver | Z19: =LARGE(Z5:Z18,1)+1 -> 127 | AA19: Fouetter | AB19: =LARGE(AB5:AB18,1)+1 -> 177 | AC19: Mijoter | AD19: =LARGE(AD5:AD18,1)+1 -> 231 | AE19: Relâcher | AF19: =LARGE(AF5:AF18,1)+1 -> 282 | AG19: Turbiner | AH19: =LARGE(AH4:AH18,1)+1 -> 16 | AI19: brancher | AK19: =LARGE(AK4:AK18,1)+1 -> 72 | AL19: mettre | AP19: Battre : agiter vigoureusement une préparation à l’aide d’un fouet, pour la rendre homogène ou lui donner du volume (foisonnement). | AR19: 13 | AS19: monter au beurre | AV19: 3 | AW19: Plaquer les filets sur 5 bacs GN 1/1 H 25 perforés.
B20: =LARGE(B5:B19,1)+1 -> 13 | C20: Délayer | D20: =LARGE(D5:D19,1)+1 -> 26 | E20: Laver | F20: =LARGE(F5:F19,1)+1 -> 46 | G20: Remonter en température | L20: =LARGE(L5:L19,1)+1 -> 14 | M20: Châtrer | N20: =LARGE(N5:N19,1)+1 -> 60 | O20: Effiler | P20: =LARGE(P5:P19,1)+1 -> 103 | Q20: Masquer | S20: T | V20: =LARGE(V5:V19,1)+1 -> 15 | W20: Battre | X20: =LARGE(X5:X19,1)+1 -> 71 | Y20: Dénoyauter | Z20: =LARGE(Z5:Z19,1)+1 -> 128 | AA20: Fouler | AB20: =LARGE(AB5:AB19,1)+1 -> 178 | AC20: Mixer | AD20: =LARGE(AD5:AD19,1)+1 -> 232 | AE20: Relever | AH20: =LARGE(AH4:AH19,1)+1 -> 17 | AI20: calculer | AK20: =LARGE(AK4:AK19,1)+1 -> 73 | AL20: moderniser | AP20: Beurre clarifié : beurre fondu et décanté dont on a éliminé de la caséine et du petit lait. | AR20: 14 | AS20: napper les filets
B21: =LARGE(B5:B20,1)+1 -> 14 | C21: Disperser | E21: M | F21: =LARGE(F5:F20,1)+1 -> 47 | G21: Remplacer | L21: =LARGE(L5:L20,1)+1 -> 15 | M21: Chaufroiter | N21: =LARGE(N5:N20,1)+1 -> 61 | O21: Egermer | P21: =LARGE(P5:P20,1)+1 -> 104 | Q21: Masser | R21: =LARGE(R5:R20,1)+1 -> 144 | S21: Tailler | V21: =LARGE(V5:V20,1)+1 -> 16 | W21: Beurrer | X21: =LARGE(X5:X20,1)+1 -> 72 | Y21: Denteler | Z21: =LARGE(Z5:Z20,1)+1 -> 129 | AA21: Fourrer | AB21: =LARGE(AB5:AB20,1)+1 -> 179 | AC21: Modeler | AD21: =LARGE(AD5:AD20,1)+1 -> 233 | AE21: Remonter en température | AG21: U | AH21: =LARGE(AH4:AH20,1)+1 -> 18 | AI21: cataloguer | AK21: =LARGE(AK4:AK20,1)+1 -> 74 | AL21: monter | AP21: Beurre en pommade : beurre ramolli ayant la consistance d’une pommade. | AR21: 15 | AS21: servir sans attendre | AV21: 4 | AW21: Mettre les bacs sur l'échelle de four
B22: =LARGE(B5:B21,1)+1 -> 15 | C22: Disposer | D22: =LARGE(D5:D21,1)+1 -> 27 | E22: Maintenir en temp. sup à 63° | F22: =LARGE(F5:F21,1)+1 -> 48 | G22: Remuer | L22: =LARGE(L5:L21,1)+1 -> 16 | M22: Chemiser | N22: =LARGE(N5:N21,1)+1 -> 62 | O22: Egoutter | P22: =LARGE(P5:P21,1)+1 -> 105 | Q22: Meringuer | R22: =LARGE(R5:R21,1)+1 -> 145 | S22: Tamiser | V22: =LARGE(V5:V21,1)+1 -> 17 | W22: Blanchir | X22: =LARGE(X5:X21,1)+1 -> 73 | Y22: Dépouiller | Z22: =LARGE(Z5:Z21,1)+1 -> 130 | AA22: Fraiser | AB22: =LARGE(AB5:AB21,1)+1 -> 180 | AC22: Moiner | AD22: =LARGE(AD5:AD21,1)+1 -> 234 | AE22: Remplacer | AF22: =LARGE(AF5:AF21,1)+1 -> 283 | AG22: Upériser | AH22: =LARGE(AH4:AH21,1)+1 -> 19 | AI22: centraliser | AK22: =LARGE(AK4:AK21,1)+1 -> 75 | AL22: naviguer | AP22: Blanchiment : phénomène de déstabilisation d’une fabrication de chocolat, correspondants à la migration en surface des cristaux de sucre, liée à une conservation en atmosphère humide et/ou un travail du chocolat à des températures inadaptées. | AV22: 5 | AW22: et réserver au froid en attente de cuisson.
D23: =LARGE(D5:D22,1)+1 -> 28 | E23: Manipuler | F23: =LARGE(F5:F22,1)+1 -> 49 | G23: Répartir | L23: =LARGE(L5:L22,1)+1 -> 17 | M23: Chiqueter | N23: =LARGE(N5:N22,1)+1 -> 63 | O23: Egrapper | P23: =LARGE(P5:P22,1)+1 -> 106 | Q23: Mijoter | R23: =LARGE(R5:R22,1)+1 -> 146 | S23: Tamponner | V23: =LARGE(V5:V22,1)+1 -> 18 | W23: Blondir | X23: =LARGE(X5:X22,1)+1 -> 74 | Y23: Dérober | Z23: =LARGE(Z5:Z22,1)+1 -> 131 | AA23: Frapper | AB23: =LARGE(AB5:AB22,1)+1 -> 181 | AC23: Monder | AD23: =LARGE(AD5:AD22,1)+1 -> 235 | AE23: Remuer | AF23: =LARGE(AF5:AF22,1)+1 -> 284 | AG23: Utiliser | AH23: =LARGE(AH4:AH22,1)+1 -> 20 | AI23: chercher | AK23: =LARGE(AK4:AK22,1)+1 -> 76 | AL23: nettoyer | AP23: Blanchir : travailler ensemble le jaune d’œuf et le sucre au fouet jusqu’à ce que le mélange devienne mousseux. | AS23: source : Fiches techniques de cuisine Annette et Jean Pierre DOMERGUES | AV23: 6 | AW23: Au cutter, hacher finement l'ail. Réserver.
D24: =LARGE(D5:D23,1)+1 -> 29 | E24: Mélanger | F24: =LARGE(F5:F23,1)+1 -> 50 | G24: Repasser | L24: =LARGE(L5:L23,1)+1 -> 18 | M24: Ciseler | N24: =LARGE(N5:N23,1)+1 -> 64 | O24: Egrener | P24: =LARGE(P5:P23,1)+1 -> 107 | Q24: Monder | R24: =LARGE(R5:R23,1)+1 -> 147 | S24: Tapisser | V24: =LARGE(V5:V23,1)+1 -> 19 | W24: Bouler | X24: =LARGE(X5:X23,1)+1 -> 75 | Y24: Désosser | Z24: =LARGE(Z5:Z23,1)+1 -> 132 | AA24: Fraser | AB24: =LARGE(AB5:AB23,1)+1 -> 182 | AC24: Monter | AD24: =LARGE(AD5:AD23,1)+1 -> 236 | AE24: Répartir | AH24: =LARGE(AH4:AH23,1)+1 -> 21 | AI24: classifier | AK24: =LARGE(AK4:AK23,1)+1 -> 77 | AL24: optimiser | AP24: Bouler : façonner à la main une pâte pour lui donner la forme d’une boule. | AV24: 7 | AW24: Chauffer le lait et le maintenir au chaud.
D25: =LARGE(D5:D24,1)+1 -> 30 | E25: Mettre en cuisson | L25: =LARGE(L5:L24,1)+1 -> 19 | M25: Citronner | N25: =LARGE(N5:N24,1)+1 -> 65 | O25: Emincer | P25: =LARGE(P5:P24,1)+1 -> 108 | Q25: Monter | R25: =LARGE(R5:R24,1)+1 -> 148 | S25: Tourer | V25: =LARGE(V5:V24,1)+1 -> 20 | W25: Braiser | X25: =LARGE(X5:X24,1)+1 -> 76 | Y25: Dessécher | Z25: =LARGE(Z5:Z24,1)+1 -> 133 | AA25: Frémir | AB25: =LARGE(AB5:AB24,1)+1 -> 183 | AC25: Mortifier | AD25: =LARGE(AD5:AD24,1)+1 -> 237 | AE25: Repasser | AG25: V | AH25: =LARGE(AH4:AH24,1)+1 -> 22 | AI25: commander | AK25: =LARGE(AK4:AK24,1)+1 -> 78 | AL25: ordonnancer | AP25: Brunissement enzymatique : c’est le phénomène qui se produit au contact de l’air à la suite d’opérations ou de traitements de divers végétaux (épluchage, taille) lesquels dégradent la structure végétale externe. Le phénomène conduit à un changement de couleur brun caractéristique du fruit). | AS25: Editeur DOMERGUES 4 rue de la Bourie Rouge 45 000 ORLÉANS 1981 | AV25: 8 | AW25: Porter à ébullition la crème fraîche
D26: =LARGE(D5:D25,1)+1 -> 31 | E26: Mixer | L26: =LARGE(L5:L25,1)+1 -> 20 | M26: Clarifier | N26: =LARGE(N5:N25,1)+1 -> 66 | O26: Enrober | P26: =LARGE(P5:P25,1)+1 -> 109 | Q26: Mortifier | R26: =LARGE(R5:R25,1)+1 -> 149 | S26: Tourner | V26: =LARGE(V5:V25,1)+1 -> 21 | W26: Brider | X26: =LARGE(X5:X25,1)+1 -> 77 | Y26: Détailler | Z26: =LARGE(Z5:Z25,1)+1 -> 134 | AA26: Frire | AB26: =LARGE(AB5:AB25,1)+1 -> 184 | AC26: Mouiller | AD26: =LARGE(AD5:AD25,1)+1 -> 238 | AE26: Réserver | AF26: =LARGE(AF5:AF25,1)+1 -> 285 | AG26: Vanner | AH26: =LARGE(AH4:AH25,1)+1 -> 23 | AI26: compiler | AK26: =LARGE(AK4:AK25,1)+1 -> 79 | AL26: organiser | AP26: C | AV26: 9 | AW26: et la maintenir au chaud en attente d'utilisation
L27: =LARGE(L5:L26,1)+1 -> 21 | M27: Coller | N27: =LARGE(N5:N26,1)+1 -> 67 | O27: Eplucher | P27: =LARGE(P5:P26,1)+1 -> 110 | Q27: Mouiller | R27: =LARGE(R5:R26,1)+1 -> 150 | S27: Travailler | V27: =LARGE(V5:V26,1)+1 -> 22 | W27: Broyer | X27: =LARGE(X5:X26,1)+1 -> 78 | Y27: Détendre | AB27: =LARGE(AB5:AB26,1)+1 -> 185 | AC27: Mouler | AD27: =LARGE(AD5:AD26,1)+1 -> 239 | AE27: Respecter le délai de 2 H | AF27: =LARGE(AF5:AF26,1)+1 -> 286 | AG27: Vérifier la temp. | AH27: =LARGE(AH4:AH26,1)+1 -> 24 | AI27: compter | AK27: =LARGE(AK4:AK26,1)+1 -> 80 | AL27: planifier | AP27: Candir : technique qui consiste à immerger des confiseries, des décors, dans un sirop de sucre afin d’obtenir une cristallisation de sucre en surface. | AV27: 10 | AW27: Au pinceau, badigeonner de beurre 8 bacs GN 1/1 H 65
L28: =LARGE(L5:L27,1)+1 -> 22 | M28: Compoter | N28: =LARGE(N5:N27,1)+1 -> 68 | O28: Escaloper | Q28: N | R28: =LARGE(R5:R27,1)+1 -> 151 | S28: Tremper | V28: =LARGE(V5:V27,1)+1 -> 23 | W28: Brûler | X28: =LARGE(X5:X27,1)+1 -> 79 | Y28: Détremper | AA28: G | AB28: =LARGE(AB5:AB27,1)+1 -> 186 | AC28: Mousser | AD28: =LARGE(AD5:AD27,1)+1 -> 240 | AE28: Retirer | AF28: =LARGE(AF5:AF27,1)+1 -> 287 | AG28: Verser | AH28: =LARGE(AH4:AH27,1)+1 -> 25 | AI28: concevoir | AK28: =LARGE(AK4:AK27,1)+1 -> 81 | AL28: préparer | AP28: Canneler : c’est le fait de faire de petites cannelures peu profondes à l’aide d’un couteau à canneler (appelé aussi canneleur) sur la surface de certains fruits & légumes (oranges, citrons, carottes…) pour améliorer leur présentation.
L29: =LARGE(L5:L28,1)+1 -> 23 | M29: Concasser | N29: =LARGE(N5:N28,1)+1 -> 69 | O29: Etuver | P29: =LARGE(P5:P28,1)+1 -> 111 | Q29: Nacrer | R29: =LARGE(R5:R28,1)+1 -> 152 | S29: Tronçonner | X29: =LARGE(X5:X28,1)+1 -> 80 | Y29: Disperser | Z29: =LARGE(Z5:Z28,1)+1 -> 135 | AA29: Garnir | AC29: N | AD29: =LARGE(AD5:AD28,1)+1 -> 241 | AE29: Retomber | AF29: =LARGE(AF5:AF28,1)+1 -> 288 | AG29: Videler | AH29: =LARGE(AH4:AH28,1)+1 -> 26 | AI29: conduire | AK29: =LARGE(AK4:AK28,1)+1 -> 82 | AL29: présenter | AP29: Caramélisation : phénomène correspondant au changement de couleur consécutif à une dégradation du saccharose au contact d’une source de chaleur importante. C’est une réaction de brunissement non enzymatique.
L30: =LARGE(L5:L29,1)+1 -> 24 | M30: Confire | N30: =LARGE(N5:N29,1)+1 -> 70 | O30: Evider | P30: =LARGE(P5:P29,1)+1 -> 112 | Q30: Napper | R30: =LARGE(R5:R29,1)+1 -> 153 | S30: Trousser | W30: C | X30: =LARGE(X5:X29,1)+1 -> 81 | Y30: Disposer | Z30: =LARGE(Z5:Z29,1)+1 -> 136 | AA30: Gerber | AB30: =LARGE(AB5:AB29,1)+1 -> 187 | AC30: Nacrer | AD30: =LARGE(AD5:AD29,1)+1 -> 242 | AE30: Retourner | AF30: =LARGE(AF5:AF29,1)+1 -> 289 | AG30: Voiler | AH30: =LARGE(AH4:AH29,1)+1 -> 27 | AI30: consigner | AK30: =LARGE(AK4:AK29,1)+1 -> 83 | AL30: prévoir | AP30: Caraméliser : enduire un moule ou une pâtisserie de sucre cuit au caramel. | AV30: ❸ | AW30: Préparer la purée
L31: =LARGE(L5:L30,1)+1 -> 25 | M31: Contiser | N31: =LARGE(N5:N30,1)+1 -> 71 | O31: Exprimer | R31: =LARGE(R5:R30,1)+1 -> 154 | S31: Turbiner | V31: =LARGE(V5:V30,1)+1 -> 24 | W31: Candir | X31: =LARGE(X5:X30,1)+1 -> 82 | Y31: Dorer | Z31: =LARGE(Z5:Z30,1)+1 -> 137 | AA31: Glacer | AB31: =LARGE(AB5:AB30,1)+1 -> 188 | AC31: Napper | AD31: =LARGE(AD5:AD30,1)+1 -> 243 | AE31: Revenir | AH31: =LARGE(AH4:AH30,1)+1 -> 28 | AI31: constituer | AK31: =LARGE(AK4:AK30,1)+1 -> 84 | AL31: produire | AP31: Chablonner : appliquer du chocolat de couverture ou de la pâte à glacer à la base des entremets, petits gâteaux, des ganaches, pour faciliter leur manipulation avant leur montage ou découpage. | AR31: Lien > | AS31: Lexique en français de la boucherie Wiktionnaire | AV31: 1 | AW31: Préparer la purée déshydratée en suivant les indications du fabricant.
L32: =LARGE(L5:L31,1)+1 -> 26 | M32: Corner | O32: F | Q32: P | V32: =LARGE(V5:V31,1)+1 -> 25 | W32: Canneler | X32: =LARGE(X5:X31,1)+1 -> 83 | Y32: Doubler | Z32: =LARGE(Z5:Z31,1)+1 -> 138 | AA32: Gommer | AC32: P | AD32: =LARGE(AD5:AD31,1)+1 -> 244 | AE32: Rincer | AG32: Z | AH32: =LARGE(AH4:AH31,1)+1 -> 29 | AI32: construire | AK32: =LARGE(AK4:AK31,1)+1 -> 85 | AL32: programmer | AP32: Chemiser : appliquer contre la paroi intérieur d’un moule ou d’une caissette, une couche de pâte, de biscuit, de gelée, de chocolat, de glace, de farine etc…
L33: =LARGE(L5:L32,1)+1 -> 27 | M33: Corser | N33: =LARGE(N5:N32,1)+1 -> 72 | O33: Farcir | P33: =LARGE(P5:P32,1)+1 -> 113 | Q33: Paner | S33: V | V33: =LARGE(V5:V32,1)+1 -> 26 | W33: Caraméliser | X33: =LARGE(X5:X32,1)+1 -> 84 | Y33: Dresser | Z33: =LARGE(Z5:Z32,1)+1 -> 139 | AA33: Grainer | AB33: =LARGE(AB5:AB32,1)+1 -> 189 | AC33: Panacher | AD33: =LARGE(AD5:AD32,1)+1 -> 245 | AE33: Rioler | AF33: =LARGE(AF5:AF32,1)+1 -> 290 | AG33: Zester | AH33: =LARGE(AH4:AH32,1)+1 -> 30 | AI33: contrôler | AK33: =LARGE(AK4:AK32,1)+1 -> 86 | AL33: rebâtir | AP33: Chiqueter : tailler le tour d’une pièce de feuilletage avant la cuisson avec la lame d’un couteau pour lui donner un aspect particulier. | AR33: Lien > | AS33: Lexique en français de la cuisine Wiktionnaire | AV33: 2 | AW33: Mettre au point l'assaisonnement.
L34: =LARGE(L5:L33,1)+1 -> 28 | M34: Coucher | N34: =LARGE(N5:N33,1)+1 -> 73 | O34: Festonner | P34: =LARGE(P5:P33,1)+1 -> 114 | Q34: Papilloter | R34: =LARGE(R5:R33,1)+1 -> 155 | S34: Vanner | V34: =LARGE(V5:V33,1)+1 -> 27 | W34: Caraméliser | Z34: =LARGE(Z5:Z33,1)+1 -> 140 | AA34: Graisser | AB34: =LARGE(AB5:AB33,1)+1 -> 190 | AC34: Paner | AD34: =LARGE(AD5:AD33,1)+1 -> 246 | AE34: Rissoler | AH34: =LARGE(AH4:AH33,1)+1 -> 31 | AI34: couper | AK34: =LARGE(AK4:AK33,1)+1 -> 87 | AL34: réceptionner | AP34: Confire : remplacer l’eau de végétation des fruits par un sirop à la suite d’immersions multiples et répétées dans un sirop de sucre de plus en plus concentré. | AV34: 3 | AW34: Muscader légèrement.
L35: =LARGE(L5:L34,1)+1 -> 29 | M35: Coucher | N35: =LARGE(N5:N34,1)+1 -> 74 | O35: Flamber | P35: =LARGE(P5:P34,1)+1 -> 115 | Q35: Passer | R35: =LARGE(R5:R34,1)+1 -> 156 | S35: Videler | V35: =LARGE(V5:V34,1)+1 -> 28 | W35: Cerner | Y35: E | Z35: =LARGE(Z5:Z34,1)+1 -> 141 | AA35: Gratiner | AB35: =LARGE(AB5:AB34,1)+1 -> 191 | AC35: Papilloter | AD35: =LARGE(AD5:AD34,1)+1 -> 247 | AE35: Rompre | AH35: =LARGE(AH4:AH34,1)+1 -> 32 | AI35: créer | AK35: =LARGE(AK4:AK34,1)+1 -> 88 | AL35: reconstruire | AP35: Corner : utiliser une corne à l’intérieur d’un récipient pour récupérer le maximum d’appareil. | AR35: Lien > | AS35: Spécificités et usages du vocabulaire des "métiers de la bouche" | AV35: 4 | AW35: Réserver au chaud.
L36: =LARGE(L5:L35,1)+1 -> 30 | M36: Crémer | N36: =LARGE(N5:N35,1)+1 -> 75 | O36: Flanquer | P36: =LARGE(P5:P35,1)+1 -> 116 | Q36: Persiller | R36: =LARGE(R5:R35,1)+1 -> 157 | S36: Voiler | V36: =LARGE(V5:V35,1)+1 -> 29 | W36: Chablonner | X36: =LARGE(X5:X35,1)+1 -> 85 | Y36: Ebarber | Z36: =LARGE(Z5:Z35,1)+1 -> 142 | AA36: Griller | AB36: =LARGE(AB5:AB35,1)+1 -> 192 | AC36: Parer | AD36: =LARGE(AD5:AD35,1)+1 -> 248 | AE36: Rôtir | AH36: =LARGE(AH4:AH35,1)+1 -> 33 | AI36: creuser | AK36: =LARGE(AK4:AK35,1)+1 -> 89 | AL36: réduire | AP36: Corps : terme appliqué à une pâte pour désigner son élasticité, sa résistance après son pétrissage, résultant de la formation de gluten. | AW36: Ou marquer la cuisson des pommes de terre pour la réalisation de la purée fraîche.
L37: =LARGE(L5:L36,1)+1 -> 31 | M37: Crever | N37: =LARGE(N5:N36,1)+1 -> 76 | O37: Fleurer | P37: =LARGE(P5:P36,1)+1 -> 117 | Q37: Piler | V37: =LARGE(V5:V36,1)+1 -> 30 | W37: Châtrer | X37: =LARGE(X5:X36,1)+1 -> 86 | Y37: Ebaucher | Z37: =LARGE(Z5:Z36,1)+1 -> 143 | AA37: H | AB37: =LARGE(AB5:AB36,1)+1 -> 193 | AC37: Parfumer | AD37: =LARGE(AD5:AD36,1)+1 -> 249 | AE37: Rouler | AH37: =LARGE(AH4:AH36,1)+1 -> 34 | AI37: cultiver | AK37: =LARGE(AK4:AK36,1)+1 -> 90 | AL37: régler | AP37: Corser : donner de l’élasticité à une pâte en la pétrissant davantage.
L38: =LARGE(L5:L37,1)+1 -> 32 | M38: Cuire | N38: =LARGE(N5:N37,1)+1 -> 77 | O38: Foisonner | P38: =LARGE(P5:P37,1)+1 -> 118 | Q38: Pincer | S38: Z | V38: =LARGE(V5:V37,1)+1 -> 31 | W38: Chauffer | X38: =LARGE(X5:X37,1)+1 -> 87 | Y38: Ecailler | Z38: =LARGE(Z5:Z37,1)+1 -> 144 | AA38: Habiller | AB38: =LARGE(AB5:AB37,1)+1 -> 194 | AC38: Parsemer | AD38: =LARGE(AD5:AD37,1)+1 -> 250 | AE38: Roussir | AH38: =LARGE(AH4:AH37,1)+1 -> 35 | AI38: décentraliser | AK38: =LARGE(AK4:AK37,1)+1 -> 91 | AL38: réguler | AP38: Coucher (synonyme de dresser) : façonner à la poche à douille généralement sur plaque ou tapis anti-adhérant, papier sulfurisé des appareils mous (pâte à choux, biscuits, meringues). | AS38: Quelques expressions
M39: D | N39: =LARGE(N5:N38,1)+1 -> 78 | O39: Foncer | P39: =LARGE(P5:P38,1)+1 -> 119 | Q39: Piquer | R39: =LARGE(R5:R38,1)+1 -> 158 | S39: Zester | V39: =LARGE(V5:V38,1)+1 -> 32 | W39: Chaufroiter | X39: =LARGE(X5:X38,1)+1 -> 88 | Y39: Ecaler | Z39: =LARGE(Z5:Z38,1)+1 -> 145 | AA39: Hacher | AB39: =LARGE(AB5:AB38,1)+1 -> 195 | AC39: Passer | AH39: =LARGE(AH4:AH38,1)+1 -> 36 | AI39: décharger | AK39: =LARGE(AK4:AK38,1)+1 -> 92 | AL39: remodeler | AP39: Crémer : travailler une matière grasse seule ou avec du sucre, afin de lui donner la consistance d’une crème. | AV39: ❹ | AW39: Confectionner la brandade de morue
L40: =LARGE(L5:L39,1)+1 -> 33 | M40: Décanter | N40: =LARGE(N5:N39,1)+1 -> 79 | O40: Fondre | P40: =LARGE(P5:P39,1)+1 -> 120 | Q40: Pocher | V40: =LARGE(V5:V39,1)+1 -> 33 | W40: Chemiser | X40: =LARGE(X5:X39,1)+1 -> 89 | Y40: Echauder | Z40: =LARGE(Z5:Z39,1)+1 -> 146 | AA40: Historier | AB40: =LARGE(AB5:AB39,1)+1 -> 196 | AC40: Pasteuriser | AE40: S | AH40: =LARGE(AH4:AH39,1)+1 -> 37 | AI40: dessiner | AK40: =LARGE(AK4:AK39,1)+1 -> 93 | AL40: remplacer | AP40: Crouter : opération permettant de sécher à l’air ou en étuve une fabrication crue ou cuite afin d’obtenir une pellicule sèche et résistante à sa surface (biscuit cuillère, macarons…). | AR40: 1 | AS40: désinfecter le matériel | AV40: 1 | AW40: Préchauffer le four sur la position vapeur
L41: =LARGE(L5:L40,1)+1 -> 34 | M41: Décercler | N41: =LARGE(N5:N40,1)+1 -> 80 | O41: Fouler | P41: =LARGE(P5:P40,1)+1 -> 121 | Q41: Poêler | V41: =LARGE(V5:V40,1)+1 -> 34 | W41: Chevaucher | X41: =LARGE(X5:X40,1)+1 -> 90 | Y41: Ecorcher | Z41: =LARGE(Z5:Z40,1)+1 -> 147 | AA41: Huiler | AB41: =LARGE(AB5:AB40,1)+1 -> 197 | AC41: Peler | AD41: =LARGE(AD5:AD40,1)+1 -> 251 | AE41: Sabler | AH41: =LARGE(AH4:AH40,1)+1 -> 38 | AI41: documenter | AK41: =LARGE(AK4:AK40,1)+1 -> 94 | AL41: rénover | AP41: D | AR41: 2 | AS41: désinfecter le poste de travail | AV41: 2 | AW41: Cuire les filets à la vapeur 7 minutes environ
L42: =LARGE(L5:L41,1)+1 -> 35 | M42: Décortiquer | N42: =LARGE(N5:N41,1)+1 -> 81 | O42: Fraiser | P42: =LARGE(P5:P41,1)+1 -> 122 | Q42: Pousser | V42: =LARGE(V5:V41,1)+1 -> 35 | W42: Chiqueter | X42: =LARGE(X5:X41,1)+1 -> 91 | Y42: Ecosser | AB42: =LARGE(AB5:AB41,1)+1 -> 198 | AC42: Persiller | AD42: =LARGE(AD5:AD41,1)+1 -> 252 | AE42: Saigner | AH42: =LARGE(AH4:AH41,1)+1 -> 39 | AI42: écouler | AK42: =LARGE(AK4:AK41,1)+1 -> 95 | AL42: réorganiser | AP42: Décercler : retirer avec précaution le cercle d’un fond de tarte ou d’un entremet. | AR42: 3 | AS42: etager les bacs sur l'échelle de cuisson | AW42: Ne pas trop cuire au risque de retirer les propriétés gluantes de la morue
L43: =LARGE(L5:L42,1)+1 -> 36 | M43: Décuire | N43: =LARGE(N5:N42,1)+1 -> 82 | O43: Fileter | P43: =LARGE(P5:P42,1)+1 -> 123 | Q43: Puncher | V43: =LARGE(V5:V42,1)+1 -> 36 | W43: Ciseler | X43: =LARGE(X5:X42,1)+1 -> 92 | Y43: Ecumer | AA43: I | AB43: =LARGE(AB5:AB42,1)+1 -> 199 | AC43: Peser | AD43: =LARGE(AD5:AD42,1)+1 -> 253 | AE43: Saisir | AH43: =LARGE(AH4:AH42,1)+1 -> 40 | AI43: écrire | AK43: =LARGE(AK4:AK42,1)+1 -> 96 | AL43: réparer | AP43: Décoction : solution obtenue par l’action prolongée de l’eau bouillante sur une plante aromatique. | AR43: 4 | AS43: selectionner le matériel
L44: =LARGE(L5:L43,1)+1 -> 37 | M44: Déffilandrer | N44: =LARGE(N5:N43,1)+1 -> 83 | O44: Frapper | Q44: Q | V44: =LARGE(V5:V43,1)+1 -> 37 | W44: Citronner | X44: =LARGE(X5:X43,1)+1 -> 93 | Y44: Effilandrer | Z44: =LARGE(Z5:Z43,1)+1 -> 148 | AA44: Imbiber | AB44: =LARGE(AB5:AB43,1)+1 -> 200 | AC44: Pétrir | AD44: =LARGE(AD5:AD43,1)+1 -> 254 | AE44: Sangler | AH44: =LARGE(AH4:AH43,1)+1 -> 41 | AI44: édifier | AK44: =LARGE(AK4:AK43,1)+1 -> 97 | AL44: résoudre | AP44: Dessécher : déshydrater, faire évaporer l’excédent d’eau se trouvant dans une préparation en la chauffant sur feu doux dans une étuve ou dans un four (ex : pâte à choux) | AR44: 5 | AS44: suivre les protocoles | AV44: 3 | AW44: Effeuiller les filets de morue cuits.
L45: =LARGE(L5:L44,1)+1 -> 38 | M45: Déglacer | N45: =LARGE(N5:N44,1)+1 -> 84 | O45: Frémir | P45: =LARGE(P5:P44,1)+1 -> 124 | Q45: Quadriller | V45: =LARGE(V5:V44,1)+1 -> 38 | W45: Clarifier | X45: =LARGE(X5:X44,1)+1 -> 94 | Y45: Effiler | Z45: =LARGE(Z5:Z44,1)+1 -> 149 | AA45: Inciser | AB45: =LARGE(AB5:AB44,1)+1 -> 201 | AC45: Piler | AD45: =LARGE(AD5:AD44,1)+1 -> 255 | AE45: Saumurer | AH45: =LARGE(AH4:AH44,1)+1 -> 42 | AI45: effectuer | AK45: =LARGE(AK4:AK44,1)+1 -> 98 | AL45: réviser | AP45: Détailler : découper des morceaux de pâte de forme bien déterminée dans une abaisse de pâte, à l’aide d’un couteau ou d’un découpoir. | AV45: 4 | AW45: Dans une sauteuse, faire chauffer l'huile d'olive
L46: =LARGE(L5:L45,1)+1 -> 39 | M46: Dégorger | N46: =LARGE(N5:N45,1)+1 -> 85 | O46: Frire | V46: =LARGE(V5:V45,1)+1 -> 39 | W46: Clouter | X46: =LARGE(X5:X45,1)+1 -> 95 | Y46: Egermer | Z46: =LARGE(Z5:Z45,1)+1 -> 150 | AA46: Incorporer | AB46: =LARGE(AB5:AB45,1)+1 -> 202 | AC46: Pincer | AD46: =LARGE(AD5:AD45,1)+1 -> 256 | AE46: Saupoudrer | AH46: =LARGE(AH4:AH45,1)+1 -> 43 | AI46: élaborer | AK46: =LARGE(AK4:AK45,1)+1 -> 99 | AL46: revoir | AP46: Détrempe : mélange de farine, d’eau et de sel servant de base à la pâte feuilleté et à la pâte levée feuilleté. | AV46: 5 | AW46: ajouter la morue effeuillée et l'ail
L47: =LARGE(L5:L46,1)+1 -> 40 | M47: Dégourdir | O47: G | Q47: R | V47: =LARGE(V5:V46,1)+1 -> 40 | W47: Coller | X47: =LARGE(X5:X46,1)+1 -> 96 | Y47: Egoutter | Z47: =LARGE(Z5:Z46,1)+1 -> 151 | AA47: Indications packaging | AB47: =LARGE(AB5:AB46,1)+1 -> 203 | AC47: Piquer | AD47: =LARGE(AD5:AD46,1)+1 -> 257 | AE47: Sauter | AH47: =LARGE(AH4:AH46,1)+1 -> 44 | AI47: emplir | AK47: =LARGE(AK4:AK46,1)+1 -> 100 | AL47: sensibiliser | AP47: E | AR47: 1 | AS47: eplucher-laver-désinfecter | AV47: 6 | AW47: travailler à la spatule
L48: =LARGE(L5:L47,1)+1 -> 41 | M48: Dégraisser | N48: =LARGE(N5:N47,1)+1 -> 86 | O48: Glacer | P48: =LARGE(P5:P47,1)+1 -> 125 | Q48: Rabattre | V48: =LARGE(V5:V47,1)+1 -> 41 | W48: Compoter | X48: =LARGE(X5:X47,1)+1 -> 97 | Y48: Egrapper | Z48: =LARGE(Z5:Z47,1)+1 -> 152 | AA48: Infuser | AB48: =LARGE(AB5:AB47,1)+1 -> 204 | AC48: Plaquer | AD48: =LARGE(AD5:AD47,1)+1 -> 258 | AE48: Serrer | AH48: =LARGE(AH4:AH47,1)+1 -> 45 | AI48: employer | AK48: =LARGE(AK4:AK47,1)+1 -> 101 | AL48: simplifier | AP48: Écumer : c’est éliminer les impuretés qui se forment à la surface de cuisson de sucre, confitures, gelées à l’aide d’une écumoire. | AR48: 2 | AS48: faire tremper | AW48: (ou travailler directement la morue effeuillée dans la cuve du batteur).
L49: =LARGE(L5:L48,1)+1 -> 42 | M49: Déhousser | N49: =LARGE(N5:N48,1)+1 -> 87 | O49: Gommer | P49: =LARGE(P5:P48,1)+1 -> 126 | Q49: Rafraîchir | V49: =LARGE(V5:V48,1)+1 -> 42 | W49: Concasser | X49: =LARGE(X5:X48,1)+1 -> 98 | Y49: Egrener | AB49: =LARGE(AB5:AB48,1)+1 -> 205 | AC49: Pocher | AD49: =LARGE(AD5:AD48,1)+1 -> 259 | AE49: Servir | AH49: =LARGE(AH4:AH48,1)+1 -> 46 | AI49: enregistrer | AK49: =LARGE(AK4:AK48,1)+1 -> 102 | AL49: soulever | AP49: Émonder : retirer les peaux, pellicules et enveloppe de certains fruits ou légumes. | AR49: 3 | AS49: habiller les soles
L50: =LARGE(L5:L49,1)+1 -> 43 | M50: Dénerver | N50: =LARGE(N5:N49,1)+1 -> 88 | O50: Graisser | P50: =LARGE(P5:P49,1)+1 -> 127 | Q50: Raidir | V50: =LARGE(V5:V49,1)+1 -> 43 | W50: Confire | X50: =LARGE(X5:X49,1)+1 -> 99 | Y50: Eliminer | AA50: J | AB50: =LARGE(AB5:AB49,1)+1 -> 206 | AC50: Poêler | AD50: =LARGE(AD5:AD49,1)+1 -> 260 | AE50: Singer | AH50: =LARGE(AH4:AH49,1)+1 -> 47 | AI50: entretenir | AK50: =LARGE(AK4:AK49,1)+1 -> 103 | AL50: standardiser | AP50: Émulsionner : opération consistant à provoquer la dispersion d’un liquide dans un autre liquide ou d’une matière non miscible (ex : ganache). | AR50: 4 | AS50: hacher finement | AV50: 7 | AW50: Mettre la morue travaillée dans la grande cuve du batteur
L51: =LARGE(L5:L50,1)+1 -> 44 | M51: Dénoyauter | N51: =LARGE(N5:N50,1)+1 -> 89 | O51: Gratiner | P51: =LARGE(P5:P50,1)+1 -> 128 | Q51: Rassir | V51: =LARGE(V5:V50,1)+1 -> 44 | W51: Conserver | X51: =LARGE(X5:X50,1)+1 -> 100 | Y51: Emonder | Z51: =LARGE(Z5:Z50,1)+1 -> 153 | AA51: Jeter | AB51: =LARGE(AB5:AB50,1)+1 -> 207 | AC51: Porter à ébullition | AD51: =LARGE(AD5:AD50,1)+1 -> 261 | AE51: Siroper | AH51: =LARGE(AH4:AH50,1)+1 -> 48 | AI51: envoyer | AK51: =LARGE(AK4:AK50,1)+1 -> 104 | AL51: superviser | AP51: Évider : éliminer, extraire l’intérieur de certains fruits (ex : citrons, orange). | AR51: 5 | AS51: laver à grande eau
L52: =LARGE(L5:L51,1)+1 -> 45 | M52: Denteler | N52: =LARGE(N5:N51,1)+1 -> 90 | O52: Griller | P52: =LARGE(P5:P51,1)+1 -> 129 | Q52: Rayer | V52: =LARGE(V5:V51,1)+1 -> 45 | W52: Contiser | X52: =LARGE(X5:X51,1)+1 -> 101 | Y52: Émulsionner | AB52: =LARGE(AB5:AB51,1)+1 -> 208 | AC52: Poudrer | AD52: =LARGE(AD5:AD51,1)+1 -> 262 | AE52: Siroter | AH52: =LARGE(AH4:AH51,1)+1 -> 49 | AI52: ériger | AK52: =LARGE(AK4:AK51,1)+1 -> 105 | AL52: surveiller | AP52: F | AR52: 6 | AS52: peser les denrées | AV52: 8 | AW52: A la feuille en première vitesse, incorporer progressivement le lait et la crème
V53: =LARGE(V5:V52,1)+1 -> 46 | W53: Contrôler | X53: =LARGE(X5:X52,1)+1 -> 102 | Y53: Enfourner | AA53: L | AB53: =LARGE(AB5:AB52,1)+1 -> 209 | AC53: Pousser | AD53: =LARGE(AD5:AD52,1)+1 -> 263 | AE53: Snacker | AH53: =LARGE(AH4:AH52,1)+1 -> 50 | AI53: établir | AK53: =LARGE(AK4:AK52,1)+1 -> 106 | AL53: tester | AP53: Façonner : c’est donner une forme particulière à toute sortes de pâtes par un travail manuel ou mécanique avant cuisson. | AR53: 7 | AS53: trier et tremper
V54: =LARGE(V5:V53,1)+1 -> 47 | W54: Corner | X54: =LARGE(X5:X53,1)+1 -> 103 | Y54: Enrober | Z54: =LARGE(Z5:Z53,1)+1 -> 154 | AA54: Larder | AB54: =LARGE(AB5:AB53,1)+1 -> 210 | AC54: Praliner | AD54: =LARGE(AD5:AD53,1)+1 -> 264 | AE54: Sonder | AH54: =LARGE(AH4:AH53,1)+1 -> 51 | AI54: étendre | AK54: =LARGE(AK4:AK53,1)+1 -> 107 | AL54: transformer | AP54: Festonner : constituer des bordures décoratives ou des formes arrondies sur des pâtisseries (ex : pithiviers, tartelette…). | AR54: 8 | AS54: vérifier les DLC | AW54: Éventuellement, mettre au point la consistance en ajoutant du lait, de l'huile d'oli­ve ou de la crème
V55: =LARGE(V5:V54,1)+1 -> 48 | W55: Corser | X55: =LARGE(X5:X54,1)+1 -> 104 | Y55: Eplucher | Z55: =LARGE(Z5:Z54,1)+1 -> 155 | AA55: Laver | AB55: =LARGE(AB5:AB54,1)+1 -> 211 | AC55: Préchauffer | AD55: =LARGE(AD5:AD54,1)+1 -> 265 | AE55: Stériliser | AH55: =LARGE(AH4:AH54,1)+1 -> 52 | AI55: examiner | AK55: =LARGE(AK4:AK54,1)+1 -> 108 | AL55: trier | AP55: Fleurer : saupoudrer de farine un tour, une plaque ou un moule afin d’empêcher certaines préparations de coller.
V56: =LARGE(V5:V55,1)+1 -> 49 | W56: Coucher | X56: =LARGE(X5:X55,1)+1 -> 105 | Y56: Equeter | Z56: =LARGE(Z5:Z55,1)+1 -> 156 | AA56: Lever | AB56: =LARGE(AB5:AB55,1)+1 -> 212 | AC56: Prélever | AD56: =LARGE(AD5:AD55,1)+1 -> 266 | AE56: Suer | AH56: =LARGE(AH4:AH55,1)+1 -> 53 | AI56: exécuter | AK56: =LARGE(AK4:AK55,1)+1 -> 109 | AL56: utiliser | AP56: Foncer : tapisser l’intérieur d’un moule ou d’un cercle avec de la pâte, pour qu’elle épouse parfaitement sa forme. | AR56: 1 | AS56: ciseler finement | AW56: On doit obtenir une pâte homogène et compacte
V57: =LARGE(V5:V56,1)+1 -> 50 | W57: Craquer | X57: =LARGE(X5:X56,1)+1 -> 106 | Y57: Escaloper | Z57: =LARGE(Z5:Z56,1)+1 -> 157 | AA57: Lier | AB57: =LARGE(AB5:AB56,1)+1 -> 213 | AC57: Préparer | AD57: =LARGE(AD5:AD56,1)+1 -> 267 | AE57: Surgeler | AH57: =LARGE(AH4:AH56,1)+1 -> 54 | AI57: exploiter | AK57: =LARGE(AK4:AK56,1)+1 -> 110 | AL57: vaporiser | AP57: Fond : pâtisseries utilisée comme base de fabrication et constituant généralement la couche inférieure des gâteaux. | AR57: 2 | AS57: couper en 2 | AV57: 9 | AW57: Poivrer et muscader
V58: =LARGE(V5:V57,1)+1 -> 51 | W58: Crémer | X58: =LARGE(X5:X57,1)+1 -> 107 | Y58: Etaler | Z58: =LARGE(Z5:Z57,1)+1 -> 158 | AA58: Limoner | AB58: =LARGE(AB5:AB57,1)+1 -> 214 | AC58: Protéger | AH58: =LARGE(AH4:AH57,1)+1 -> 55 | AI58: extraire | AK58: =LARGE(AK4:AK57,1)+1 -> 111 | AL58: vérifier | AP58: Foisonnement: phénomène résultant d’une augmentation de volume d’une fabrication par incorporation de gaz. | AV58: 10 | AW58: Finir de lier la brandade en ajoutant la purée.
V59: =LARGE(V5:V58,1)+1 -> 52 | W59: Crever | X59: =LARGE(X5:X58,1)+1 -> 108 | Y59: Etoffer | Z59: =LARGE(Z5:Z58,1)+1 -> 159 | AA59: Lisser | AB59: =LARGE(AB5:AB58,1)+1 -> 215 | AC59: Puncher | AH59: =LARGE(AH4:AH58,1)+1 -> 56 | AI59: faire | AP59: Fraser : écraser les ingrédients d’une pâte pour les agglomérer soit sur le marbre avec la paume de la main en la poussant devant soi, soit au batteur en écrasant avec la paume de sa main sur les parois. | AV59: 11 | AW59: Travailler
V60: =LARGE(V5:V59,1)+1 -> 53 | W60: Crouter | X60: =LARGE(X5:X59,1)+1 -> 109 | Y60: Etouffer | Z60: =LARGE(Z5:Z59,1)+1 -> 160 | AA60: Lustrer | AP60: G | AR60: 1 | AS60: adjoindre de la creme | AV60: 12 | AW60: Rectifier la consistance
V61: =LARGE(V5:V60,1)+1 -> 54 | W61: Cuire | X61: =LARGE(X5:X60,1)+1 -> 110 | Y61: Etuver | Z61: =LARGE(Z5:Z60,1)+1 -> 161 | AA61: Luter | AC61: Q | AP61: Garnir : remplir avec une préparation de crème ou autres un fond de gâteau, un moule, une poche. | AR61: 2 | AS61: ajouter dans l'ordre les autres éléments
V62: =LARGE(V5:V61,1)+1 -> 55 | W62: Culotter | X62: =LARGE(X5:X61,1)+1 -> 111 | Y62: Evider | Z62: =LARGE(Z5:Z61,1)+1 -> 162 | AA62: Lyophiliser | AB62: =LARGE(AB5:AB61,1)+1 -> 216 | AC62: Quadriller | AP62: Glacer : | AR62: 3 | AS62: arroser de beurre noisette | AV62: ❺ | AW62: Décanter la préparation
X63: =LARGE(X5:X62,1)+1 -> 112 | Y63: Exprimer | AP63: – action de recouvrir partiellement ou entièrement la surface d’une pâtisserie avec un glaçage (ex : fondant) | AR63: 4 | AS63: arroser de liqueur | AV63: 1 | AW63: Dans les 8 bacs GN 1/1 beurrés, répartir la brandade Bénédictine
AP64: – rendre brillant la surface d’une pâtisserie avec du sirop avant le passage au four ou saupoudrer une pièce de sucre glace et la passer au four, le temps de caraméliser le sucre. | AR64: 5 | AS64: beurrer grassement
AP65: Grainage : phénomène résultant de la déstabilisation d’une mousse alimentaire (ex : blancs montés) ou d’une émulsion mousseuse (ex : crème fouettée) à la suite d’un battage prolongé. | AR65: 6 | AS65: blanchir-rafraichir-couper | AV65: 2 | AW65: Égaliser la surface
W66: Lien > | X66: Lexique en français de la boucherie | AP66: Graisser : enduire d’une couche de matière grasse à l’aide d’un pinceau ou d’une bombe à graisse les parois d’un moule ou une plaque. | AR66: 7 | AS66: crémer-réduire | AV66: 3 | AW66: Saupoudrer d'emmenthal râpé
W67: Lien > | X67: Le dictionnaire du boucher | AP67: I | AR67: 8 | AS67: passer la sauce | AV67: 4 | AW67: Parsemer de parcelles de beurre
W68: Verbes d'action Lien > | X68: https://www.unamur.be/services/sevrexe/prodoc/documents-mission-accompagnement-prodoc-AL/verbes-actions | AP68: Imbiber : c’est faire pénétrer un liquide (sirop, alcool, liqueur etc…) dans une préparation dans le but de la rendre moins sèche ou dans le but de la parfumer. | AR68: 9 | AS68: reviser l'assaisonnement | AV68: 5 | AW68: Étager les bacs sur l'échelle de cuisson
AP69: Infuser : opération consistant à placer une substance aromatique dans un liquide chauffé au préalable, pendant un temps déterminé et à couvert pour capter son arôme. | AR69: 10 | AS69: saler en cours de cuisson
AP70: L | AR70: 11 | AS70: saupoudrer légèrement | AV70: ❻ | AW70: Gratiner
AP71: Lisser : mélanger une préparation pour la rendre homogène. | AR71: 12 | AS71: vérifier la consistance | AV71: 1 | AW71: Passer au four en chaleur sèche à + 170 °C
AP72: Lustrer : recouvrir de nappage de gelée ou de beurre fondu, une préparation afin de lui donner un aspect brillant. | AV72: 2 | AW72: et gratiner légèrement la surface
AP73: M | AV73: 3 | AW73: Respecter la procédure de fin de cuisson
AP74: Macérer : opération consistant à faire tremper un corps dans un liquide froid pour en extraire les parties solubles ou un produit alimentaire pour le parfumer ou le conserver. | AR74: 1 | AS74: déglacer au vin blanc | AV74: 4 | AW74: Stocker en armoire chaude et maintenir à + 63 °C, en attente de consommation.
AP75: Marbrer : réaliser divers dessins sur des gâteaux glacés (au fondant, au nappage etc …) pour améliorer leur présentation. | AR75: 2 | AS75: dégraisser en partie
AP76: Masquer : recouvrir un entremets ou un fond de plat d’une légère couche de crème, de sauce ou de gelée. | AR76: 3 | AS76: égoutter et débarrasser
AP77: Monter : | AR77: 4 | AS77: étuver au beurre | AV77: ❼ | AW77: Dresser et servir
AP78: – battre au fouet une substance ou un appareil pour le rendre plus léger et en augmenter le volume (ex : blanc en neige). | AR78: 5 | AS78: faire sauter vivement | AV78: 1 | AW78: Détailler chaque bac GN en 12 portions
AP79: – assembler les différentes parties d’une pâtisserie pour en faire un gâteau plus ou moins important (monter un entremet, pièce montée). | AR79: 6 | AS79: faire suer | AV79: 2 | AW79: Servir une portion sur chaque assiette et garnir de toasts (facultatif)
AP80: Mouler : verser une substance ou une préparation liquide ou semi-liquide dans un moule pour en obtenir une reproduction de sa forme après solidification. | AR80: 7 | AS80: incorporer dans la sauce | AV80: 3
AP81: N | AR81: 8 | AS81: lier la cuisson
AP82: Napper : verser sur un met chaud ou froid une sauce, une gelée, ou une crème pour le recouvrir complètement. | AR82: 9 | AS82: lustrer à l'huie | AV82: ❽ | AW82: Commentaires
AP83: P | AR83: 10 | AS83: monter au beurre | AV83: Ⓐ | AW83: La brandade de morue n'est constituée que de poisson
AP84: Pasteuriser : action de soumettre une préparation à un traitement thermique (Température inférieure à 100°C), pendant un temps défini, afin de détruire d’éventuels germes pathogènes et de prolonger leur conservations. | AR84: 11 | AS84: mouiller au vin blanc
AP85: Passer : faire traverser un liquide dans un ustensile percé de trous pour en retenir en général les impuretés (ex : chinois, passoire, tamis). | AR85: 12 | AS85: napper de sauce | AV85: Ⓑ | AW85: C'est à tort que l'on appelle brandade celle additionnée de purée de pomme de terre
AP86: Pâton : nom donné à un morceau de pâte pesé et prêt à être façonné. | AR86: 13 | AS86: porter à ébullition
AP87: Piquer : percer de nombreux petits trous la surface d’une abaisse de pâte à l’aide d’une fourchette ou d’un pique vite, dans le but d’empêcher la formation de boursouflures durant la cuisson. | AR87: 14 | AS87: rafraichir et égoutter | AV87: Ⓒ | AW87: La brandade de morue peut être accompagnée
AP88: Pincer : faire un décor sur le pourtour d’une tarte à l’aide d’une pince spéciale. | AR88: 15 | AS88: réduire le vin | AV88: 1 | AW88: de pommes de terre à l'anglaise
AP89: Pocher : opération qui consiste à cuire une préparation ou des aliments dans un liquide (eau, sirop, etc…) à une température basse, généralement comprise entre 70° et 85°C. | AR89: 16 | AS89: sauter au beurre et à l'huile | AV89: 2 | AW89: en robe des champs
AP90: Pointage : technique survenant après le pétrissage d’une pâte levée, fermentée, permettant à la première fermentation de se réaliser et de développer des arômes caractéristiques, mais aussi de renforcer le corps de la pâte avant son façonnage. | AV90: 3 | AW90: ou de pommes purée à l'huile d'olive
AP91: Punch : mélange de sirop de sucre et d’un autre ingrédient (alcool, café, jus ou purée de fruits, vanille etc…). | AV91: 4 | AW91: et de croûtons frits
AP92: Puncher (synonyme d’imbiber): rayer avec la pointe de la lame d’un couteau d’office, inciser de raies parallèles la surface de certains gâteaux préalablement passée à la dorure afin de parfaire la présentation. | AR92: 1 | AS92: cuire à couvert
AP93: R | AR93: 2 | AS93: cuire à feu doux
AP94: Retomber : se dit d’une pâte, d’un appareil dont le volume diminue après avoir augmenté pendant le montage ou la cuisson. | AR94: 3 | AS94: cuire a feu vif | AW94: Cette Méthode de fabrication est citée à titre d'exemple
AP95: Rognures : chutes de pâtisseries provenant de découpes de pâtes, d’entremets. | AR95: 4 | AS95: cuire à four moyen
AP96: Rompre : actions manuelles consistant après un certain temps de pointage, a rabattre une pâte levée, fermentée, pour en chasser les gaz produits, avant le façonnage. | AR96: 5 | AS96: cuire à la vapeur | AW96: Je vous conseille de faire l'acquisition de l'excellent ouvrage de Michel Grossmann et Alain Le Franc
AP97: Ruban : préparation qui, après avoir été travaillé au fouet ou à la spatule, se glisse comme un ruban lorsqu’on la fait retomber de hauteur (ex : génoise). | AR97: 6 | AS97: cuire à l'eau salée
AP98: S | AR98: 7 | AS98: cuire légèrement croquant
AP99: Sabler : opération qui consiste à brasser de la farine et de la matière grasse jusqu’à l’obtention d’un mélange rappelant la texture du sable. | AR99: 8 | AS99: cuire sans coloration | AW99: LA CUISINE DE COLLECTIVITÉ
AP100: T | AR100: 9 | AS100: enfourner et cuire | AW100: Cuisine et Pâtisserie
AP101: Tabler : technique de pré-cristallisation du chocolat de couverture sur un marbre. | AR101: 10 | AS101: finir de cuire | AW101: 300 Fiches Techniques
AR102: 11 | AS102: griller et finir au four | AW102: Éditions BPI 2006
AP103: Tourer : action de plier en trois ou en quatre un pâton de pâte levée, feuilletée, après l’avoir allongée. | AR103: 12 | AS103: laisser cuire
AP104: Tremper : | AR104: 13 | AS104: passer au four très chaud
AP105: – imbiber une pièce de pâtisseries avec du sirop | AR105: 14 | AS105: piquer la sonde à cœur
AP106: – enrober des bonbons, des intérieurs, des fruits dans du chocolat de couverture ou du fondant. | AR106: 15 | AS106: préchauffer le four
AP107: V
AP108: Vanner : remuer une sauce ou une crème pendant son refroidissement pour la rendre homogène, limité son dessèchement en surface et accélérer sa descente en température.
AP109: Z | AR109: 1 | AS109: disperser au fouet
AP110: Zeste : peau découpée dans l’écorce des agrumes. | AR110: 2 | AS110: dresser à la poche
AP111: Zester : retirer la partie extérieure de l’écorce d’agrumes (citrons, oranges, pamplemousse….) à l’aide d’un zesteur ou d’une râpe. | AR111: 3 | AS111: dresser sur assiette
AR112: 4 | AS112: mélanger et porter à ébullition
AR113: 5 | AS113: mixer et passer au chinois
AO114: Lien > | AP114: https://www.passionpatisserie.fr/lexique | AR114: 6 | AS114: rectifier l'assaisonnement
AR115: 7 | AS115: rendre onctueux l'appareil
AO116: Lien > | AP116: http://devenir.patissier.free.fr/cours-CAP-vocabulaire-professionnel-eleve.pdf | AR116: 8 | AS116: répartir le fond de cuisson
AO118: Lien > | AP118: http://technologiepatisserie.blogspot.com/p/le-vocabulaire-professionnel-en.html
AR119: 1 | AS119: débarrasser dans un récipient
AO120: Lien > | AP120: https://devenirpatissier.fr/vocabulaire-professionnel/ | AR120: 2 | AS120: filmer et stocker en chambre froide
AR121: 3 | AS121: refroidir en cellule
AO122: Lien > | AP122: https://www.encoreungateau.com/pourquoi-un-blog-de-patisserie/vocabulaire-du-patissier/ | AR122: 4 | AS122: réserver au frais
AR123: 5 | AS123: réserver au froid
AR124: 6 | AS124: reserver dans des bacs
AR125: 7 | AS125: stocker en chambre froide
AR128: 1 | AS128: maintenir à température + 63°C
AR129: 2 | AS129: maintenir au bain marie + 65°C
AR130: 3 | AS130: maintenir au froid + 3°C maxi
AR131: 4 | AS131: servir tiède

Sheet Cuisiniers.Pesez
A1: =CELL("largeur",A1) -> 3 | B1: 15 | C1: 15 | D1: 15 | E1: 15 | F1: 15 | G1: 15 | H1: 15 | I1: 15 | J1: 15 | K1: 15 | L1: 15 | M1: 15 | N1: 15 | O1: 11 | P1: 16 | Q1: 11
B2: Cuisiniers : PESEZ …..Evitez les volumes , n'utilisez que les poids comme les pâtissiers
B3: Les cuisiniers "sont des artistes"……..ce qui ne doit pas les empêcher … d'UTILISEZ UNE BALANCE…...les résultats seront plus réguliers
B4: Cuisiniers : PESEZ …..même le sel…..on ne sale pas 50L de sauce à la "chichette" au "pif" ou à l'expérience
B5: la sauce crémée ne se sale pas comme la sauce tomatée etc…….
B6: lien > | C6: Les unités pifométriques
B8: Mise à jour du 16 décembre 2017 - Annule ou complète les versions précédentes lies liens sont parfois éphémères; pas de panique…..demandez à Google …il vous retrouvera un lien équivalent
B12: J'attire votre attention pour la saisie des quantités supposons qu'il y ait 400g de viande 2 œufs ou 2 pieds de veau et 5 cl de crème dans la recette …..Excel aura du mal à faire la différence
C14: ATTENTION : les saisies des poids unitaires se font en gramme
C16: Unités | D16: Quoi | E16: Poids Unitaire | F16: ❹ ingrédients | N16: quelques numérotation pour les process
C18: pour 1.050Kg saisissez 1050 la cellule est formatée pour ajouter g | N18: ❶
E19: 1050 | F19: bœuf | N19: ❷ | O19: Vous pouvez coller ces formes dans vos fiches
E20: 400 | F20: veau | N20: ❸
N21: ❹
C22: le poids UNITAIRE pour les RECETTES AU POIDS est indispensable | N22: ❺
C23: (pas le poids des 2 œufs "100g" mais le poids d'UN œuf de 50g par exemple) | N23: ❻
N24: ❼
C25: Unités | D25: Quoi | E25: Poids Unitaire | F25: ❹ ingrédients | N25: ❽
C26: 2 | D26: œufs | E26: 50 | F26: Œufs de 50 g | N26: ❾
C27: saisir QUOI pour les œufs n'est pas obligatoire | N27: ❿
C28: mais pour une pincée d'épices…une cuillère à café….une brindille c'est indispensable | N28: ⓫
N29: ⓬
C30: Recettes à la PORTION | N30: ⓭
C31: pour les recettes à la portion vous avez la possibilité de ne pas ajouter le poids unitaire de certains ingrédients | N31: ⓮
C32: si vous saisissez 2 œufs c'est possible; mais pas dans la même colonne cela fausserait le poids total | N32: ⓯
C33: Excel calculera 2 comme 2 Kg | N33: ⓰
C34: donc pour les produits à l'unité saisissez vos valeurs dans la première colonne | N34: ⓱
N35: ⓲
C36: Unités | D36: Quoi | E36: Poids Unitaire | F36: ❹ ingrédients | H36: FORMATS POUR LES FICHES AU Kg | K36: rapportez tout au Kg = 0,400 Kg de viande | N36: ⓳
C37: 2 | D37: œufs | F37: Œufs de 50 g | G37: 2 | H37: œufs | I37: 0.05 | J37: 2 | K37: œufs | L37: 0.05 | M37: Œufs de 50 g | N37: ⓴
C38: 5 | D38: C/C | F38: vinaigre | G38: 5 | H38: C/C | J38: 5 | K38: C/C | M38: vinaigre
C39: 1 | D39: pincée | F39: paprika | G39: 1 | H39: pincée | J39: 1 | K39: pincée | M39: paprika | O39: symbole diamètre
C40: 1 | D40: branche | F40: laurier | G40: 1 | H40: branche | J40: 1 | K40: branche | M40: laurier | O40: Ø
C41: 1 | D41: pied | F41: pied de veau | G41: 1 | H41: pied | J41: 1 | K41: pied | M41: pied de veau | O41: 
N42:  | O42: 
C43: les ¼ de botte de fines herbes en 0,25 les demi = 0.5 les 3/4 = 0.75
C44: idem pour les feuilles de gélatine les pieds de veau -les feuilles de basilic etc…. | M44: Avant de saisir quoi que ce soit dans une cellule cliquez dessus pour vérifier qu'il n'y ait pas de formule
C45: 0.5 | D45: feuilles | F45: gélatine | H45: C/C | I45: cuillère/Café
C46: 0.25 | D46: botte | F46: fines herbes | H46: C/P | I46: cuillère/Potage
C48: Convertissez tout de suite les volumes en poids sur la base de 1L = 1Kg
C49: 5 cl = 50g
C50: sauf cas exeptionnel pour recettes de précision
D51: Pour le lait entier, la densité donnée habituellement est de 1,030 par rapport à l'eau qui est de 1. | M51: Pour imprimer : sélectionnez les recettes qui vous conviennent : définir la zone d'impression -Mise à l'échelle : Ajuster la feuille à 1 page
D52: On peut donc considérer que les 0,030 corespondent à la graisse du lait entier.
D53: Pour le lait demi-écrémé, la graisse ne devrait représenter que 0,030/2, donc 0,015.
D54: Donc la masse d'un litre de lait demi-écrémé doit être de 1,015 Kg (1015 g).
C58: Poids des aliments sur internet
B59: lien > | C59: http://www.aliments.org/poids.htm | M59: les valeurs #DIV/0! indiquent seulement que les recettes sont "vierges" sur la feuille de saisie
B61: lien > | C61: http://www.nubel.be/fra/manual/liste_des_denrees_alimentaires.asp
C63: Tableau des calibres Fruits Frais | M63: si vous n'utilisez pas toutes les lignes vous pouvez masquer cette valeur par une couleur de police BLANC
B64: lien > | C64: http://www.crenoexpert.fr/flipbooks/expproduit/TABLEAUX-CALIBRES-FRUITS-2.pdf
B66: lien > | C66: ff-documents-apprentis-Patissiers.xlsx
B68: lien > | C68: ff-Croquis.xlsx | M68: POUR LES FICHES RECETTES A LA PORTION
M69: Nb de portions Si vous estimez que les grammages sont trop ou pas assez copieux pour vos convives : modifiez les sur ces tableaux les modifications se feront sur le tableau à imprimer
B70: lien > | C70: ff-qualiterecettes2007.xls
B72: lien > | C72: ff-tableau-cuisson.pdf
M73: Pas assez copieux : diminuez le nombre de portions cela augmentera les grammages à la portion sur le tableau à imprimer
B74: lien > | C74: PT-bonnes-pratiques.doc
B76: lien > | C76: Banque d'images pour agrémenter vos documents | M76: Trop copieux : augmentez le nombre de portions cela diminuera les grammages à la portion sur le tableau à imprimer
C82: Numérotation Format : Images pour compléter parce que les Symboles sont limités au N° 20
B86: formats personnalisés
B88: 0.00\ " cm³" | C88: 3 | E88: Dans caractères spéciaux => symboles => Nombres et symboles. Là tu descends (tu as d'abord une série de nombre entourés, puis des nombres sous fractions, ...) et enfin tu as deux lignes de 0 à 9 écrit petit, ceux sont eux, les exposants et les indices.
B90: le ³ se fait en tapant alt+0179
B92: le ² se fait en tapant alt+0178
F94: ou en copier-coller | G94: m² | H94: M² | I94: m³ | J94: M³ | K94: cm² | L94: cm³
B96: Format | cellule | personnalisé | 0" m²" | F96: ❶ | G96: ❷ | H96: ❸ | I96: ❹ | J96: ❺ | K96: X | L96: t
B98: ❻ | C98: ❼ | D98: ❽ | E98: ❾ | F98: ❿ | G98: ⓫ | H98: ⓬ | I98: ⓭ | J98: ⓮ | K98: Z | L98: q
D100: N° de colonne | E100: =COLUMN() -> 5 | G100: Adresse de cellule | H100: =ADDRESS(ROW(),COLUMN(),4) -> H100 | K100: u | L100: p
D102: Fonction : Adresse colonne | E102: =LEFT(ADDRESS(1,COLUMN(),4),LEN(ADDRESS(1,COLUMN(),4))-1) -> E | G102: N° de ligne | H102: =ROW() -> 102 | J102: le ³ se fait en tapant alt+0179
C104: Adresse PC | D104: =CELL("nomfichier") -> E:\0-UPRT\1-UPRT.FR-SITE-WEB\re-recettes-jean-marc-catteau\re-catteau-galettes\[PC-galette-garniture-mexicaine.xls]original
B107: A | C107: TEST POLICE DE CARACTERES
B108: B | C108: Saisir une ou des lettres / nombres ou une phrase cellule C jaune
B109: C | C109: Saisir ICI
C110: Sélectionnez toute les cellules ci-dessous et changez de police de caractère pour voir
B111: C | C111: =C109 -> Saisir ICI
B114: A | C114: =+C107 -> TEST POLICE DE CARACTERES
B117: B | C117: =+C108 -> Saisir une ou des lettres / nombres ou une phrase cellule C jaune
C124: Tables des caractères Unicode - Alphanumériques cerclés
B125: lien > | C125: caractères Alphanumériques cerclés
B127: lien > | C127: http://unicode.org/
B129: lien > | C129: visualiseur d'Emoji et de symboles
C131: Sélection de polices pour l'école
B132: lien > | C132: https://pragmatice.net/kitinstit/3_installer_produire_polices_selection.htm
B134: lien > | C134: http://www.philing.net/
C136: Petites leçons de Typographie
B137: lien > | C137: http://jacques-andre.fr/faqtypo/lessons.pdf
C139: Document à télécharger
B140: lien > | C140: Mémo caractères spéciaux sous Windows
C142: Polices de Caractères à Télécharger
B143: lien > | C143: http://fr.fontriver.com/
B145: lien > | C145: http://fr.fonts2u.com/category.html?id=21
C147: Retrouver une police utilisée - TechTour : Démo
B148: lien > | C148: https://www.youtube.com/watch?v=wMgBzUHzKvM
B151: 3 sites à conserver pour vos recherches de formules Excel
C152: https://web.archive.org/web/20150919082310/http://www.excelabo.net/
C154: http://www.mdf-xlpages.com/modules/publisher/
C156: Excel Québec : Formules et fonctions Excel
C158: https://www.excel-downloads.com/resources/
B160: Utilitaire pour supprimer les espace vides dans une phrase
D161: exemple de texte avec espaces (83 caractères en comptant les espaces)
D162: •Contamination microbiologique (B) •Multiplication des germes (B)
D163: •Contaminationmicrobiologique(B)•Multiplicationdesgermes(B) | I163: 59 caractères en comptant les points
B164: Collez votre texte avec espaces dans la cellule blanche
D165: =LEN(F165) -> 58 | E165: Caractères | F165: Utilitaire pour supprimer les espace vides dans une phrase
B167: Récupérez votre texte dans la cellule verte
D168: =LEN(F168) -> 50 | E168: Caractères | F168: =SUBSTITUTE(F165," ","") -> Utilitairepoursupprimerlesespacevidesdansunephrase
C169: cliquez sur la cellule verte puis sur sur Copier
C170: placez vous dans votre document :
C171: puis collage spécial Valeur pour ne pas copier la formule
C173: la formule utilisée : | D173: SUBSTITUE(G525;" ";"")
D176: Excel Québec : Formules et fonctions Excel
C178: Quelques fonctions d'excel | I178: Publié le | J178: Vues
C179: Rechercher une Fonction | I179: 2013-05-28 | J179: 4416
C180: T() - Tester et renvoyer du texte | I180: 2012-07-02 | J180: 14900
C181: EPURAGE() - Supprimer certains caractères indésirables | I181: 2012-06-02 | J181: 36257
C182: REMPLACER() - Echanger une chaîne de caractères par une autre | I182: 2012-06-02 | J182: 14390
C183: CTXT() - Convertir un nombre en texte | I183: 2012-05-23 | J183: 48910
C184: REPT() - Répéter des caractères un certain nombre de fois | I184: 2012-04-26 | J184: 14751
C185: L'Assistant Somme Conditionnelle | I185: 2011-11-01 | J185: 10084
C186: CELLULE() - Nom de l'onglet, du fichier ou du répertoire dans une cellule | I186: 2010-10-03 | J186: 45222
C187: EXACT() - Comparer deux chaînes de texte | I187: 2010-04-26 | J187: 65784
C188: Purgez les espaces inutiles ! | I188: 2010-04-05 | J188: 96965
C189: SUPPRESPACE() - Supprimer les espaces inutiles dans une cellule | I189: 2010-04-05 | J189: 45902
C190: STXT() - Extraire une chaîne de caractères au sein d'une autre | I190: 2010-03-13 | J190: 122444
C191: CHERCHE() TROUVE() - Retourne la position d'une chaîne de caractères | I191: 2010-01-04 | J191: 100241
C192: NBCAR() - Compter les caractères d'une chaîne de texte ou d'une plage de cellules | I192: 2009-11-21 | J192: 23956
C193: SUBSTITUE() - Remplacer une chaîne de texte par une autre | I193: 2009-11-08 | J193: 113684
C194: CAR() - CODE() : Utilisation des codes caractères | I194: 2009-10-25 | J194: 27154
C195: CONCATENER() - Assembler plusieurs chaînes de texte en une seule. | I195: 2009-10-10 | J195: 25774
C196: TEXTE() - Convertir une valeur numérique en texte formaté | I196: 2009-09-29 | J196: 79344
C197: DROITE() - GAUCHE() : Extraire les premiers ou derniers caractères d'une chaîne. | I197: 2009-09-12 | J197: 145176
C198: MAJUSCULE() - MINUSCULE() - NOMPROPRE(): Modifier la casse d'un texte | I198: 2009-08-23 | J198: 7657
C199: CNUM() - Convertir une chaîne en valeur numérique | I199: 2009-08-19 | J199: 45164
C200: DATEDIF() : Calculer la différence entre deux dates | I200: 2009-07-26 | J200: 105218
C201: Nommer une Plage Dynamique | I201: 2008-12-06 | J201: 59780
C202: Nommer une Plage de Cellules | I202: 2008-12-05 | J202: 75563
C203: Références Relatives & Absolues | I203: 2008-12-05 | J203: 15781
C204: Formule pour Nombres Premiers
C206: UN EXEMPLE DE GRAPHIQUE - cliquez dessus pour le modifier
A219: 1 | B219: TABLEAUX DIVERS A COPIER / COLLER DANS VOS DOCUMENTS
B220: Certains tableaux ont à peu près les mêmes fonctions pour vous laisser le libre choix en fonction de votre utilisation
B222: LIENS INTERNET POUR RECHERCHE DE FORMULES
B223: http://matoumatheux.ac-rennes.fr/sommaire.php?niv=6 | G223: Le sirop de menthe | K223: Le gâteau de riz | O223: Les rubans
B224: http://matoumatheux.ac-rennes.fr/admin/capture/chargement.htm | G224: Le cocktail mi-raisin | K224: Le far breton | O224: L'aire d'un disque
B225: http://matoumatheux.ac-rennes.fr/accueil.htm | G225: Le cocktail verger | K225: La boulangerie | O225: Le rayon d'un disque
B226: http://matoumatheux.ac-rennes.fr/divers/general/accueil.htm | G226: Le cocktail banane | K226: http://matoumatheux.ac-rennes.fr/geom/unite/accueil6.htm | O226: L'aire d'une couronne
B227: http://matoumatheux.ac-rennes.fr/divers/liens/liens.htm | G227: Le cocktail rouge | O227: L'aire latérale d'un cylindre
B228: La multiplication avec les doigts | G228: Le sirop de menthe | K228: Conversions d'unités de longueur | O228: Le volume d'un cylindre
B229: Classer des questions | G229: Rectangle ou disque | K229: Conversion d'unités de masse | O229: Le volume d'un cylindre
B230: Les seringues | G230: Segment | K230: Attaché à un piquet | O230: Le mille-feuille
B231: Les étiquettes | G231: Colorier un poisson | K231: Attaché à un piquet (1) | O231: L'aire d'un rectangle
B232: Le verre mesureur | G232: La crème pâtissière | K232: Le chien fait le tour de son domaine | O232: Le gâteau
O233: La casserole
G235: 177 vidéos dans cette partie
B236: http://webtv.ac-versailles.fr/restauration/Patisserie | G236: http://webtv.ac-versailles.fr/restauration/Patisserie | K236: http://chefsimon.lemonde.fr/recettes/tag/dessert | O236: https://www.google.fr/webhp?sourceid=chrome-instant&ion=1&espv=2&ie=UTF-8#q=RECETTES+PATISSERIE
B239: Vous recherchez un décor > | E239: cake design | G239: wedding cake photos | J239: wedding cake youtube | M239: FAIRE UN GÂTEAU VÉGÉTAL AVEC LES FLEURS DU JARDIN
A243: ICI | B243: Différentes formules pour calculer l'Aire ou surface du cercle | I243: CONVERSIONS
A244: Différentes formules pour calculer l'Aire ou surface du cercle | I244: 1m2 = 10.000 cm2 | L244: 1 cm = 0,01 m donc
I245: ou | L245: 1 cm² = 0,01 x 0,01 = 0,0001 m² = 10^-4 m²
B246: ❶ | C246: PI()*(Rayon^2) | I246: 1cm2=1/10.000 m2
B247: ❷ | C247: PI()*(Rayon*Rayon) | I247: 1cm^2=0.0001m^2 | L247: Pour passer de m² en cm² il faut faire l'inverse
B248: ❸ | C248: PI()*(Diamètre/2)*(Diamètre/2) | I248: 17 cm²=0.0017 m². | L248: 1 m = 100 cm
L249: 1 m² = 100 x 100 = 10 000 cm²
B251: Différentes formules pour calculer le volume d'un entremet | I251: 10 000 cm2 = 100 dm2 = 1 m2 | L251: copier/coller
I252: 1 cm2 = 0.001 dm2 = 0.00001 m2 | L252: 0 | M252: 0 | N252: 0 | O252: 0
B253: ❶ | C253: ((PI()*(Rayon^2)*Hauteur))
B254: ❷ | C254: (PI()*(Rayon*Rayon)*Hauteur)
B255: ❸ | C255: ((Diamètre/2)*(Diamètre/2)*3.1416)*Hauteur | I255: Nombre de parts et poids d'une portion
I256: Poids Total | J256: 8.35 | K256: poids d'1 portion | M256: 0.25 | N256: =IF(ISBLANK(M257),I260,M257) -> 33.4 | O256: parts
B257: L'aire d'un cercle de 22cm est égale à 3,14 x (11x11) = 379,94 cm2 | F257: =3.14*(11*11) -> 379.94
B258: L'aire d'un cercle de 22cm est égale à PI() x (11x11) = 380.13 cm2 | F258: PI()*(11*11) | K258: Nb de parts | M258: 70 | N258: =J256/M258 -> 0.1192857143 | O258: la portion
B259: Nb de cercles | C259: Diamètre | E259: rayon | F259: Aire ou Surface
B260: 1 | C260: 22 | E260: =C260/2 -> 11 | F260: =PI()*(E260^2) -> 380.1327111 | I260: =IF(ISBLANK(M256),0,J256/M256) -> 33.4
I261: Saisissez les valeurs dans les cellules fond jaune encre rouge
I262: Adaptation : Joël Leboucher..UPRT "Union des Personnels de la Restauration Territoriale" membre du réseau RESTAU'CO
B263: 1 | C263: 22 | E263: =C263/2 -> 11 | F263: =PI()*(E263^2) -> 380.1327111
B265: Pour intégrer ce tableau sous des documents Modèle B3-B -2015 réduisez la largeur des colonnes à 9 | I265: Transférer des cercles dans des cadres
B266: Sinon : Pour une meilleure lisibilité vous pouvez élargir les colonnes à 15 -ou Affichage Zoom 125%
B267: Adaptation : Joël Leboucher..UPRT "Union des Personnels de la Restauration Territoriale" membre du réseau RESTAU'CO | I267: CERCLES A TRANSFÉRER
I269: Nb de cercles | J269: Diamètre | K269: rayon | L269: Poids crème liquide | M269: Volume | N269: Coeff.
A270: ICI | B270: Gastro Norm
A271: Gastro Norm | B271: https://fr.wikipedia.org/wiki/Gastro_Norm | I271: 1 | J271: 22 | K271: =J271/2 -> 11 | L271: 0.15 | M271: =(PI()*(K271^2)*I271) -> 380.1327111 | N271: =N275 -> 1.57839613
B273: Le format de base est le GN 1/1, qui fait 530 x 325 mm. Les autres sont des multiples ou des sous-multiples de ce module de base. Les formats généralement rencontrés chez les professionnels sont1 : | I273: dans des moules et caisses rectangles
I275: 1 | J275: 30 | K275: 20 | L275: =(L271*N271)*I271 -> 0.2367594195 | M275: =(J275*K275)*I275 -> 600 | N275: =M275/M271 -> 1.57839613
I277: Nb de moules | J277: Longueur | K277: Largeur | L277: Poids crème liquide | M277: Volume | N277: Coeff.
I279: Saisissez vos valeurs dans les cellules fond jaune encre rouge
I280: Lien Auteur: | J280: http://www.cestmafournee.com/2013/06/quelles-quantites-pour-mon-moule.html
I281: Adaptation : Joël Leboucher..UPRT "Union des Personnels de la Restauration Territoriale" membre du réseau RESTAU'CO
I284: Différentes formules pour calculer le volume d'un cylindre (cercle à tarte)
B287: Les profondeurs les plus courantes sont 20, 40, 65, 100, 150 et 200 mm. | I287: Nb de cercles | J287: Diamètre | K287: rayon | L287: Hauteur | M287: Volume
I289: 1 | J289: 22 | K289: =J289/2 -> 11 | L289: 1 | M289: =((PI()*(K289^2)*L289))*I289 -> 380.1327111
B291: Calculez le volume des moules et cadres rectangles | I291: Nb de cercles | J291: Diamètre | K291: Hauteur | M291: Volume
B293: Nb de moules | C293: Longueur | D293: Largeur | E293: Hauteur | F293: Volume | I293: 1 | J293: 22 | K293: 1 | M293: =(((J293/2)*(J293/2)*3.1416)*K293)*I293 -> 380.1336
B295: 1 | C295: 30 | D295: 20 | E295: 1 | F295: =((C295*D295)*E295)*B295 -> 600 | I295: Nb de cercles | J295: Diamètre | K295: Hauteur | L295: Nb de parts | M295: Volume
B297: Saisissez vos valeurs dans les cellules fond jaune encre rouge | I297: 1 | J297: 22 | K297: 1 | L297: 3 | M297: =(((J297/2)*(J297/2)*PI()*K297)*I297)/L297 -> 126.7109037
B298: Adaptation : Joël Leboucher..UPRT "Union des Personnels de la Restauration Territoriale" membre du réseau RESTAU'CO
I299: Saisissez vos valeurs dans les cellules fond jaune encre rouge
I300: Adaptation : Joël Leboucher..UPRT "Union des Personnels de la Restauration Territoriale" membre du réseau RESTAU'CO
B303: Quel poids de pâte ou de liquide faut-il dans un ou des cercle (s)
B305: QUE VOULEZ VOUS FAIRE
... 412 more rows

Sheet Poids fruits et légumes
B1: POIDS DES FRUITS ET LÉGUMES …décembre 2017 annule et remplace les versions précédentes
B2: Saisissez votre nombre d'unité (encre rouge)Modifiez le poids unitaire (encre verte) s'il n'est pas excact | I2: Saisissez votre nombre d'unité (encre rouge)Modifiez le poids unitaire (encre verte) s'il n'est pas excact | P2: Saisissez votre nombre d'unité (encre rouge)Modifiez le poids unitaire (encre verte) s'il n'est pas excact
B5: N° | C5: Produits | D5: Poids unitaire | E5: Nb d'unités | F5: Poids en Gr | G5: Poids en Kg | I5: N° | J5: Produits | K5: Poids unitaire | L5: Nb d'unités | M5: Poids en Gr | N5: Poids en Kg | P5: N° | Q5: Produits | R5: Poids unitaire | S5: Nb d'unités | T5: Poids en Gr | U5: Poids en Kg
C6: A | J6: G | Q6: R | X6: 4.1. Poids et mesures (A-C) | AF6: Poids moyen (à la pièce, en grammes). | AV6: LIENS
B7: 1 | C7: Abricot | D7: 55 | E7: 10 | F7: =(D7*E7) -> 550 | G7: =F7/1000 -> 0.55 | I7: =B66+1 -> 56 | J7: Hareng | K7: 170 | L7: 10 | M7: =(K7*L7) -> 1700 | N7: =M7/1000 -> 1.7 | P7: =I68+1 -> 113 | Q7: Raisin sec Tasse thé de 15 cl | R7: 20 | S7: 10 | T7: =(R7*S7) -> 200 | U7: =T7/1000 -> 0.2
B8: =LARGE(B7:B7,1)+1 -> 2 | C8: Ail gousse | D8: 5 | E8: 10 | F8: 50 | G8: 0.05 | I8: =LARGE(I7:I7,1)+1 -> 57 | J8: Haricot sec Verre de 20 cl | K8: 160 | L8: 10 | M8: =(K8*L8) -> 1600 | N8: 1.6 | P8: =LARGE(P7:P7,1)+1 -> 114 | Q8: Riz long Verre de 20 cl | R8: 125 | S8: 10 | T8: 1250 | U8: 1.25 | X8: Aliment | Y8: Mesure de capacité | Z8: Poids | AB8: Aliment | AC8: Mesure de capacité | AD8: Poids | AF8: Biscuit sec : 10. Biscotte : 18. Croissant : 50. | AV8: http://www.nubel.be/fra/manual/liste_des_denrees_alimentaires.asp
B9: =LARGE(B7:B8,1)+1 -> 3 | C9: Ail gousse moyenne | D9: 8 | E9: 10 | F9: 80 | G9: 0.08 | I9: =LARGE(I7:I8,1)+1 -> 58 | J9: Homard moyen | K9: 885 | L9: 10 | M9: 8850 | N9: 8.85 | Q9: S | R9: 0 | T9: 0 | U9: 0
B10: =LARGE(B7:B9,1)+1 -> 4 | C10: Ail tête | D10: 50 | E10: 10 | F10: 500 | G10: 0.5 | I10: =LARGE(I7:I9,1)+1 -> 59 | J10: Homard petit | K10: 500 | L10: 10 | M10: 5000 | N10: 5 | P10: =LARGE(P7:P9,1)+1 -> 115 | Q10: Sardine | R10: 45 | S10: 10 | T10: 450 | U10: 0.45 | X10: Ananas (frais)/ananas (boîte) | Y10: 1 tranche moyenne | Z10: 100 g/35 g | AB10: Mandarine | AC10: 1 moyenne | AD10: 60 g | AF10: Crustacés (entiers) : écrevisse 34, homard 885. | AV10: https://www.nubel.be/fra/default.aspx
B11: =LARGE(B7:B10,1)+1 -> 5 | C11: Ananas | D11: 2000 | E11: 10 | F11: 20000 | G11: 20 | J11: L | K11: 0 | M11: 0 | N11: 0 | P11: =LARGE(P7:P10,1)+1 -> 116 | Q11: Sel 1 pincée | R11: 1 | S11: 10 | T11: 10 | U11: 0.01 | X11: Avocat | Y11: 1 moyen | Z11: 160 g | AB11: Mangue | AC11: 1 moyenne | AD11: 200 g
B12: =LARGE(B7:B11,1)+1 -> 6 | C12: Artichaut | D12: 350 | E12: 10 | F12: 3500 | G12: 3.5 | I12: =LARGE(I7:I11,1)+1 -> 60 | J12: Lapin vidé | K12: 1500 | L12: 10 | M12: 15000 | N12: 15 | P12: =LARGE(P7:P11,1)+1 -> 117 | Q12: Sel fin 1 cuillère café rase | R12: 50 | S12: 10 | T12: 500 | U12: 0.5 | X12: Abricot (sans noyau) | Y12: 1 | Z12: 150 g | AB12: Maquereau fumé | AC12: 1 filet | AD12: 145 g | AF12: Fromages : camembert 250, livarot 500, pont-l'évêque 320, petit-suisse 25-30, yaourt (petit pot) 120-150. | AV12: POIDS MOYEN BRUT DE LA PIÈCE | AX12: http://www.basesdelacuisine.com/Cadre1/z1/pp80.htm
B13: =LARGE(B7:B12,1)+1 -> 7 | C13: Avocat 1/2 | D13: 110 | E13: 10 | F13: 1100 | G13: 1.1 | I13: =LARGE(I7:I12,1)+1 -> 61 | J13: Lentilles Verre de 20 cl | K13: 150 | L13: 10 | M13: 1500 | N13: 1.5 | P13: =LARGE(P7:P12,1)+1 -> 118 | Q13: Sel fin 1 cuillère soupe rase | R13: 15 | S13: 10 | T13: 150 | U13: 0.15 | AB13: Margarine | AC13: 1 cuillère | AD13: 18 g
B14: =LARGE(B7:B13,1)+1 -> 8 | C14: Avocat entier | D14: 220 | E14: 10 | F14: 2200 | G14: 2.2 | J14: M | K14: 0 | M14: 0 | N14: 0 | P14: =LARGE(P7:P13,1)+1 -> 119 | Q14: Sel fin 1 tasse | R14: 200 | S14: 10 | T14: 2000 | U14: 2 | X14: Bacon | Y14: 1 fine tranche | Z14: 11 g | AB14: Mayonnaise | AC14: 1 cuillère | AD14: 25 g | AF14: Fruits : abricot 55, banane 150, citron 125, datte 10, figue sèche 42, figue fraîche 45, mandarine 100, noix 13, orange 180, pamplemousse 400, pêche 130, poire 180, pomme 120, pruneau 15. | AV14: Fruits et légumes frais Poids moyen d'une pièce | AY14: http://lahalledepessac.com/content/14-fruits-et-legumes-frais-poids-moyen-d-une-piece
C15: B | D15: 0 | F15: 0 | G15: 0 | I15: =LARGE(I7:I14,1)+1 -> 62 | J15: Maizena 1 cuillère soupe | K15: 10 | L15: 10 | M15: 100 | N15: 0.1 | P15: =LARGE(P7:P14,1)+1 -> 120 | Q15: Sel pour 1 Kg Blé | R15: 12 | S15: 10 | T15: 120 | U15: 0.12 | X15: Banane | Y15: 1 moyenne | Z15: 130 g | AB15: Melon | AC15: 1 moyen | AD15: 540 g
B16: =LARGE(B7:B15,1)+1 -> 9 | C16: Banane | D16: 120 | E16: 10 | F16: 1200 | G16: 1.2 | I16: =LARGE(I7:I15,1)+1 -> 63 | J16: Melon gros | K16: 800 | L16: 10 | M16: 8000 | N16: 8 | P16: =LARGE(P7:P15,1)+1 -> 121 | Q16: Sel pour 1 Kg Foie gras | R16: 12 | S16: 10 | T16: 120 | U16: 0.12 | X16: Beurre | Y16: 1 cuillère | Z16: 18 g | AB16: Merlan | AC16: 1 filet | AD16: 100 g | AF16: Légumes : artichaut 250, aubergine 225, chou 1 000, chou-fleur 1 200, laitue 500, romaine 400, chicorée frisée 400, melon 700-1 000, radis (la botte) 350, tomate 100, oignon 125. | AV16: TABLES DE GRAMMAGES | AW16: http://etab.ac-poitiers.fr/lycee-hotelier-la-rochelle/IMG/pdf/Grammage_4.pdf
B17: =LARGE(B7:B16,1)+1 -> 10 | C17: Baton de vanille | D17: 8 | E17: 10 | F17: 80 | G17: 0.08 | I17: =LARGE(I7:I16,1)+1 -> 64 | J17: Melon portion | K17: 500 | L17: 10 | M17: 5000 | N17: 5 | P17: =LARGE(P7:P16,1)+1 -> 122 | Q17: Sel pour 1 Kg Merguez | R17: 19 | S17: 10 | T17: 190 | U17: 0.19 | X17: Beurre de cacahuète | Y17: 1 cuillère | Z17: 15 g | AB17: Miel | AC17: 1 cuillère | AD17: 27 g
B18: =LARGE(B7:B17,1)+1 -> 11 | C18: Beurre 1 cuillère café | D18: 4 | E18: 10 | F18: 40 | G18: 0.04 | I18: =LARGE(I7:I17,1)+1 -> 65 | J18: Merlan | K18: 230 | L18: 10 | M18: 2300 | N18: 2.3 | P18: =LARGE(P7:P17,1)+1 -> 123 | Q18: Sel pour 1 Kg Pâtes alimentaires | R18: 12 | S18: 10 | T18: 120 | U18: 0.12 | X18: Bière (pils) | Y18: 1 verre à bière | Z18: 250 ml | AB18: Milk-shake | AC18: 1 verre | AD18: 150 ml | AF18: Poissons (entiers) : brochet 1 250, carpe 775, colin 2 000, daurade 600, églefin 350, hareng 170, saur 130, limande 150, maquereau 250, merlan 230, plie 160, sardine 45, truite 450, turbot 2 350. | AV18: POIDS MOYEN BRUT LEGUMES ET FRUITS | AX18: http://dmcwilshim.canalblog.com/archives/2009/01/18/12131475.html
B19: =LARGE(B7:B18,1)+1 -> 12 | C19: Beurre 1 cuillère soupe | D19: 15 | E19: 10 | F19: 150 | G19: 0.15 | I19: =LARGE(I7:I18,1)+1 -> 66 | J19: Mouton 1/2 carcasse | K19: 9.5 | L19: 10 | M19: 95 | N19: 0.095 | P19: =LARGE(P7:P18,1)+1 -> 124 | Q19: Sel pour 1 Kg Pommes terre | R19: 13 | S19: 10 | T19: 130 | U19: 0.13 | X19: Biscotte blanche/complète | Y19: 1 | Z19: 8 g/10 g | AB19: Moule | AC19: 1 pièce | AD19: 4 g
B20: =LARGE(B7:B19,1)+1 -> 13 | C20: Beurre 1 noisette | D20: 4 | E20: 10 | F20: 40 | G20: 0.04 | I20: =LARGE(I7:I19,1)+1 -> 67 | J20: Mouton carré couvert (5+3) | K20: 900 | L20: 10 | M20: 9000 | N20: 9 | P20: =LARGE(P7:P19,1)+1 -> 125 | Q20: Sel pour 1 Kg Saucisse a griller | R20: 12 | S20: 10 | T20: =(R20*S20)/1000 -> 0.12 | U20: 0.00012 | X20: Biscuit | Y20: 1 | Z20: 10 g | AB20: Muesli | AC20: 1 tasse à café | AD20: 50 g | AF20: Sucre (morceau) : 6. | AV20: Correspondance Calibre/ Poids fruits legumes
B21: =LARGE(B7:B20,1)+1 -> 14 | C21: Beurre 1 noix | D21: 15 | E21: 10 | F21: 150 | G21: 0.15 | I21: =LARGE(I7:I20,1)+1 -> 68 | J21: Mouton carré découvert (5) | K21: 900 | L21: 10 | M21: 9000 | N21: 9 | P21: =LARGE(P7:P20,1)+1 -> 126 | Q21: Sel pour 1 Kg Semoule a couscous | R21: 13 | S21: 10 | T21: =(R21*S21)/1000 -> 0.13 | U21: 0.00013 | X21: Biscuit apéritif | Y21: 1 pièce | Z21: 4 g
B22: =LARGE(B7:B21,1)+1 -> 15 | C22: Beurre 1 tasse | D22: 200 | E22: 10 | F22: 2000 | G22: 2 | I22: =LARGE(I7:I21,1)+1 -> 69 | J22: Mouton cervelle | K22: 230 | L22: 10 | M22: 2300 | N22: 2.3 | P22: =LARGE(P7:P21,1)+1 -> 127 | Q22: Semoule Tasse thé de 15 cl | R22: 110 | S22: 10 | T22: =(R22*S22)/1000 -> 1.1 | U22: 0.0011 | X22: Biscuit au chocolat | Y22: 1 | Z22: 20 g | AB22: Nectarine | AC22: 1 | AD22: 95 g | AF22: Viandes : lapin (vidé) 1 500 ; oie (entière) 5 500 ; poulet (entier) 1 800. Cervelle : bœuf 500, veau 300, mouton 100, porc 110. | AV22: https://portal.health.fgov.be/pls/portal/docs/PAGE/INTERNET_PG/HOMEPAGE_MENU/ABOUTUS1_MENU/INSTITUTIONSAPPARENTEES1_MENU/HOGEGEZONDHEIDSRAAD1_MENU/ADVIEZENENAANBEVELINGEN1_MENU/ADVIEZENENAANBEVELINGEN1_DOCS/6545-2_POIDSETMESURES_FR_2005_2.PDF
B23: =LARGE(B7:B22,1)+1 -> 16 | C23: Bœuf Cervelle | D23: 500 | E23: 10 | F23: 5000 | G23: 5 | I23: =LARGE(I7:I22,1)+1 -> 70 | J23: Mouton cœur | K23: 230 | L23: 10 | M23: 2300 | N23: 2.3 | P23: =LARGE(P7:P22,1)+1 -> 128 | Q23: Semoule Verre de 20 cl | R23: 130 | S23: 10 | T23: =(R23*S23)/1000 -> 1.3 | U23: 0.0013 | X23: Boudin blanc | Y23: 1 | Z23: 100 g | AB23: Noisettes | AC23: 10 pièces | AD23: 12 g | AF23: Cœur : bœuf 2 750, veau 500, mouton 230, porc 225. Foie : bœuf 8 500, veau 2 500, porc 750.
B24: =LARGE(B7:B23,1)+1 -> 17 | C24: Bœuf cœur | D24: 2750 | E24: 10 | F24: 27500 | G24: 27.5 | I24: =LARGE(I7:I23,1)+1 -> 71 | J24: Mouton épaule | K24: 1.7 | L24: 10 | M24: 17 | N24: 0.017 | P24: =LARGE(P7:P23,1)+1 -> 129 | Q24: Sole T1 | R24: 280 | S24: 10 | T24: =(R24*S24) -> 2800 | U24: 2.8 | X24: Boudin noir | Y24: 1 | Z24: 100 g | AF24: Langue : bœuf 4 000, veau 1 000. Pied de porc 200. Ris de veau 750. Rognon : bœuf 1 000, veau 250, porc 170. | AV24: http://www.aliments.org/poids.htm
B25: =LARGE(B7:B24,1)+1 -> 18 | C25: Bœuf entrecôte | D25: 6000 | E25: 10 | F25: 60000 | G25: 60 | I25: =LARGE(I7:I24,1)+1 -> 72 | J25: Mouton gigot raccourci | K25: 2.2 | L25: 10 | M25: 22 | N25: 0.022 | P25: =LARGE(P7:P24,1)+1 -> 130 | Q25: Sole T2 | R25: 350 | S25: 10 | T25: 3500 | U25: 3.5 | X25: Boudoir | Y25: 1 | Z25: 5,5 g | AB25: Oeuf cuit | AC25: 1 | AD25: 50 g
B26: =LARGE(B7:B25,1)+1 -> 19 | C26: Bœuf faux filet | D26: 8000 | E26: 10 | F26: 80000 | G26: 80 | I26: =LARGE(I7:I25,1)+1 -> 73 | J26: Mouton selle anglaise | K26: 2 | L26: 10 | M26: 20 | N26: 0.02 | P26: =LARGE(P7:P25,1)+1 -> 131 | Q26: Sole T3 | R26: 500 | S26: 10 | T26: 5000 | U26: 5 | AB26: Oignon | AC26: 1 moyen | AD26: 115 g | AV26: http://www.astro.ulg.ac.be/cours/magain/stat/stat52.html
B27: =LARGE(B7:B26,1)+1 -> 20 | C27: Bœuf filet | D27: 4200 | E27: 10 | F27: 42000 | G27: 42 | J27: N | K27: 0 | M27: 0 | N27: 0 | P27: =LARGE(P7:P26,1)+1 -> 132 | Q27: Sole T4 + de | R27: 600 | S27: 10 | T27: 6000 | U27: 6 | X27: Cabillaud | Y27: 1 darne | Z27: 175 g | AB27: Olive | AC27: 1 moyenne | AD27: 4 g | AF27: Modification. Poids brut d'aliments résultant de la cuisson de:
B28: =LARGE(B7:B27,1)+1 -> 21 | C28: Bœuf foie | D28: 8500 | E28: 10 | F28: 85000 | G28: 85 | I28: =LARGE(I7:I27,1)+1 -> 74 | J28: Noix | K28: 8 | L28: 10 | M28: 80 | N28: 0.08 | P28: =LARGE(P7:P27,1)+1 -> 133 | Q28: Sole T4 + de | R28: 800 | S28: 10 | T28: 8000 | U28: 8 | X28: Cacahuètes | Y28: 1 cuillère/10 pièces | Z28: 20 g/20 g | AB28: Omelette (1 œuf) | AC28: 1 | AD28: 60 g | AV28: lien : une portion c'est combien sur la nutrition.fr
B29: =LARGE(B7:B28,1)+1 -> 22 | C29: Bœuf langue | D29: 4000 | E29: 10 | F29: 40000 | G29: 40 | I29: =LARGE(I7:I28,1)+1 -> 75 | J29: Noix épluchées Tasse thé de 15 cl | K29: 50 | L29: 10 | M29: 500 | N29: 0.5 | P29: =LARGE(P7:P28,1)+1 -> 134 | Q29: Sucre morceaux | R29: 5 | S29: 10 | T29: 50 | U29: 0.05 | X29: Café/thé | Y29: 1 tasse | Z29: 125g | AB29: Orange | AC29: 1 moyenne | AD29: 140 g | AF29: 100 g d'aliments crus. Farineux : coquillettes 385, macaronis 400, nouilles 385, riz 295, spaghettis 385.
B30: =LARGE(B7:B29,1)+1 -> 23 | C30: Bœuf rognon | D30: 1000 | E30: 10 | F30: 10000 | G30: 10 | J30: O | K30: 0 | M30: 0 | N30: 0 | P30: =LARGE(P7:P29,1)+1 -> 135 | Q30: Sucre semoule 1 cuillère café | R30: 5 | S30: 10 | T30: 50 | U30: 0.05 | X30: Cake | Y30: 1 fine tranche | Z30: 30 g
B31: =LARGE(B7:B30,1)+1 -> 24 | C31: Bœuf train côtes milieu | D31: 8500 | E31: 10 | F31: 85000 | G31: 85 | I31: =LARGE(I7:I30,1)+1 -> 76 | J31: Oeuf le blanc | K31: 30 | L31: 10 | M31: 300 | N31: 0.3 | P31: =LARGE(P7:P30,1)+1 -> 136 | Q31: Sucre semoule 1 cuillère soupe | R31: 15 | S31: 10 | T31: 150 | U31: 0.15 | X31: Cake fourré aux fruits | Y31: 1 fine tranche | Z31: 35 g | AB31: Pain blanc/gris | AC31: 1 tranche carrée | AD31: 27 g | AF31: 100 g d'aliments crus. Légumes frais : artichauts 87, asperges 87, bettes 90, betteraves rouges à l'eau 91, au four 57, carottes à l'eau 100, à l'étouffée 64,
B32: =LARGE(B7:B31,1)+1 -> 25 | C32: Brochet | D32: 1250 | E32: 10 | F32: 12500 | G32: 12.5 | I32: =LARGE(I7:I31,1)+1 -> 77 | J32: Oeuf gros | K32: 60 | L32: 10 | M32: 600 | N32: 0.6 | P32: =LARGE(P7:P31,1)+1 -> 137 | Q32: Sucre semoule 1 tasse | R32: 200 | S32: 10 | T32: 2000 | U32: 2 | X32: Canard/faisan | Y32: 1 portion | Z32: 125 g | AB32: Pain blanc/gris | AC32: 1 tranche ronde | AD32: 29 g
C33: C | F33: 0 | G33: 0 | I33: =LARGE(I7:I32,1)+1 -> 78 | J33: Oeuf moyen | K33: 50 | L33: 10 | M33: 500 | N33: 0.5 | P33: =LARGE(P7:P32,1)+1 -> 138 | Q33: Sucre Verre de 20 cl | R33: 150 | S33: 10 | T33: 1500 | U33: 1.5 | X33: Carambole | Y33: 1 pièce | Z33: 155 g | AB33: Pain complet | AC33: 1 tranche carrée | AD33: 35 g | AF33: 100 g d'aliments crus. légumes frais : , céleris (côtes) 94, raves cuites à l'eau 91, sautées 54, champignons de couche frits 83,
B34: =LARGE(B7:B33,1)+1 -> 26 | C34: Cacao poudre 1 cuillère soupe | D34: 8 | E34: 10 | F34: 80 | G34: 0.08 | I34: =LARGE(I7:I33,1)+1 -> 79 | J34: Oeuf petit | K34: 40 | L34: 10 | M34: 400 | N34: 0.4 | Q34: T | R34: 0 | T34: 0 | U34: 0 | X34: Carotte | Y34: 1 moyenne | Z34: 100 g | AB34: Pain complet | AC34: 1 tranche ronde | AD34: 45 g
B35: =LARGE(B7:B34,1)+1 -> 27 | C35: Cacao Tasse thé de 15 cl | D35: 120 | E35: 10 | F35: 1200 | G35: 1.2 | I35: =LARGE(I7:I34,1)+1 -> 80 | J35: Œufs 1 douzaine | K35: 50 | L35: 12 | M35: 600 | N35: 0.6 | P35: =LARGE(P7:P34,1)+1 -> 139 | Q35: Tapioca Tasse thé de 15 cl | R35: 100 | S35: 10 | T35: 1000 | U35: 1 | X35: Céleri rave, cru | Y35: 1 portion | Z35: 85 g | AB35: Pain grillé blanc/gris | AC35: 1 | AD35: 21 g | AF35: 100 g d'aliments crus. légumes frais : chou vert, cuit à l'eau 92, à l'étouffée 64, de Bruxelles 86, -fleur 92,
B36: =LARGE(B7:B35,1)+1 -> 28 | C36: Canard vidé | D36: 1500 | E36: 10 | F36: 15000 | G36: 15 | I36: =LARGE(I7:I35,1)+1 -> 81 | J36: Œufs blanc d' | K36: 30 | L36: 10 | M36: 300 | N36: 0.3 | P36: =LARGE(P7:P35,1)+1 -> 140 | Q36: Thon boite 1/10 | R36: 80 | S36: 10 | T36: 800 | U36: 0.8 | X36: Céréales de petit déjeuner | Y36: 1 tasse à café | Z36: 40 g | AB36: Pain d'épices | AC36: 1 tranche | AD36: 23 g
B37: =LARGE(B7:B36,1)+1 -> 29 | C37: Carotte moyenne | D37: 120 | E37: 10 | F37: 1200 | G37: 1.2 | I37: =LARGE(I7:I36,1)+1 -> 82 | J37: Œufs entiers | K37: 50 | L37: 10 | M37: 500 | N37: 0.5 | P37: =LARGE(P7:P36,1)+1 -> 141 | Q37: Thon boite 1/3 saladière | R37: 260 | S37: 10 | T37: 2600 | U37: 2.6 | X37: Cerise (sans noyau) | Y37: 1 | Z37: 4 g | AB37: Pain de seigle | AC37: 1 tranche | AD37: 40 g | AF37: 100 g d'aliments crus. légumes frais : épinards cuits à l'eau ou au jus 83, haricots verts cuits à l'eau 104, à l'étouffée 90, navets, cuits à l'eau 95, à l'étouffée 92,
B38: =LARGE(B7:B37,1)+1 -> 30 | C38: Céléri 1 branche | D38: 35 | E38: 10 | F38: 350 | G38: 0.35 | I38: =LARGE(I7:I37,1)+1 -> 83 | J38: Œufs jaune | K38: 20 | L38: 10 | M38: 200 | N38: 0.2 | P38: =LARGE(P7:P37,1)+1 -> 142 | Q38: Thon boite 1/5 | R38: 160 | S38: 10 | T38: 1600 | U38: 1.6 | X38: Cervelas | Y38: 1 | Z38: 150 g | AB38: Pain de viande | AC38: 1 fine tranche | AD38: 30 g
B39: =LARGE(B7:B38,1)+1 -> 31 | C39: Céléri rave | D39: 1000 | E39: 10 | F39: 10000 | G39: 10 | I39: =LARGE(I7:I38,1)+1 -> 84 | J39: Oignon moyen | K39: 70 | L39: 10 | M39: 700 | N39: 0.7 | P39: =LARGE(P7:P38,1)+1 -> 143 | Q39: Thon boite 1/6 basse | R39: 430 | S39: 10 | T39: 4300 | U39: 4.3 | X39: Champignon, cuit | Y39: 1 cuillère | Z39: 30 g | AB39: Pain français (baguette) | AC39: 1 moyen | AD39: 260 g | AF39: 100 g d'aliments crus. légumes frais : poireaux 81, p. de terre en robe des champs 98, à l'anglaise 95, au four 80, en purée 119, en ragoût 154, frites 44 1,
B40: =LARGE(B7:B39,1)+1 -> 32 | C40: Cerises | D40: 65 | E40: 10 | F40: 650 | G40: 0.65 | I40: =LARGE(I7:I39,1)+1 -> 85 | J40: Olives | K40: 4 | L40: 10 | M40: 40 | N40: 0.04 | P40: =LARGE(P7:P39,1)+1 -> 144 | Q40: Thon boite 1/8 | R40: 52 | S40: 10 | T40: 520 | U40: 0.52 | X40: Chicon | Y40: 1 | Z40: 100 g | AB40: Pamplemousse | AC40: 1 moyen | AD40: 200 g
B41: =LARGE(B7:B40,1)+1 -> 33 | C41: Choux fleur | D41: 1500 | E41: 10 | F41: 15000 | G41: 15 | I41: =LARGE(I7:I40,1)+1 -> 86 | J41: Orange | K41: 240 | L41: 10 | M41: 2400 | N41: 2.4 | P41: =LARGE(P7:P40,1)+1 -> 145 | Q41: Thon boite 4/4 saladière | R41: 118 | S41: 10 | T41: 1180 | U41: 1.18 | X41: Chips | Y41: 1 paquet | Z41: 30 g | AB41: Papaye | AC41: 1 moyenne | AD41: 125 g | AF41: 100 g d'aliments crus. légumes frais : , potiron 55, scarole 71, tomates frites 69. Légumes secs : fèves 310, haricots 270,
B42: =LARGE(B7:B41,1)+1 -> 34 | C42: Choux vert | D42: 2000 | E42: 10 | F42: 20000 | G42: 20 | I42: =LARGE(I7:I41,1)+1 -> 87 | J42: Orange moyenne | K42: 140 | L42: 10 | M42: 1400 | N42: 1.4 | P42: =LARGE(P7:P41,1)+1 -> 146 | Q42: Tomate grosse | R42: 110 | S42: 10 | T42: 1100 | U42: 1.1 | X42: Chocolat | Y42: 1 barre | Z42: 25 g | AB42: Parmesan | AC42: 1 cuillère | AD42: 10 g
B43: =LARGE(B7:B42,1)+1 -> 35 | C43: Citron moyen | D43: 80 | E43: 10 | F43: 800 | G43: 0.8 | J43: P | K43: 0 | M43: 0 | N43: 0 | P43: =LARGE(P7:P42,1)+1 -> 147 | Q43: Tomate moyenne | R43: 50 | S43: 10 | T43: 500 | U43: 0.5 | X43: Chou de Bruxelles, cuit | Y43: 1 cuillère | Z43: 40 g | AB43: Pastèque | AC43: 1 moyenne | AD43: 1125 g | AF43: 100 g d'aliments crus. légumes frais : ,, pois cassés 400.
B44: =LARGE(B7:B43,1)+1 -> 36 | C44: Clémentine | D44: 70 | E44: 10 | F44: 700 | G44: 0.7 | I44: =LARGE(I7:I43,1)+1 -> 88 | J44: Pamplemousse | K44: 400 | L44: 10 | M44: 4000 | N44: 4 | P44: =LARGE(P7:P43,1)+1 -> 148 | Q44: Tomate petite | R44: 50 | S44: 10 | T44: 500 | U44: 0.5 | X44: Chou-fleur/brocoli, cuit | Y44: 1 cuillère | Z44: 30 g | AB44: Pâte à tartiner (choco) | AC44: 1 cuillère | AD44: 33 g
B45: =LARGE(B7:B44,1)+1 -> 37 | C45: Colin | D45: 2000 | E45: 10 | F45: 20000 | G45: 20 | I45: =LARGE(I7:I44,1)+1 -> 89 | J45: Pêche | K45: 120 | L45: 10 | M45: 1200 | N45: 1.2 | P45: =LARGE(P7:P44,1)+1 -> 149 | Q45: Truite portion | R45: 250 | S45: 10 | T45: 2500 | U45: 2.5 | X45: Citron | Y45: 1 moyen | Z45: 70 g | AB45: Pâté de foie | AC45: 1 cuillère | AD45: 15 g | AF45: 100 g d'aliments crus. l Poissons : au court-bouillon 95, frits 81. Crevettes : 97.
B46: =LARGE(B7:B45,1)+1 -> 38 | C46: Concombre | D46: 200 | E46: 10 | F46: 2000 | G46: 2 | I46: =LARGE(I7:I45,1)+1 -> 90 | J46: Pied veau | K46: 1 | L46: 10 | M46: 10 | N46: 0.01 | P46: =LARGE(P7:P45,1)+1 -> 150 | Q46: Turbot | R46: 3500 | S46: 10 | T46: 35000 | U46: 35 | X46: Clémentine | Y46: 1 | Z46: 35 g | AB46: Pâtes, cuites | AC46: 1 tasse à café | AD46: 210 g
B47: =LARGE(B7:B46,1)+1 -> 39 | C47: Coquillette Verre de 20 cl | D47: 120 | E47: 10 | F47: 1200 | G47: 1.2 | I47: =LARGE(I7:I46,1)+1 -> 91 | J47: Poireau beau | K47: 200 | L47: 10 | M47: 2000 | N47: 2 | Q47: V | R47: 0 | T47: 0 | U47: 0 | X47: Compote de pommes | Y47: 1 cuillère | Z47: 40 g | AB47: Pâtes, sèches | AC47: 1 tasse à café | AD47: 70 g | AF47: 100 g d'aliments crus. Viandes : bœuf : bifteck grillé 88, au gril 83, au plat 88, rôti (1/2 h) 77, bouilli 83.
B48: =LARGE(B7:B47,1)+1 -> 40 | C48: Courgette | D48: 350 | E48: 10 | F48: 3500 | G48: 3.5 | I48: =LARGE(I7:I47,1)+1 -> 92 | J48: Poireau blanc de | K48: 40 | L48: 10 | M48: 400 | N48: 0.4 | P48: =LARGE(P7:P47,1)+1 -> 151 | Q48: Veau carré couvert (5+3) | R48: 2200 | S48: 10 | T48: 22000 | U48: 22 | X48: Concombre, cru | Y48: 1 portion | Z48: 85 g | AB48: Pêche (sans noyau) | AC48: 1 | AD48: 125 g
B49: =LARGE(B7:B48,1)+1 -> 41 | C49: Cresson botte | D49: 200 | E49: 10 | F49: 2000 | G49: 2 | I49: =LARGE(I7:I48,1)+1 -> 93 | J49: Poireau moyen | K49: 150 | L49: 10 | M49: 1500 | N49: 1.5 | P49: =LARGE(P7:P48,1)+1 -> 152 | Q49: Veau carré découvert (5) | R49: 2000 | S49: 10 | T49: 20000 | U49: 20 | X49: Confiture | Y49: 1 cuillère | Z49: 30 g | AB49: Pickles | AC49: 1 cuillère | AD49: 15 g | AF49: 100 g d'aliments crus. Viandes : Veau : à la poêle 93, rôti (3/4 d'h) 74. Mouton : rôti 73, sauté 69.
B50: =LARGE(B7:B49,1)+1 -> 42 | C50: Cuillère café liquide | D50: 5 | E50: 10 | F50: 50 | G50: 0.05 | I50: =LARGE(I7:I49,1)+1 -> 94 | J50: Poivron | K50: 150 | L50: 10 | M50: 1500 | N50: 1.5 | P50: =LARGE(P7:P49,1)+1 -> 153 | Q50: Veau cervelle | R50: 300 | S50: 10 | T50: 3000 | U50: 3 | X50: Corned-beef | Y50: 1 fine tranche | Z50: 20 g | AB50: Pistolet | AC50: 1 | AD50: 45 g
B51: =LARGE(B7:B50,1)+1 -> 43 | C51: Cuillère soupe liquide | D51: 10 | E51: 10 | F51: 100 | G51: 0.1 | I51: =LARGE(I7:I50,1)+1 -> 95 | J51: Pomelos 1/2 | K51: 200 | L51: 10 | M51: 2000 | N51: 2 | P51: =LARGE(P7:P50,1)+1 -> 154 | Q51: Veau cœur | R51: 900 | S51: 10 | T51: 9000 | U51: 9 | X51: Corn Flakes | Y51: 1 tasse à café | Z51: 30 g | AB51: Plie | AC51: 1 pièce | AD51: 135 g | AF51: 100 g d'aliments crus. Viandes : Porc : côtelette 83, rôti 64. Cheval : bifteck à la poêle 93. Foie : 91. Boudin : 94. Saucisse fraîche : 92.
C52: D | D52: 0 | F52: 0 | G52: 0 | I52: =LARGE(I7:I51,1)+1 -> 96 | J52: Pomme | K52: 140 | L52: 10 | M52: 1400 | N52: 1.4 | P52: =LARGE(P7:P51,1)+1 -> 155 | Q52: Veau Foie | R52: 3500 | S52: 10 | T52: 35000 | U52: 35 | X52: Couque à la crème | Y52: 1 | Z52: 80 g | AB52: Poire | AC52: 1 moyenne | AD52: 160 g
B53: =LARGE(B7:B52,1)+1 -> 44 | C53: Daurade | D53: 600 | E53: 10 | F53: 6000 | G53: 6 | I53: =LARGE(I7:I52,1)+1 -> 97 | J53: Pomme de terre moyenne | K53: 100 | L53: 10 | M53: 1000 | N53: 1 | P53: =LARGE(P7:P52,1)+1 -> 156 | Q53: Veau langue | R53: 1200 | S53: 10 | T53: 12000 | U53: 12 | X53: Couque au beurre | Y53: 1 | Z53: 75 g | AB53: Poireau, cuit | AC53: 1 cuillère | AD53: 45 g | AG53: Verres
C54: E | D54: 0 | F54: 0 | G54: 0 | I54: =LARGE(I7:I53,1)+1 -> 98 | J54: Pomme fruit grosse | K54: 150 | L54: 10 | M54: 1500 | N54: 1.5 | P54: =LARGE(P7:P53,1)+1 -> 157 | Q54: Veau noix | R54: 3100 | S54: 10 | T54: 31000 | U54: 31 | X54: Couque suisse | Y54: 1 longue / ronde | Z54: 75 g / 90 g | AB54: Poivron vert/jaune/rouge | AC54: 1 pièce | AD54: 185 g | AG54: Petit verre à eau/limonade, rempli normalement 150
B55: =LARGE(B7:B54,1)+1 -> 45 | C55: Eau grand verre à eau | D55: 200 | E55: 10 | F55: 2000 | G55: 2 | I55: =LARGE(I7:I54,1)+1 -> 99 | J55: Pomme fruit moyenne | K55: 100 | L55: 10 | M55: 1000 | N55: 1 | P55: =LARGE(P7:P54,1)+1 -> 158 | Q55: Veau noix patissière | R55: 2650 | S55: 10 | T55: 26500 | U55: 26.5 | X55: Courgette, cuite | Y55: 1 cuillère | Z55: 35 g | AB55: Pomme | AC55: 1 moyenne | AD55: 140 g
B56: =LARGE(B7:B55,1)+1 -> 46 | C56: Echalote belle | D56: 25 | E56: 10 | F56: 250 | G56: 0.25 | I56: =LARGE(I7:I55,1)+1 -> 100 | J56: Pomme terre grosse | K56: 200 | L56: 10 | M56: 2000 | N56: 2 | P56: =LARGE(P7:P55,1)+1 -> 159 | Q56: Veau ris | R56: 750 | S56: 10 | T56: 7500 | U56: 7.5 | X56: Cramique | Y56: 1 tranche | Z56: 40 g | AB56: Pomme de terre, cuite (ovale) | AC56: 1 | AD56: 50 g | AG56: Grand verre à eau/limonade, rempli normalement 250
B57: =LARGE(B7:B56,1)+1 -> 47 | C57: Echalote moyenne | D57: 18 | E57: 10 | F57: 180 | G57: 0.18 | I57: =LARGE(I7:I56,1)+1 -> 101 | J57: Pomme terre moyenne | K57: 120 | L57: 10 | M57: 1200 | N57: 1.2 | P57: =LARGE(P7:P56,1)+1 -> 160 | Q57: Veau rognon | R57: 350 | S57: 10 | T57: 3500 | U57: 3.5 | X57: Crème | Y57: 1 cuillère | Z57: 24 g | AB57: Pomme de terre, rôtie | AC57: 1 cuillère | AD57: 30 g
B58: =LARGE(B7:B57,1)+1 -> 48 | C58: Echalote petite | D58: 10 | E58: 10 | F58: 100 | G58: 0.1 | I58: =LARGE(I7:I57,1)+1 -> 102 | J58: Pomme terre petite | K58: 80 | L58: 10 | M58: 800 | N58: 0.8 | P58: =LARGE(P7:P57,1)+1 -> 161 | Q58: Veau sous noix | R58: 6200 | S58: 10 | T58: 62000 | U58: 62 | X58: Crème à fouetter | Y58: 1 cuillère | Z58: 12 g | AB58: Porto | AC58: 1 petit verre | AD58: 75 ml | AG58: Verre à vin: blanc/rouge, rempli normalement 125
B59: =LARGE(B7:B58,1)+1 -> 49 | C59: Ecrevisse | D59: 35 | E59: 10 | F59: 350 | G59: 0.35 | I59: =LARGE(I7:I58,1)+1 -> 103 | J59: Porc cervelle | K59: 225 | L59: 10 | M59: 2250 | N59: 2.25 | X59: Crème glacée | Y59: 1 boule | Z59: 50 g | AB59: Poulet, poitrine (sans peau) | AC59: 1 filet | AD59: 160 g
C60: F | D60: 0 | F60: 0 | G60: 0 | I60: =LARGE(I7:I59,1)+1 -> 104 | J60: Porc cœur | K60: 225 | L60: 10 | M60: 2250 | N60: 2.25 | X60: Crêpe | Y60: 1 pièce | Z60: 60 g | AB60: Poulet, cuisse(sans peau) | AC60: 1 cuisse | AD60: 165 g | AG60: Verre à mousseux, rempli normalement 100
B61: =LARGE(B7:B60,1)+1 -> 50 | C61: Farine 1 cuillère café | D61: 3 | E61: 10 | F61: 30 | G61: 0.03 | I61: =LARGE(I7:I60,1)+1 -> 105 | J61: Porc foie | K61: 750 | L61: 10 | M61: 7500 | N61: 7.5 | X61: Crevettes | Y61: 1 cuillère | Z61: 18 g | AB61: Praline | AC61: 1 | AD61: 15 g
B62: =LARGE(B7:B61,1)+1 -> 51 | C62: Farine 1 cuillère soupe | D62: 8 | E62: 10 | F62: 80 | G62: 0.08 | I62: =LARGE(I7:I61,1)+1 -> 106 | J62: Porc jambon | K62: 8.6 | L62: 10 | M62: 86 | N62: 0.086 | X62: Croissant | Y62: 1 moyen | Z62: 50 g | AB62: Prune, sans noyau | AC62: 1 moyenne | AD62: 55 g | AG62: Verre à bière, rempli normalement 250 et 330
B63: =LARGE(B7:B62,1)+1 -> 52 | C63: Farine 1 tasse | D63: 100 | E63: 10 | F63: 1000 | G63: 1 | I63: =LARGE(I7:I62,1)+1 -> 107 | J63: Porc longe | K63: 11.5 | L63: 10 | M63: 115 | N63: 0.115 | X63: Croque-monsieur | Y63: 1 | Z63: 135 g | AB63: Prune, sèche | AC63: 1 | AD63: 6 g
B64: =LARGE(B7:B63,1)+1 -> 53 | C64: Farine Tasse thé de 15 cl | D64: 100 | E64: 10 | F64: 1000 | G64: 1 | I64: =LARGE(I7:I63,1)+1 -> 108 | J64: Porc poitrine | K64: 3.75 | L64: 10 | M64: 37.5 | N64: 0.0375 | X64: Croquette de pomme de terre (c) | Y64: 1 moyenne | Z64: 27 g | AB64: Pudding | AC64: 1 portion | AD64: 125 g/200 g | AG64: Lors de l’établissement du poids des denrées alimentaires liquides (boissons alcoolisées,
B65: =LARGE(B7:B64,1)+1 -> 54 | C65: Farine Verre de 20 cl | D65: 135 | E65: 10 | F65: 1350 | G65: 1.35 | I65: =LARGE(I7:I64,1)+1 -> 109 | J65: Porc rognon | K65: 170 | L65: 10 | M65: 1700 | N65: 1.7 | AB65: Purée de pommes de terre | AC65: 1 cuillère/portion | AD65: 50 g/160 g
B66: =LARGE(B7:B65,1)+1 -> 55 | C66: Fraise | D66: 12 | E66: 10 | F66: 120 | G66: 0.12 | I66: =LARGE(I7:I65,1)+1 -> 110 | J66: Poulet 4/4 | K66: 1000 | L66: 10 | M66: 10000 | N66: 10 | AG66: lait, lait chocolaté et lait de soja, milkshake et yaourt) les "ml" ont été assimilés aux "g"
I67: =LARGE(I7:I66,1)+1 -> 111 | J67: Poulet pac | K67: 1500 | L67: 10 | M67: 15000 | N67: 15 | X67: Aliment | Y67: Mesure de capacité | Z67: Poids | AB67: Aliment | AC67: Mesure de capacité | AD67: Poids | AG67: (source 7.104).
I68: =LARGE(I7:I67,1)+1 -> 112 | J68: Pruneau | K68: 15 | L68: 10 | M68: 150 | N68: 0.15
X69: Datte sèche (sans noyau) | Y69: 1 | Z69: 9 g | AB69: Radis | AC69: 1 pièce | AD69: 6 g | AG69: Pour la crème glacée et la mousse, le facteur de conversion est mentionné dans la colonne
AB70: Raisin | AC70: 1 | AD70: 7 g | AG70: précisions.
X71: Éclair au chocolat | Y71: 1 pièce | Z71: 115 g | AB71: Raisin, sec | AC71: 1 cuillère | AD71: 12 g
X72: Edam jeune | Y72: 1 fine tranche | Z72: 25 g | AB72: Ravioli | AC72: 1 portion | AD72: 400 g
AB73: Riz au lait, vanille | AC73: 1 portion | AD73: 100 g/200 g | AF73: Nota : (1) En cuisant, les pommes frites absorbent 8 à 10 % de matières grasses.
X74: Farine | Y74: 1 cuillère | Z74: 12 g | AB74: Riz, cuit | AC74: 1 portion | AD74: 150 g | AF74: Besoins journaliers (limites moyennes) | AG74: En grammes | AJ74: En milligrammes
X75: Fécule de pomme de terre | Y75: 1 cuillère | Z75: 12 g | AB75: Riz, non cuit | AC75: 1 sachet | AD75: 62,5 g | AG75: Protides | AH75: Lipides | AI75: Glucides | AJ75: Calcium 7 | AK75: Phosphore | AL75: Fer | AM75: Vit. C
X76: Fenouil | Y76: 1 | Z76: 200 g | AF76: Jeunes
X77: Fève de soja, cuite | Y77: 1 tasse à café | Z77: 140 g | AB77: Salami | AC77: 1 fine tranche | AD77: 9 g | AF77: 2 à 4 ans | AG77: 30/35 | AH77: 32 | AI77: 200/250 | AJ77: 700/750 | AK77: 650/700 | AL77: 40/94 | AM77: 40/60
X78: Figue, sèche | Y78: 1 pièce | Z78: 20 g | AB78: Sandwich sucré | AC78: 1 | AD78: 40 g | AF78: 4 à 6 ans | AG78: 35/40 | AH78: 33 | AI78: 200/250 | AJ78: 600/800 | AK78: 600/800 | AL78: 40/94 | AM78: 40/60
X79: Filet d'Anvers | Y79: 1 tranche | Z79: 15 g | AB79: Sardine | AC79: 1 pièce | AD79: 33 g | AF79: 6 à 10 ans | AG79: 45/55 | AH79: 37 | AI79: 300/340 | AJ79: 850/950 | AK79: 850/950 | AL79: 40/94 | AM79: 40/60
X80: Flétan, fumé | Y80: 1 fine tranche | Z80: 30 g | AB80: Saumon | AC80: 1 tranche | AD80: 180 g | AF80: 10 à 12 ans (filles 9 à 11) | AG80: 60/65 | AH80: 50 | AI80: 350/400 1 | AJ80: 1 000/1 200 | AK80: 1 100/1 300 | AL80: 20/30 | AM80: 60/100
X81: Flocons d'avoine | Y81: 1 tasse à café | Z81: 45 g | AB81: Saumon, fumé | AC81: 1 fine tranche | AD81: 30 g | AF81: 12 à 15 ans (filles 11 à 13) | AG81: 5/9 2 | AH81: 65 | AI81: 440/550 3 | AJ81: 1 200/1 400 | AK81: 1 300/1 500 | AL81: 20/30 | AM81: 60/100
X82: Fraise | Y82: 1 moyenne | Z82: 15 g | AB82: Sel | AC82: 1 cuillère | AD82: 15 g | AF82: 15 à 20 ans (filles 13 à 18) | AG82: 75/100 4 | AH82: 75 | AI82: 550/600 5 | AJ82: 1 400/1 600 | AK82: 1 500/1 700 | AL82: 20/30 | AM82: 60/100
X83: Frangipane | Y83: 1 part | Z83: 100 g | AB83: Soupe | AC83: 1 tasse/1 assiette | AD83: 300 ml/250 ml | AF83: Hommes
X84: Frites | Y84: 1 portion | Z84: 250 g | AB84: Spaghetti, préparé | AC84: 1 assiette | AD84: 300 g | AF84: Vie sédentaire | AG84: 75/85 4 | AH84: 60 | AI84: 400/500 | AJ84: 800/900 | AK84: 1 200/1 400 | AL84: 18/20 | AM84: 70/80
X85: Fromage frais | Y85: 1 cuillère | Z85: 25 g | AB85: Spéculoos | AC85: 1 pièce | AD85: 7 g | AF85: Travail de force
X86: Fromage fondu | Y86: 1 portion/cuillère | Z86: 20 g/15 g | AB86: Sucre | AC86: 1 cuillère/morceau | AD86: 15 g/6 g | AF86: 4e et 3e cat. | AG86: 85/110 | AH86: 75 | AI86: 550/700 | AJ86: 1 000/1 200 | AK86: 1 500/1 800 | AL86: 23/26 | AM86: 90/110
X87: Fruit de la passion | Y87: 1 moyen | Z87: 15 g | AB87: Sucre impalpable | AC87: 1 cuillère | AD87: 6 g | AF87: 2e et 1re cat. | AG87: 100/110 | AH87: 95 | AI87: 850/1 000 | AJ87: 1 400/1 600 | AK87: 2 000/2 400 | AL87: 30/45 | AM87: 130/150
AF88: Femmes
X89: Galette de riz | Y89: 1 pièce | Z89: 7 g | AB89: Tarte à la confiture | AC89: 1 part | AD89: 80 g | AF89: Vie sédentaire | AG89: 65/75 4 | AH89: 50 | AI89: 350/400 | AJ89: 800/900 | AK89: 1 000/1 200 | AL89: 15/20 | AM89: 60/70
X90: Gaufre au chocolat | Y90: 1 moyenne | Z90: 60 g | AB90: Tarte au riz | AC90: 1 part | AD90: 140 g | AF90: Enceintes (5e-9e mois) 6 | AG90: 90/110 | AH90: 80 | AI90: 500/550 | AJ90: 1 500/2 000 | AK90: 1 500/2 000 | AL90: 20/25 | AM90: 100/150
X91: Gaufre de Liège | Y91: 1 moyenne | Z91: 55 g | AB91: Tarte aux fruits | AC91: 1 part | AD91: 165 g | AF91: Allaitant 6 | AG91: 100/110 | AH91: 80 | AI91: 500/550 | AJ91: 1 500/2 000 | AK91: 1 500/2 000 | AL91: 20/25 | AM91: 100/150
X92: Gouda | Y92: 1 fine tranche | Z92: 20 g | AB92: Tarte aux mattons | AC92: 1 morceau | AD92: 120 g | AF92: Vieillards 6 | AG92: 65 | AH92: 45 | AI92: 300/400 | AJ92: 900/1 000 | AK92: 900/1 000 | AL92: 14/16 | AM92: 50/60
X93: Graisse de cuisson | Y93: 1 cuillère | Z93: 18 g | AB93: Toast | AC93: 1 pièce | AD93: 3 g
X94: Gruyère | Y94: 1 fine tranche | Z94: 25 g | AB94: Tomate | AC94: 1 moyenne | AD94: 150 g | AF94: Nota : Pour les filles : (1) 330/350, (2) 80/85, (3) 400/500, (4) 85-90, (5) 500/550. (6) Vie sédentaire ou légère activité. (7) Contenu surtout dans le fromage et le lait.
X95: Gruyère, râpé | Y95: 1 cuillère | Z95: 15 g | AB95: Truite | AC95: 1 pièce | AD95: 120 g
X97: Hamburger + sandwich | Y97: 1 moyenne | Z97: 130 g | AB97: Viande de porc, côtelette | AC97: 1 avec/sans côte | AD97: 175g /160 g
X98: Haricot blanc, cuit /sec | Y98: 1 cuillère | Z98: 35 g/105 g | AB98: Viande de porc, tranche | AC98: 1 | AD98: 150 g
X99: Hareng/maatje | Y99: 1 moyen | Z99: 80 g | AB99: Vin de table blanc/rouge | AC99: 1 verre | AD99: 125 ml
X100: Huile | Y100: 1 cuillère | Z100: 10 g | AB100: Yaourt | AC100: 1 cuillère | AD100: 25 g
X102: Jambon, cru, fumé | Y102: 1 fine tranche | Z102: 25 g | AB102: 4. MESURES DE CAPACITE*
X103: Jambon, cuit | Y103: 1 fine tranche | Z103: 45 g | AB103: Mesures de capacité calculées à partir d’eau | AD103: Poids en grammes
X104: Jambon de dinde | Y104: 1 fine tranche | Z104: 20 g
X105: Jambon de poulet | Y105: 1 fine tranche | Z105: 20 g | AB105: Cuillère à café | AD105: 4,5 g
X106: Jus de pomme/jus d'orange | Y106: 1 verre | Z106: 150 ml | AB106: Cuillère à soupe | AD106: 12 g
X107: Ketchup | Y107: 1 cuillère | Z107: 23 g | AB107: Cuillère à dessert | AD107: 8 g
X108: Kiwi | Y108: 1 moyen | Z108: 75 g | AB108: Cuillère à sauce | AD108: 25 g
AB109: Louche | AD109: 150 g
X110: Lait | Y110: 1 verre | Z110: 150 ml | AB110: Tasse à ras bord | AD110: 150 g
X111: Lait battu nature | Y111: 1 verre | Z111: 150 ml | AB111: Tasse liquide | AD111: 125 g
X112: Lait chocolaté | Y112: 1 petite bouteille | Z112: 200 ml | AB112: Grande tasse à ras bord | AD112: 250 g
X113: Lait concentré | Y113: 1 portion individuelle | Z113: 7,5 g | AB113: Grande tasse liquide | AD113: 225 g
X114: Langue de bœuf | Y114: 1 fine tranche | Z114: 15 g | AB114: Gobelet plastique à ras bord | AD114: 150 g
X115: Lapin/lièvre (cuisse) | Y115: 1 morceau | Z115: 250 g | AB115: Gobelet plastique liquide | AD115: 125 g
X116: Lard fumé | Y116: 1 petite tranche | Z116: 15 g | AB116: Bol de soupe à ras bord | AD116: 300 g
X117: Lasagne | Y117: 1 portion | Z117: 400 g | AB117: Bol de soupe liquide | AD117: 250 g
X118: Levure fraîche | Y118: 1 petit paquet | Z118: 42 g | AB118: Ravier à dessert | AD118: 150 g
X119: Limonade/cola/eau | Y119: 1 verre | Z119: 150 ml | AB119: Verre à limonade/eau | AD119: 150 g
X120: Litchi | Y120: 1 | Z120: 11 g | AB120: Verre à limonade grand | AD120: 250 g
AB121: Verre à vin rouge | AD121: 125 g
AB122: Verre à vin blanc | AD122: 125 g
AB123: Verre à champagne | AD123: 100 g
AB124: Verre à bière petit | AD124: 250 g
AB125: Verre à bière grand | AD125: 330 g
AB127: * Source:
AB128: Groupe de travail « Poids et mesures », Conseil Supérieur d’Hygiène.
